{"text_format":"1","workbook":"xlsx","n_sheets":6,"sheets":["Notes","Summary","Region (Geography)","Trusts","Sites","BS"],"not_rendered":{"charts":0,"images":0,"macros":1,"external_links":0,"defined_names":5,"comments":0,"pivot_tables":0},"unopened":[],"bounds":{"document_bytes":16777216,"sheet_cells":100000,"rows_first":2000,"rows_last":500,"rows_between":2000,"halvings":0,"cell_chars":16384,"cell_head_chars":4096},"cells_cut":0,"cells_raw":0,"read":"whole","date_system":"1900"}

{"sheet":"Notes","index":0,"n_rows":2,"n_cols":8,"rows_kept":2,"cut":false,"hidden":false,"merged":[[1,1,1,4]]}
[]
[null,"A&E Friends and Family Test (FFT) data - September 2015",null,null,null,null,null,"  Show data for:"]

{"sheet":"Summary","index":1,"n_rows":7,"n_cols":12,"rows_kept":7,"cut":false,"hidden":false,"merged":[[2,1,3,1],[2,4,2,5],[2,6,2,7],[2,8,2,9],[2,10,2,11]]}
[]
[]
[null,"FFT","Number of organisations submitting","Total responses to date","Responses",null,"Response Rate",null,"Score (% recommend)",null,"Score (% not recommend)"]
[null,null,"Sep 15","Sep 15","Sep 15","Aug 15","Sep 15","Aug 15","Sep 15","Aug 15","Sep 15","Aug 15"]
[null,"A&E Total",141,3571147,142975,141952,0.1412218716849036,0.14287396570066641,0.87847525791222236,0.88428482867448155,6.2451477531036893E-2,5.9815994138863841E-2]
[null,"Acute Type 1&2","NA",3523597,132904,133155,0.14222850049227345,0.14599144367671921,0.87524077529645461,0.88194209755548048,6.4392343345572742E-2,6.1259434493635238E-2]
[null,"WiCs & MIUs",26,47550,10071,8797,0.12915843742786057,0.10797442097381955,0.9211597656637871,0.91974536773900195,3.6838447026114586E-2,3.7967488916676138E-2]

{"sheet":"Region (Geography)","index":2,"n_rows":19,"n_cols":13,"rows_kept":19,"cut":false,"hidden":false,"merged":[[2,6,3,6],[2,7,2,12],[2,0,3,0],[2,1,3,1],[2,2,3,2],[2,3,3,3],[2,4,3,4],[2,5,3,5]]}
[]
[]
["Region (Geo) Code","Region (Geography)","Total Responses","Total Eligible","Response Rate","Percentage Recommended","Percentage Not  Recommended","Breakdown of Responses"]
[null,null,null,null,null,null,null,"Extremely Likely","Likely","Neither","Unlikely","Extremely Unlikely","Don't Know"]
[null,"England",142975,1012414,0.1412218716849036,0.87847525791222236,6.2451477531036893E-2,95046,30554,5987,3615,5314,2459]
[null,"Selection (excluding suppressed data)",{"$f":"SUBTOTAL(9,C7:C31)","v":142975},{"$f":"SUBTOTAL(9,D7:D31)","v":1012414},{"$f":"IFERROR(C6/D6,\"NA\")","v":0.1412218716849036},{"$f":"IFERROR((H6+I6)/C6, \"-\")","v":0.87847525791222236},{"$f":"IFERROR((K6+L6)/C6, \"-\")","v":6.2451477531036893E-2},{"$f":"SUBTOTAL(9,H7:H31)","v":95046},30554,5987,3615,5314,2459]
["Q72","NHS England Yorkshire & Humber",13375,106426,0.12567417736267453,0.88471028037383181,5.9663551401869158E-2,8866,2967,496,326,472,248]
["Q73","NHS England Lancashire & Greater Manchester",17435,91320,0.19092203241349101,0.86538571838256384,7.2555205047318619E-2,11398,3690,834,478,787,248]
["Q74","NHS England Cumbria & North East",9772,81691,0.1196215005324944,0.92284076954564065,3.0392959476054034E-2,7076,1942,231,143,154,226]
["Q75","NHS England Cheshire & Merseyside",6890,50166,0.13734401786070247,0.88069666182873729,6.0667634252539911E-2,4892,1176,268,197,221,136]
["Q76","NHS England North Midlands",7955,49889,0.15945398785303375,0.84839723444374604,7.8441231929604019E-2,5174,1575,357,226,398,225]
["Q77","NHS England West Midlands",10296,84801,0.12141366257473379,0.84741647241647244,8.5178710178710176E-2,6600,2125,508,332,545,186]
["Q78","NHS England Central Midlands",9157,66827,0.13702545378365033,0.86917112591460088,7.0656328491864151E-2,5918,2041,410,255,392,141]
["Q79","NHS England East",9483,61676,0.15375510733510603,0.85806179479067801,7.455446588632289E-2,6149,1988,499,281,426,140]
["Q80","NHS England South West",4544,42937,0.10582947108554394,0.88578345070422537,4.8415492957746477E-2,3190,835,169,69,151,130]
["Q81","NHS England South East",16640,85050,0.1956496178718401,0.86868990384615385,6.9531250000000003E-2,10905,3550,765,462,695,263]
["Q82","NHS England South Central",3745,37003,0.10120801016133826,0.89612817089452601,5.7142857142857141E-2,2633,723,122,90,124,53]
["Q70","NHS England Wessex",6179,37155,0.16630332391333602,0.90564816313319307,4.3534552516588443E-2,4521,1075,204,131,138,110]
["Q71","NHS England London",27504,217473,0.12647087224620987,0.89408813263525311,5.2210587550901688E-2,17724,6867,1124,625,811,353]

{"sheet":"Trusts","index":3,"n_rows":147,"n_cols":21,"rows_kept":147,"cut":false,"hidden":false,"merged":[[2,6,3,6],[2,7,3,7],[2,8,2,13],[2,14,2,20],[2,0,3,0],[2,1,3,1],[2,2,3,2],[2,3,3,3],[2,4,3,4],[2,5,3,5]]}
[]
[]
["Region (Geo) Code","Trust Code","Trust Name","Total Responses","Total Eligible","Response Rate","Percentage Recommended","Percentage Not  Recommended","Breakdown of Responses",null,null,null,null,null,"Mode of Collection"]
[null,null,null,null,null,null,null,null,"Extremely Likely","Likely","Neither","Unlikely","Extremely Unlikely","Don't Know","SMS/Text / Smartphone App","Electronic tablet/kiosk at point of discharge","Paper / postcard at point of discharge","Paper survey sent to the patients home","Telephone survey once patient is home","Online survey once patient is home","Other"]
[null,null,"England",142975,1012414,0.1412218716849036,0.87847525791222236,6.2451477531036893E-2,95046,30554,5987,3615,5314,2459,42223,5350,65517,2879,23778,2294,934]
[null,null,"Selection (excluding suppressed data)",{"$f":"SUBTOTAL(9,D7:D999)","v":142975},{"$f":"SUBTOTAL(9,E7:E999)","v":1012414},{"$f":"IFERROR(D6/E6,\"NA\")","v":0.1412218716849036},{"$f":"IFERROR((I6+J6)/D6, \"-\")","v":0.87847525791222236},{"$f":"IFERROR((L6+M6)/D6, \"-\")","v":6.2451477531036893E-2},{"$f":"SUBTOTAL(9,I7:I999)","v":95046},{"$f":"SUBTOTAL(9,J7:J999)","v":30554},5987,3615,5314,2459,42223,5350,65517,2879,23778,2294,934]
["Q70","RBD","DORSET COUNTY HOSPITAL NHS FOUNDATION TRUST",485,2334,0.20779777206512426,0.85154639175257729,7.2164948453608241E-2,319,94,25,17,18,12,480,0,0,0,5,0,0]
["Q70","RN5","HAMPSHIRE HOSPITALS NHS FOUNDATION TRUST",1598,7410,0.21565452091767881,0.89299123904881106,5.5068836045056323E-2,1131,296,69,40,48,14,662,0,103,0,833,0,0]
["Q70","R1F","ISLE OF WIGHT NHS TRUST",119,2754,4.3209876543209874E-2,0.88235294117647056,4.2016806722689079E-2,76,29,6,0,5,3,0,0,117,0,0,2,0]
["Q70","RD3","POOLE HOSPITAL NHS FOUNDATION TRUST",649,3166,0.20499052432090967,0.86748844375963019,6.9337442218798145E-2,426,137,25,23,22,16,596,0,53,0,0,0,0]
["Q70","RHU","PORTSMOUTH HOSPITALS NHS TRUST",1956,9329,0.20966877478829457,0.93507157464212676,2.8629856850715747E-2,1477,352,36,30,26,35,0,0,1955,0,0,1,0]
["Q70","RDZ","THE ROYAL BOURNEMOUTH AND CHRISTCHURCH HOSPITALS NHS FOUNDATION TRUST",382,5787,6.6010022464143767E-2,0.93193717277486909,3.4031413612565446E-2,323,33,9,4,9,4,0,137,245,0,0,0,0]
["Q70","RHM","UNIVERSITY HOSPITAL SOUTHAMPTON NHS FOUNDATION TRUST",990,6375,0.15529411764705883,0.91212121212121211,2.7272727272727271E-2,769,134,34,17,10,26,0,0,990,0,0,0,0]
["Q71","RF4","BARKING, HAVERING AND REDBRIDGE UNIVERSITY HOSPITALS NHS TRUST",1307,12368,0.10567593790426909,0.85615914307574603,6.9625095638867637E-2,697,422,71,36,55,26,0,0,1307,0,0,0,0]
["Q71","R1H","BARTS HEALTH NHS TRUST",441,36126,1.2207274539113104E-2,0.91609977324263037,4.9886621315192746E-2,303,101,12,5,17,3,0,0,441,0,0,0,0]
["Q71","RQM","CHELSEA AND WESTMINSTER HOSPITAL NHS FOUNDATION TRUST",2946,13729,0.21458227110496031,0.86252545824847249,7.1622539035980995E-2,1889,652,165,85,126,29,2039,0,177,0,725,5,0]
["Q71","RJ6","CROYDON HEALTH SERVICES NHS TRUST",662,3862,0.17141377524598653,0.93504531722054385,1.9637462235649546E-2,424,195,24,7,6,6,0,101,561,0,0,0,0]
["Q71","RVR","EPSOM AND ST HELIER UNIVERSITY HOSPITALS NHS TRUST",712,8667,8.215068651205723E-2,0.9213483146067416,5.0561797752808987E-2,512,144,17,15,21,3,392,0,278,0,0,42,0]
["Q71","RJ1","GUY'S AND ST THOMAS' NHS FOUNDATION TRUST",1857,10431,0.17802703480011503,0.84437264404954226,8.1852450188476034E-2,1230,338,63,66,86,74,1324,0,533,0,0,0,0]
["Q71","RQX","HOMERTON UNIVERSITY HOSPITAL NHS FOUNDATION TRUST",1159,8174,0.1417910447761194,0.96203623813632444,1.6393442622950821E-2,757,358,18,7,12,7,0,0,1154,0,0,5,0]
["Q71","RYJ","IMPERIAL COLLEGE HEALTHCARE NHS TRUST",2728,19554,0.13951109747366267,0.96444281524926689,1.3563049853372434E-2,2016,615,29,14,23,31,1,382,2342,0,0,3,0]
["Q71","RJZ","KING'S COLLEGE HOSPITAL NHS FOUNDATION TRUST",1884,10017,0.18808026355196167,0.84129511677282376,8.0148619957537151E-2,1182,403,87,57,94,61,1512,0,344,0,0,28,0]
["Q71","RAX","KINGSTON HOSPITAL NHS FOUNDATION TRUST",157,6305,2.4900872323552734E-2,0.96815286624203822,0,114,38,4,0,0,1,0,157,0,0,0,0,0]
["Q71","RJ2","LEWISHAM AND GREENWICH NHS TRUST",1619,13693,0.11823559482947492,0.95676343421865351,1.4823965410747375E-2,1152,397,42,11,13,4,0,0,1619,0,0,0,0]
["Q71","R1K","LONDON NORTH WEST HEALTHCARE NHS TRUST",930,18686,4.9769881194477152E-2,0.93010752688172038,4.0860215053763443E-2,624,241,17,17,21,10,0,0,930,0,0,0,0]
["Q71","RP6","MOORFIELDS EYE HOSPITAL NHS FOUNDATION TRUST",1462,8679,0.16845258670353727,0.94733242134062923,1.2311901504787962E-2,1128,257,35,9,9,24,0,0,1462,0,0,0,0]
["Q71","RAP","NORTH MIDDLESEX UNIVERSITY HOSPITAL NHS TRUST",616,9854,6.2512685203978083E-2,0.68831168831168832,0.15422077922077923,195,229,70,51,44,27,0,606,0,0,0,10,0]
["Q71","RAL","ROYAL FREE LONDON NHS FOUNDATION TRUST",3945,9727,0.4055721188444536,0.84816223067173635,6.8694550063371357E-2,1943,1403,328,145,126,0,0,0,0,0,3945,0,0]
["Q71","RJ7","ST GEORGE'S UNIVERSITY HOSPITALS NHS FOUNDATION TRUST",1512,7012,0.21563034797490016,0.82208994708994709,0.11574074074074074,943,300,74,63,112,20,1448,64,0,0,0,0,0]
["Q71","RAS","THE HILLINGDON HOSPITALS NHS FOUNDATION TRUST",625,5030,0.1242544731610338,0.93920000000000003,2.0799999999999999E-2,429,158,19,4,9,6,0,40,565,19,0,1,0]
["Q71","RKE","THE WHITTINGTON HOSPITAL NHS TRUST",417,6305,6.6137985725614593E-2,0.95923261390887293,2.8776978417266189E-2,282,118,3,4,8,2,0,0,333,0,84,0,0]
["Q71","RRV","UNIVERSITY COLLEGE LONDON HOSPITALS NHS FOUNDATION TRUST",2525,9254,0.27285498162956562,0.95128712871287124,2.297029702970297E-2,1904,498,46,29,29,19,0,4,2063,0,0,458,0]
["Q72","RCF","AIREDALE NHS FOUNDATION TRUST",492,3469,0.14182761602767369,0.94512195121951215,2.8455284552845527E-2,354,111,9,9,5,4,5,16,471,0,0,0,0]
["Q72","RFF","BARNSLEY HOSPITAL NHS FOUNDATION TRUST",720,4748,0.15164279696714406,0.9375,3.1944444444444442E-2,532,143,19,8,15,3,0,0,720,0,0,0,0]
["Q72","RAE","BRADFORD TEACHING HOSPITALS NHS FOUNDATION TRUST",161,8583,1.8758010019806596E-2,0.72670807453416153,0.19254658385093168,67,50,13,10,21,0,117,0,23,0,0,21,0]
["Q72","RWY","CALDERDALE AND HUDDERSFIELD NHS FOUNDATION TRUST",911,9568,9.5213210702341136E-2,0.86169045005488476,9.3304061470911082E-2,623,162,32,26,59,9,544,0,367,0,0,0,0]
["Q72","RP5","DONCASTER AND BASSETLAW HOSPITALS NHS FOUNDATION TRUST",545,11408,4.7773492286115007E-2,0.84403669724770647,7.155963302752294E-2,341,119,23,21,18,23,137,0,405,0,0,3,0]
["Q72","RCD","HARROGATE AND DISTRICT NHS FOUNDATION TRUST",346,2955,0.1170896785109983,0.88728323699421963,6.9364161849710976E-2,229,78,12,11,13,3,0,0,25,0,321,0,0]
["Q72","RWA","HULL AND EAST YORKSHIRE HOSPITALS NHS TRUST",352,8328,4.226705091258405E-2,0.87784090909090906,7.1022727272727279E-2,228,81,7,6,19,11,0,0,351,0,0,1,0]
["Q72","RR8","LEEDS TEACHING HOSPITALS NHS TRUST",2924,10017,0.29190376360187681,0.86627906976744184,6.2927496580027359E-2,1843,690,119,74,110,88,693,0,1830,0,389,12,0]
["Q72","RXF","MID YORKSHIRE HOSPITALS NHS TRUST",3214,14714,0.21843142585292918,0.94555071561916615,2.3335407591785935E-2,2325,714,69,41,34,31,0,0,3213,0,0,1,0]
["Q72","RJL","NORTHERN LINCOLNSHIRE AND GOOLE NHS FOUNDATION TRUST",1153,8818,0.13075527330460421,0.87250650477016478,5.3772766695576756E-2,704,302,63,23,39,22,0,0,544,0,607,2,0]
["Q72","RCU","SHEFFIELD CHILDREN'S NHS FOUNDATION TRUST",60,4387,1.3676772281741509E-2,0.91666666666666663,0.05,44,11,1,1,2,1,0,0,0,0,0,60,0]
["Q72","RHQ","SHEFFIELD TEACHING HOSPITALS NHS FOUNDATION TRUST",1572,7600,0.20684210526315788,0.83460559796437661,8.5877862595419852E-2,1004,308,83,56,79,42,825,0,194,0,551,2,0]
["Q72","RFR","THE ROTHERHAM NHS FOUNDATION TRUST",455,4625,9.8378378378378373E-2,0.85054945054945053,8.3516483516483511E-2,259,128,22,18,20,8,0,192,8,0,0,255,0]
["Q72","RCB","YORK TEACHING HOSPITAL NHS FOUNDATION TRUST",470,7206,6.5223424923674722E-2,0.81489361702127661,0.1276595744680851,313,70,24,22,38,3,348,0,57,0,0,65,0]
["Q73","RXL","BLACKPOOL TEACHING HOSPITALS NHS FOUNDATION TRUST",1137,5736,0.19822175732217573,0.92612137203166223,2.9023746701846966E-2,846,207,26,8,25,25,0,0,1097,0,38,2,0]
["Q73","RMC","BOLTON NHS FOUNDATION TRUST",1125,5590,0.20125223613595708,0.84266666666666667,9.5111111111111105E-2,744,204,50,44,63,20,760,0,1,0,364,0,0]
["Q73","RW3","CENTRAL MANCHESTER UNIVERSITY HOSPITALS NHS FOUNDATION TRUST",2003,16258,0.12320088571780047,0.89116325511732397,5.8911632551173237E-2,1418,367,85,43,75,15,460,393,1148,0,0,2,0]
["Q73","RXR","EAST LANCASHIRE HOSPITALS NHS TRUST",2106,8410,0.25041617122473248,0.8466286799620133,9.4017094017094016E-2,1289,494,99,71,127,26,1114,0,1,0,363,628,0]
["Q73","RXN","LANCASHIRE TEACHING HOSPITALS NHS FOUNDATION TRUST",1242,6577,0.18883989660939637,0.84299516908212557,8.4541062801932368E-2,808,239,67,44,61,23,805,0,57,0,380,0,0]
["Q73","RW6","PENNINE ACUTE HOSPITALS NHS TRUST",4148,22184,0.18698160836639019,0.82569913211186119,9.1369334619093537E-2,2443,982,273,142,237,71,1916,0,65,0,2105,62,0]
["Q73","RM3","SALFORD ROYAL NHS FOUNDATION TRUST",983,4052,0.24259624876604147,0.91556459816887081,3.9674465920651068E-2,736,164,35,18,21,9,648,0,0,0,335,0,0]
["Q73","RWJ","STOCKPORT NHS FOUNDATION TRUST",1113,5300,0.21,0.8966756513926325,4.9415992812219228E-2,815,183,48,22,33,12,615,0,6,0,491,1,0]
["Q73","RMP","TAMESIDE HOSPITAL NHS FOUNDATION TRUST",1386,5437,0.25491999264300164,0.83333333333333337,9.3795093795093792E-2,747,408,78,40,90,23,571,61,753,0,0,1,0]
["Q73","RM2","UNIVERSITY HOSPITAL OF SOUTH MANCHESTER NHS FOUNDATION TRUST",1067,5208,0.20487711213517665,0.86129334582942829,8.0599812558575443E-2,710,209,44,39,47,18,865,14,188,0,0,0,0]
["Q73","RRF","WRIGHTINGTON, WIGAN AND LEIGH NHS FOUNDATION TRUST",1125,6568,0.17128501827040196,0.9555555555555556,1.3333333333333334E-2,842,233,29,7,8,6,0,0,1124,0,0,1,0]
["Q74","RLN","CITY HOSPITALS SUNDERLAND NHS FOUNDATION TRUST",1479,8108,0.18241243216576222,0.97227856659905343,8.1135902636916835E-3,1194,244,19,7,5,10,0,0,1479,0,0,0,0]
["Q74","RXP","COUNTY DURHAM AND DARLINGTON NHS FOUNDATION TRUST",2835,18747,0.15122419587133942,0.91499118165784832,1.9753086419753086E-2,1958,636,55,29,27,130,0,0,2822,0,0,13,0]
["Q74","RR7","GATESHEAD HEALTH NHS FOUNDATION TRUST",1750,4938,0.35439449169704335,0.94799999999999995,2.5142857142857144E-2,1235,424,43,13,31,4,0,11,1739,0,0,0,0]
["Q74","RNL","NORTH CUMBRIA UNIVERSITY HOSPITALS NHS TRUST",84,4857,1.7294626312538603E-2,0.80952380952380953,8.3333333333333329E-2,38,30,8,4,3,1,0,0,0,0,0,0,84]
["Q74","RVW","NORTH TEES AND HARTLEPOOL NHS FOUNDATION TRUST",278,3811,7.2946733140907896E-2,0.9388489208633094,2.1582733812949641E-2,212,49,7,3,3,4,0,0,278,0,0,0,0]
["Q74","RTF","NORTHUMBRIA HEALTHCARE NHS FOUNDATION TRUST",221,11593,1.9063227809885275E-2,0.94570135746606332,1.3574660633484163E-2,164,45,8,2,1,1,0,0,140,81,0,0,0]
["Q74","RTR","SOUTH TEES HOSPITALS NHS FOUNDATION TRUST",1600,10085,0.15865146256817056,0.89500000000000002,4.8750000000000002E-2,1191,241,52,42,36,38,331,0,0,1213,56,0,0]
["Q74","RE9","SOUTH TYNESIDE NHS FOUNDATION TRUST",282,2704,0.10428994082840237,0.92553191489361697,4.2553191489361701E-2,209,52,2,5,7,7,0,0,282,0,0,0,0]
["Q74","RTD","THE NEWCASTLE UPON TYNE HOSPITALS NHS FOUNDATION TRUST",105,12841,8.176933260649482E-3,0.88571428571428568,6.6666666666666666E-2,84,9,5,1,6,0,93,0,12,0,0,0,0]
["Q74","RTX","UNIVERSITY HOSPITALS OF MORECAMBE BAY NHS FOUNDATION TRUST",1138,4007,0.28400299475917146,0.88137082601054484,6.32688927943761E-2,791,212,32,37,35,31,554,0,206,0,377,1,0]
["Q75","REM","AINTREE UNIVERSITY HOSPITAL NHS FOUNDATION TRUST",845,3933,0.21484871599288075,0.86508875739644975,6.8639053254437865E-2,590,141,41,24,34,15,582,0,0,0,263,0,0]
["Q75","RBS","ALDER HEY CHILDREN'S NHS FOUNDATION TRUST",8,4534,1.7644464049404499E-3,1,0,7,1,0,0,0,0,0,0,8,0,0,0,0]
["Q75","RJR","COUNTESS OF CHESTER HOSPITAL NHS FOUNDATION TRUST",646,4239,0.15239443264920971,0.81888544891640869,0.1130030959752322,430,99,30,30,43,14,450,0,196,0,0,0,0]
["Q75","RJN","EAST CHESHIRE NHS TRUST",830,2746,0.30225782957028408,0.9,5.0602409638554217E-2,619,128,30,18,24,11,583,0,4,0,243,0,0]
["Q75","REP","LIVERPOOL WOMEN'S NHS FOUNDATION TRUST",290,910,0.31868131868131866,0.98965517241379308,3.4482758620689655E-3,264,23,1,0,1,1,0,0,290,0,0,0,0]
["Q75","RBT","MID CHESHIRE HOSPITALS NHS FOUNDATION TRUST",711,5660,0.12561837455830388,0.93389592123769338,3.0942334739803096E-2,550,114,20,16,6,5,0,82,629,0,0,0,0]
["Q75","RQ6","ROYAL LIVERPOOL AND BROADGREEN UNIVERSITY HOSPITALS NHS TRUST",1183,6328,0.18694690265486727,0.83262890955198643,9.6365173288250214E-2,748,237,60,45,69,24,778,0,0,0,405,0,0]
["Q75","RVY","SOUTHPORT AND ORMSKIRK HOSPITAL NHS TRUST",146,6623,2.2044390759474557E-2,0.77397260273972601,0.16438356164383561,89,24,6,14,10,3,0,62,84,0,0,0,0]
["Q75","RBN","ST HELENS AND KNOWSLEY HOSPITALS NHS TRUST",538,3999,0.13453363340835209,0.92193308550185871,5.3903345724907063E-2,406,90,12,10,19,1,257,0,38,0,243,0,0]
["Q75","RWW","WARRINGTON AND HALTON HOSPITALS NHS FOUNDATION TRUST",1196,6109,0.19577672286789982,0.84782608695652173,4.51505016722408E-2,743,271,68,40,14,60,0,0,1196,0,0,0,0]
["Q75","RBL","WIRRAL UNIVERSITY TEACHING HOSPITAL NHS FOUNDATION TRUST",497,5085,9.7738446411012786E-2,0.99396378269617702,2.012072434607646E-3,446,48,0,0,1,2,0,0,497,0,0,0,0]
["Q76","RJF","BURTON HOSPITALS NHS FOUNDATION TRUST",263,9028,2.9131590607000442E-2,0.81749049429657794,0.10646387832699619,158,57,14,9,19,6,130,0,132,0,0,1,0]
["Q76","RFS","CHESTERFIELD ROYAL HOSPITAL NHS FOUNDATION TRUST",659,4211,0.15649489432438851,0.83459787556904397,9.4081942336874058E-2,438,112,30,27,35,17,445,0,214,0,0,0,0]
["Q76","RTG","DERBY TEACHING HOSPITALS NHS FOUNDATION TRUST",1051,5759,0.18249696127799966,0.79828734538534729,0.11322549952426261,640,199,60,42,77,33,712,113,0,0,155,71,0]
["Q76","RX1","NOTTINGHAM UNIVERSITY HOSPITALS NHS TRUST",2283,9372,0.24359795134443021,0.92553657468243544,3.1099430573806396E-2,1750,363,48,26,45,51,0,0,2283,0,0,0,0]
["Q76","RK5","SHERWOOD FOREST HOSPITALS NHS FOUNDATION TRUST",564,7152,7.8859060402684561E-2,0.83510638297872342,7.6241134751773049E-2,229,242,30,10,33,20,0,0,563,0,0,1,0]
["Q76","RXW","SHREWSBURY AND TELFORD HOSPITAL NHS TRUST",1265,6213,0.20360534363431515,0.92094861660079053,3.3201581027667987E-2,818,347,33,12,30,25,0,0,1264,0,0,1,0]
["Q76","RJE","UNIVERSITY HOSPITALS OF NORTH MIDLANDS NHS TRUST",1870,8154,0.22933529556046112,0.74652406417112305,0.13850267379679143,1141,255,142,100,159,73,0,0,247,0,1623,0,0]
["Q77","RQ3","BIRMINGHAM CHILDREN'S HOSPITAL NHS FOUNDATION TRUST",464,4216,0.11005692599620494,0.93318965517241381,1.2931034482758621E-2,346,87,12,2,4,13,0,0,464,0,0,0,0]
["Q77","RLT","GEORGE ELIOT HOSPITAL NHS TRUST",802,3723,0.21541767391888261,0.87905236907730677,6.7331670822942641E-2,500,205,25,21,33,18,755,0,45,0,0,2,0]
["Q77","RR1","HEART OF ENGLAND NHS FOUNDATION TRUST",2361,15427,0.15304336552797043,0.79796696315120708,0.11393477340110122,1341,543,155,101,168,53,1048,0,82,0,1229,2,0]
["Q77","RXK","SANDWELL AND WEST BIRMINGHAM HOSPITALS NHS TRUST",886,14263,6.211876884245951E-2,0.82957110609480811,0.1072234762979684,565,170,42,37,58,14,558,0,328,0,0,0,0]
["Q77","RJC","SOUTH WARWICKSHIRE NHS FOUNDATION TRUST",268,3405,7.8707782672540388E-2,0.92910447761194026,7.462686567164179E-3,205,44,2,1,1,15,0,0,266,0,0,2,0]
["Q77","RNA","THE DUDLEY GROUP NHS FOUNDATION TRUST",125,3837,3.2577534532186606E-2,0.89600000000000002,0.08,87,25,2,1,9,1,2,123,0,0,0,0,0]
["Q77","RL4","THE ROYAL WOLVERHAMPTON NHS TRUST",1381,6327,0.2182709024814288,0.80448950036205646,0.11151339608979001,814,297,86,61,93,30,683,0,28,0,670,0,0]
["Q77","RRK","UNIVERSITY HOSPITALS BIRMINGHAM NHS FOUNDATION TRUST",760,6227,0.12204914083828489,0.87631578947368416,7.6315789473684212E-2,542,124,32,23,35,4,497,0,263,0,0,0,0]
["Q77","RKB","UNIVERSITY HOSPITALS COVENTRY AND WARWICKSHIRE NHS TRUST",1457,11158,0.13057895680229431,0.84145504461221687,0.10020590253946465,952,274,68,52,94,17,1374,0,22,0,0,61,0]
["Q77","RBK","WALSALL HEALTHCARE NHS TRUST",65,3614,1.7985611510791366E-2,0.89230769230769236,6.1538461538461542E-2,42,16,2,0,4,1,0,0,65,0,0,0,0]
["Q77","RWP","WORCESTERSHIRE ACUTE HOSPITALS NHS TRUST",1219,9698,0.12569601979789646,0.92042657916324855,4.3478260869565216E-2,845,277,38,23,30,6,0,0,1219,0,0,0,0]
["Q77","RLQ","WYE VALLEY NHS TRUST",508,2906,0.17481073640743289,0.83464566929133854,5.1181102362204724E-2,361,63,44,10,16,14,0,182,326,0,0,0,0]
["Q78","RC1","BEDFORD HOSPITAL NHS TRUST",600,3380,0.17751479289940827,0.84666666666666668,8.666666666666667E-2,364,144,33,15,37,7,325,0,0,0,275,0,0]
["Q78","RWH","EAST AND NORTH HERTFORDSHIRE NHS TRUST",1718,10621,0.16175501365219846,0.80034924330616997,0.12107101280558789,972,403,100,87,121,35,1060,0,202,0,456,0,0]
["Q78","RNQ","KETTERING GENERAL HOSPITAL NHS FOUNDATION TRUST",56,3633,1.5414258188824663E-2,0.9821428571428571,0,43,12,1,0,0,0,0,0,56,0,0,0,0]
["Q78","RC9","LUTON AND DUNSTABLE UNIVERSITY HOSPITAL NHS FOUNDATION TRUST",291,5725,5.0829694323144103E-2,0.90034364261168387,3.7800687285223365E-2,204,58,8,2,9,10,0,0,251,0,40,0,0]
["Q78","RD8","MILTON KEYNES UNIVERSITY HOSPITAL NHS FOUNDATION TRUST",169,6589,2.5648808620427985E-2,0.95857988165680474,1.7751479289940829E-2,139,23,1,0,3,3,0,1,167,0,0,1,0]
["Q78","RNS","NORTHAMPTON GENERAL HOSPITAL NHS TRUST",1414,9612,0.14710778193924262,0.83168316831683164,9.5473833097595467E-2,901,275,83,44,91,20,764,0,0,0,645,5,0]
["Q78","RWD","UNITED LINCOLNSHIRE HOSPITALS NHS TRUST",2097,8842,0.23716353766116263,0.8230805913209347,9.3466857415355264E-2,1246,480,127,88,108,48,1033,0,0,0,978,86,0]
["Q78","RWE","UNIVERSITY HOSPITALS OF LEICESTER NHS TRUST",1242,9449,0.13144248068578684,0.95088566827697263,1.7713365539452495E-2,943,238,29,10,12,10,0,530,711,0,0,1,0]
["Q78","RWG","WEST HERTFORDSHIRE HOSPITALS NHS TRUST",1570,8976,0.17491087344028519,0.96433121019108281,1.2738853503184714E-2,1106,408,28,9,11,8,0,0,1560,0,0,10,0]
["Q79","RDD","BASILDON AND THURROCK UNIVERSITY HOSPITALS NHS FOUNDATION TRUST",1513,7274,0.20800109980753367,0.71050892267019172,0.1797752808988764,662,413,125,100,172,41,1498,0,10,0,0,5,0]
["Q79","RGT","CAMBRIDGE UNIVERSITY HOSPITALS NHS FOUNDATION TRUST",1290,5443,0.23700165349990815,0.94263565891472867,3.4108527131782945E-2,957,259,27,20,24,3,0,0,16,1274,0,0,0]
["Q79","RDE","COLCHESTER HOSPITAL UNIVERSITY NHS FOUNDATION TRUST",561,4032,0.13913690476190477,0.79500891265597151,0.12477718360071301,353,93,37,25,45,8,561,0,0,0,0,0,0]
["Q79","RQQ","HINCHINGBROOKE HEALTH CARE NHS TRUST",482,2305,0.20911062906724512,0.94605809128630702,6.2240663900414933E-3,349,107,21,1,2,2,0,0,482,0,0,0,0]
["Q79","RGQ","IPSWICH HOSPITAL NHS TRUST",532,4775,0.11141361256544502,0.91541353383458646,5.4511278195488719E-2,405,82,11,15,14,5,0,17,225,0,0,69,221]
["Q79","RGP","JAMES PAGET UNIVERSITY HOSPITALS NHS FOUNDATION TRUST",584,4718,0.12378126324713862,0.89897260273972601,8.5616438356164379E-3,388,137,46,2,3,8,0,0,584,0,0,0,0]
["Q79","RQ8","MID ESSEX HOSPITAL SERVICES NHS TRUST",844,4980,0.16947791164658635,0.75118483412322279,0.13388625592417061,481,153,71,42,71,26,0,0,0,0,844,0,0]
["Q79","RM1","NORFOLK AND NORWICH UNIVERSITY HOSPITALS NHS FOUNDATION TRUST",494,7108,6.9499155880697799E-2,0.9251012145748988,4.2510121457489877E-2,397,60,12,8,13,4,0,0,494,0,0,0,0]
["Q79","RGN","PETERBOROUGH AND STAMFORD HOSPITALS NHS FOUNDATION TRUST",223,5689,3.919845315521181E-2,0.91031390134529144,3.1390134529147982E-2,173,30,8,4,3,5,0,0,62,0,0,161,0]
["Q79","RAJ","SOUTHEND UNIVERSITY HOSPITAL NHS FOUNDATION TRUST",804,4456,0.18043087971274685,0.84452736318407962,9.3283582089552244E-2,522,157,36,35,40,14,400,0,60,0,344,0,0]
["Q79","RQW","THE PRINCESS ALEXANDRA HOSPITAL NHS TRUST",628,4881,0.1286621593935669,0.94108280254777066,1.9108280254777069E-2,479,112,23,9,3,2,0,0,0,0,0,0,628]
["Q79","RCX","THE QUEEN ELIZABETH HOSPITAL, KING'S LYNN, NHS FOUNDATION TRUST",598,3027,0.19755533531549388,0.8511705685618729,6.8561872909698993E-2,356,153,27,13,28,21,0,0,597,0,0,1,0]
["Q79","RGR","WEST SUFFOLK NHS FOUNDATION TRUST",930,2988,0.3112449799196787,0.92365591397849467,1.6129032258064516E-2,627,232,55,7,8,1,7,43,880,0,0,0,0]
["Q80","RVJ","NORTH BRISTOL NHS TRUST",304,4594,6.6173269481932959E-2,0.96381578947368418,1.3157894736842105E-2,232,61,5,2,2,2,0,0,301,0,0,3,0]
["Q80","RBZ","NORTHERN DEVON HEALTHCARE NHS TRUST",30,2510,1.1952191235059761E-2,0.7,0.23333333333333334,17,4,2,3,4,0,0,9,21,0,0,0,0]
["Q80","RK9","PLYMOUTH HOSPITALS NHS TRUST",972,4822,0.20157610949813357,0.96707818930041156,9.2592592592592587E-3,682,258,16,6,3,7,0,813,158,0,0,1,0]
["Q80","REF","ROYAL CORNWALL HOSPITALS NHS TRUST",33,4089,8.0704328686720464E-3,0.87878787878787878,0.12121212121212122,26,3,0,1,3,0,0,0,33,0,0,0,0]
["Q80","RH8","ROYAL DEVON AND EXETER NHS FOUNDATION TRUST",424,5304,7.9939668174962286E-2,0.90330188679245282,4.716981132075472E-2,317,66,17,4,16,4,0,0,424,0,0,0,0]
["Q80","RBA","TAUNTON AND SOMERSET NHS FOUNDATION TRUST",471,3460,0.1361271676300578,0.9426751592356688,1.2738853503184714E-2,337,107,15,0,6,6,0,42,429,0,0,0,0]
["Q80","RA9","TORBAY AND SOUTH DEVON NHS FOUNDATION TRUST",58,3915,1.4814814814814815E-2,0.98275862068965514,1.7241379310344827E-2,51,6,0,1,0,0,0,0,58,0,0,0,0]
["Q80","RA7","UNIVERSITY HOSPITALS BRISTOL NHS FOUNDATION TRUST",1372,7687,0.17848315337582932,0.76603498542274051,0.11443148688046648,783,268,91,50,107,73,0,707,664,0,0,1,0]
["Q80","RA3","WESTON AREA HEALTH NHS TRUST",671,4044,0.16592482690405538,0.90760059612518629,1.0432190760059613E-2,566,43,17,2,5,38,0,0,671,0,0,0,0]
["Q80","RA4","YEOVIL DISTRICT HOSPITAL NHS FOUNDATION TRUST",209,2512,8.3200636942675155E-2,0.94736842105263153,2.3923444976076555E-2,179,19,6,0,5,0,3,1,205,0,0,0,0]
["Q81","RTK","ASHFORD AND ST PETER'S HOSPITALS NHS FOUNDATION TRUST",1133,5786,0.19581749049429659,0.86407766990291257,7.8552515445719326E-2,721,258,53,40,49,12,655,0,37,0,440,1,0]
["Q81","RXH","BRIGHTON AND SUSSEX UNIVERSITY HOSPITALS NHS TRUST",2590,11518,0.22486542802569889,0.88803088803088803,5.9845559845559844E-2,1899,401,106,61,94,29,1475,0,385,0,730,0,0]
["Q81","RN7","DARTFORD AND GRAVESHAM NHS TRUST",56,3838,1.4590932777488274E-2,0.8214285714285714,0.14285714285714285,31,15,2,3,5,0,0,0,56,0,0,0,0]
["Q81","RVV","EAST KENT HOSPITALS UNIVERSITY NHS FOUNDATION TRUST",3117,12421,0.25094597858465501,0.80590311196663456,0.11292909849213988,1850,662,209,141,211,44,2052,0,0,0,1065,0,0]
["Q81","RXC","EAST SUSSEX HEALTHCARE NHS TRUST",665,7447,8.9297703773331544E-2,0.90375939849624065,4.3609022556390979E-2,399,202,19,7,22,16,0,1,659,0,0,5,0]
["Q81","RDU","FRIMLEY HEALTH NHS FOUNDATION TRUST",2960,12577,0.23535024250616204,0.88817567567567568,4.8648648648648651E-2,1890,739,157,64,80,30,968,0,1990,0,0,2,0]
["Q81","RWF","MAIDSTONE AND TUNBRIDGE WELLS NHS TRUST",1753,8779,0.19968105706800318,0.88990302338847693,2.5099828864803195E-2,1074,486,63,25,19,86,0,0,1745,0,0,8,0]
["Q81","RPA","MEDWAY NHS FOUNDATION TRUST",932,5225,0.17837320574162679,0.72210300429184548,0.17167381974248927,442,231,76,55,105,23,369,0,0,0,549,14,0]
["Q81","RA2","ROYAL SURREY COUNTY HOSPITAL NHS FOUNDATION TRUST",793,3757,0.21107266435986158,0.8827238335435057,6.3051702395964693E-2,551,149,37,21,29,6,564,0,0,0,229,0,0]
["Q81","RTP","SURREY AND SUSSEX HEALTHCARE NHS TRUST",990,4966,0.19935561820378575,0.96868686868686871,1.2121212121212121E-2,795,164,16,3,9,3,0,0,921,0,0,69,0]
["Q81","RYR","WESTERN SUSSEX HOSPITALS NHS FOUNDATION TRUST",1651,8736,0.18898809523809523,0.90611750454270135,6.9049061175045431E-2,1253,243,27,42,72,14,655,3,989,0,0,4,0]
["Q82","RXQ","BUCKINGHAMSHIRE HEALTHCARE NHS TRUST",443,4807,9.2157270646973169E-2,0.963882618510158,1.8058690744920992E-2,336,91,8,3,5,0,0,443,0,0,0,0,0]
["Q82","RTE","GLOUCESTERSHIRE HOSPITALS NHS FOUNDATION TRUST",81,5468,1.4813460131675201E-2,0.75308641975308643,0.18518518518518517,48,13,2,4,11,3,0,0,80,0,0,1,0]
["Q82","RN3","GREAT WESTERN HOSPITALS NHS FOUNDATION TRUST",773,8109,9.5326180786780124E-2,0.90815006468305304,4.2690815006468305E-2,535,167,14,11,22,24,0,0,765,0,0,8,0]
["Q82","RTH","OXFORD UNIVERSITY HOSPITALS NHS FOUNDATION TRUST",1508,4876,0.30926989335520921,0.84416445623342173,8.8196286472148541E-2,958,315,81,61,72,21,1125,0,0,0,383,0,0]
["Q82","RHW","ROYAL BERKSHIRE NHS FOUNDATION TRUST",331,6244,5.3010890454836646E-2,0.91842900302114805,5.4380664652567974E-2,254,50,9,9,9,0,0,0,329,0,0,2,0]
["Q82","RD1","ROYAL UNITED HOSPITALS BATH NHS FOUNDATION TRUST",317,4312,7.3515769944341378E-2,0.96214511041009465,1.8927444794952682E-2,257,48,4,2,4,2,0,0,309,0,0,7,1]
["Q82","RNZ","SALISBURY NHS FOUNDATION TRUST",292,3187,9.1622215249450897E-2,0.9726027397260274,3.4246575342465752E-3,245,39,4,0,1,3,0,0,0,292,0,0,0]

{"sheet":"Sites","index":4,"n_rows":244,"n_cols":16,"rows_kept":244,"cut":false,"hidden":false,"merged":[[2,5,3,5],[2,0,3,0],[2,1,3,1],[2,2,3,2],[2,3,3,3],[2,4,3,4],[2,6,3,6],[2,7,3,7],[2,8,3,8],[2,9,3,9],[2,10,2,15]]}
[]
[]
["Region (Geo) Code","Trust Code","Trust Name","Site Code","Site Name","Total Responses","Total Eligible","Response Rate","Percentage Recommended","Percentage Not  Recommended","Breakdown of Responses"]
[null,null,null,null,null,null,null,null,null,null,"Extremely Likely","Likely","Neither","Unlikely","Extremely Unlikely","Don't Know"]
[null,null,null,null,"England",142975,1012414,0.1412218716849036,0.87847525791222236,6.2451477531036893E-2,95046,30554,5987,3615,5314,2459]
[null,null,null,null,"Selection (excluding suppressed data)",{"$f":"SUBTOTAL(9,F7:F999)","v":142975},{"$f":"SUBTOTAL(9,G7:G999)","v":1012414},{"$f":"IFERROR(F6/G6,\"NA\")","v":0.1412218716849036},{"$f":"IFERROR((K6+L6)/F6, \"-\")","v":0.87847525791222236},{"$f":"IFERROR((N6+O6)/F6, \"-\")","v":6.2451477531036893E-2},{"$f":"SUBTOTAL(9,K7:K999)","v":95046},{"$f":"SUBTOTAL(9,L7:L999)","v":30554},5987,3615,5314,2459]
["Q70","RBD","DORSET COUNTY HOSPITAL NHS FOUNDATION TRUST","RBD01","Dorset County Hospital - RBD01",485,2334,0.20779777206512426,0.85154639175257729,7.2164948453608241E-2,319,94,25,17,18,12]
["Q70","RN5","HAMPSHIRE HOSPITALS NHS FOUNDATION TRUST","RN542","Andover War Memorial Hospital - RN542",337,1378,0.24455732946298983,0.91691394658753711,5.3412462908011868E-2,251,58,7,8,10,3]
["Q70","RN5","HAMPSHIRE HOSPITALS NHS FOUNDATION TRUST","RN506","Basingstoke and North Hampshire Hospital - RN506",663,3212,0.20641344956413449,0.88235294117647056,5.4298642533936653E-2,471,114,36,17,19,6]
["Q70","RN5","HAMPSHIRE HOSPITALS NHS FOUNDATION TRUST","RN541","Royal Hampshire County Hospital - RN541",598,2820,0.21205673758865248,0.89130434782608692,5.6856187290969896E-2,409,124,26,15,19,5]
["Q70","R1F","ISLE OF WIGHT NHS TRUST","R1F01","St Mary's Hospital - R1F01",119,2754,4.3209876543209874E-2,0.88235294117647056,4.2016806722689079E-2,76,29,6,0,5,3]
["Q70","RD3","POOLE HOSPITAL NHS FOUNDATION TRUST","RD304","Poole General Hospital NHS Trust HQ - RD304",649,3166,0.20499052432090967,0.86748844375963019,6.9337442218798145E-2,426,137,25,23,22,16]
["Q70","RHU","PORTSMOUTH HOSPITALS NHS TRUST","RHU03","Queen Alexandra Hospital - RHU03",1514,7569,0.20002642356982428,0.92602377807133418,3.4346103038309116E-2,1107,295,30,26,26,30]
["Q70","RHU","PORTSMOUTH HOSPITALS NHS TRUST","RHUXXX","WiC_MIU - RHUXXX",442,1760,0.25113636363636366,0.9660633484162896,9.0497737556561094E-3,370,57,6,4,0,5]
["Q70","RDZ","THE ROYAL BOURNEMOUTH AND CHRISTCHURCH HOSPITALS NHS FOUNDATION TRUST","RDZ20","Royal Bournemouth General Hospital - RDZ20",382,5787,6.6010022464143767E-2,0.93193717277486909,3.4031413612565446E-2,323,33,9,4,9,4]
["Q70","RHM","UNIVERSITY HOSPITAL SOUTHAMPTON NHS FOUNDATION TRUST","RHM01","Southampton General Hospital - RHM01",990,6375,0.15529411764705883,0.91212121212121211,2.7272727272727271E-2,769,134,34,17,10,26]
["Q71","RF4","BARKING, HAVERING AND REDBRIDGE UNIVERSITY HOSPITALS NHS TRUST","RF4DG","King George Hospital - RF4DG",225,3950,5.6962025316455694E-2,0.94222222222222218,0.04,134,78,4,4,5,0]
["Q71","RF4","BARKING, HAVERING AND REDBRIDGE UNIVERSITY HOSPITALS NHS TRUST","RF4QH","Queen's Hospital - RF4QH",1082,8418,0.12853409360893323,0.83826247689463951,7.5785582255083181E-2,563,344,67,32,50,26]
["Q71","R1H","BARTS HEALTH NHS TRUST","R1HNH","Newham General Hospital - R1HNH",107,11022,9.7078570132462343E-3,0.91588785046728971,4.6728971962616821E-2,68,30,4,1,4,0]
["Q71","R1H","BARTS HEALTH NHS TRUST","R1HM0","St Bartholomew's Hospital - R1HM0",44,578,7.6124567474048443E-2,0.97727272727272729,2.2727272727272728E-2,37,6,0,1,0,0]
["Q71","R1H","BARTS HEALTH NHS TRUST","R1H12","The Royal London Hospital - R1H12",101,12271,8.230788036834814E-3,0.8910891089108911,4.9504950495049507E-2,61,29,4,2,3,2]
["Q71","R1H","BARTS HEALTH NHS TRUST","R1HKH","Whipps Cross University Hospital - R1HKH",189,12255,1.5422276621787025E-2,0.91534391534391535,5.8201058201058198E-2,137,36,4,1,10,1]
["Q71","RQM","CHELSEA AND WESTMINSTER HOSPITAL NHS FOUNDATION TRUST","RQM01","Chelsea and Westminster Hospital - RQM01",551,2263,0.24348210340256296,0.88203266787658807,7.8039927404718698E-2,404,82,17,16,27,5]
["Q71","RQM","CHELSEA AND WESTMINSTER HOSPITAL NHS FOUNDATION TRUST","RQM91","West Middlesex University Hospital - RQM91",602,2716,0.22164948453608246,0.91362126245847175,4.9833887043189369E-2,437,113,19,14,16,3]
["Q71","RQM","CHELSEA AND WESTMINSTER HOSPITAL NHS FOUNDATION TRUST","RQMXXX","WiC_MIU - RQMXXX",1793,8750,0.20491428571428572,0.8393753485778026,7.6965978806469604E-2,1048,457,129,55,83,21]
["Q71","RJ6","CROYDON HEALTH SERVICES NHS TRUST","RJ611","Mayday University Hospital - RJ611",662,3862,0.17141377524598653,0.93504531722054385,1.9637462235649546E-2,424,195,24,7,6,6]
["Q71","RVR","EPSOM AND ST HELIER UNIVERSITY HOSPITALS NHS TRUST","RVR50","Epsom Hospital - RVR50",328,3620,9.0607734806629828E-2,0.95121951219512191,3.6585365853658534E-2,259,53,4,5,7,0]
["Q71","RVR","EPSOM AND ST HELIER UNIVERSITY HOSPITALS NHS TRUST","RVR05","St Helier Hospital - RVR05",384,5047,7.6084802853180103E-2,0.89583333333333337,6.25E-2,253,91,13,10,14,3]
["Q71","RJ1","GUY'S AND ST THOMAS' NHS FOUNDATION TRUST","RJ122","St Thomas' Hospital - RJ122",1367,7715,0.17718729747245626,0.82589612289685443,8.3394294074615946E-2,858,271,54,50,64,70]
["Q71","RJ1","GUY'S AND ST THOMAS' NHS FOUNDATION TRUST","RJ1XXX","WiC_MIU - RJ1XXX",490,2716,0.18041237113402062,0.89591836734693875,7.7551020408163265E-2,372,67,9,16,22,4]
["Q71","RQX","HOMERTON UNIVERSITY HOSPITAL NHS FOUNDATION TRUST","RQXM1","Homerton University Hospital - RQXM1",1159,8174,0.1417910447761194,0.96203623813632444,1.6393442622950821E-2,757,358,18,7,12,7]
["Q71","RYJ","IMPERIAL COLLEGE HEALTHCARE NHS TRUST","RYJ02","Charing Cross Hospital - RYJ02",154,1719,8.9586969168121006E-2,0.83116883116883122,5.1948051948051951E-2,96,32,3,5,3,15]
["Q71","RYJ","IMPERIAL COLLEGE HEALTHCARE NHS TRUST","RYJ01","St Mary's Hospital (HQ) - RYJ01",518,4212,0.12298195631528964,0.91891891891891897,1.7374517374517374E-2,313,163,21,2,7,12]
["Q71","RYJ","IMPERIAL COLLEGE HEALTHCARE NHS TRUST","RYJ07","Western Eye Hospital - RYJ07",473,3759,0.12583133812184091,0.97463002114164909,1.2684989429175475E-2,327,134,4,4,2,2]
["Q71","RYJ","IMPERIAL COLLEGE HEALTHCARE NHS TRUST","RYJXXX","WiC_MIU - RYJXXX",1583,9864,0.16048256285482562,0.98926089703095388,8.843967150979154E-3,1280,286,1,3,11,2]
["Q71","RJZ","KING'S COLLEGE HOSPITAL NHS FOUNDATION TRUST","RJZ33","Kings College Dental Hospital - RJZ33",404,1213,0.33305853256389117,0.94059405940594054,3.4653465346534656E-2,305,75,4,9,5,6]
["Q71","RJZ","KING'S COLLEGE HOSPITAL NHS FOUNDATION TRUST","RJZ01","King's College Hospital (Denmark Hill) - RJZ01",965,6464,0.14928836633663367,0.82383419689119175,8.9119170984455959E-2,577,218,46,28,58,38]
["Q71","RJZ","KING'S COLLEGE HOSPITAL NHS FOUNDATION TRUST","RJZ30","Princess Royal University Hospital - RJZ30",515,2340,0.22008547008547008,0.79611650485436891,9.9029126213592236E-2,300,110,37,20,31,17]
["Q71","RAX","KINGSTON HOSPITAL NHS FOUNDATION TRUST","RAX01","Kingston Hospital - RAX01",157,6305,2.4900872323552734E-2,0.96815286624203822,0,114,38,4,0,0,1]
["Q71","RJ2","LEWISHAM AND GREENWICH NHS TRUST","RJ231","Queen Elizabeth Hospital - RJ231",689,5406,0.12745098039215685,0.95065312046444117,1.4513788098693759E-2,470,185,22,3,7,2]
["Q71","RJ2","LEWISHAM AND GREENWICH NHS TRUST","RJ224","University Hospital Lewisham - RJ224",930,8287,0.11222396524677206,0.96129032258064517,1.5053763440860216E-2,682,212,20,8,6,2]
["Q71","R1K","LONDON NORTH WEST HEALTHCARE NHS TRUST","R1K04","Ealing Hospital - R1K04",383,3191,0.12002507051081165,0.94255874673629247,2.6109660574412531E-2,257,104,6,5,5,6]
["Q71","R1K","LONDON NORTH WEST HEALTHCARE NHS TRUST","R1K01","Northwick Park Hospital - R1K01",361,7483,4.8242683415742352E-2,0.90581717451523547,5.5401662049861494E-2,235,92,10,8,12,4]
["Q71","R1K","LONDON NORTH WEST HEALTHCARE NHS TRUST","R1K11","Urgent Care Centre Northwick Park Hospital - R1K11",186,8012,2.3215177234148777E-2,0.95161290322580649,4.3010752688172046E-2,132,45,1,4,4,0]
["Q71","RP6","MOORFIELDS EYE HOSPITAL NHS FOUNDATION TRUST","RP601","Moorfields Eye Hospital (City Road) - RP601",1462,8679,0.16845258670353727,0.94733242134062923,1.2311901504787962E-2,1128,257,35,9,9,24]
["Q71","RAP","NORTH MIDDLESEX UNIVERSITY HOSPITAL NHS TRUST","RAPNM","North Middlesex Hospital - RAPNM",616,9854,6.2512685203978083E-2,0.68831168831168832,0.15422077922077923,195,229,70,51,44,27]
["Q71","RAL","ROYAL FREE LONDON NHS FOUNDATION TRUST","RAL26","Barnet Hospital - RAL26",2114,4972,0.42518101367658889,0.85146641438032167,6.5752128666035956E-2,1024,776,175,80,59,0]
["Q71","RAL","ROYAL FREE LONDON NHS FOUNDATION TRUST","RAL01","Royal Free Hospital - RAL01",1831,4755,0.38506834910620402,0.84434735117422177,7.2091753140360454E-2,919,627,153,65,67,0]
["Q71","RJ7","ST GEORGE'S UNIVERSITY HOSPITALS NHS FOUNDATION TRUST","RJ701","St George's Hospital (Tooting) - RJ701",1462,5824,0.25103021978021978,0.82421340629274964,0.11491108071135431,914,291,70,61,107,19]
["Q71","RJ7","ST GEORGE'S UNIVERSITY HOSPITALS NHS FOUNDATION TRUST","RJ7XXX","WiC_MIU - RJ7XXX",50,1188,4.208754208754209E-2,0.76,0.14000000000000001,29,9,4,2,5,1]
["Q71","RAS","THE HILLINGDON HOSPITALS NHS FOUNDATION TRUST","RAS01","Hillingdon Hospital - RAS01",580,2756,0.2104499274310595,0.93793103448275861,2.0689655172413793E-2,400,144,19,3,9,5]
["Q71","RAS","THE HILLINGDON HOSPITALS NHS FOUNDATION TRUST","RAS02","Mount Vernon Hospital Site - RAS02",45,2274,1.9788918205804751E-2,0.9555555555555556,2.2222222222222223E-2,29,14,0,1,0,1]
["Q71","RKE","THE WHITTINGTON HOSPITAL NHS TRUST","RKEQ4","The Whittington Hospital - RKEQ4",417,6305,6.6137985725614593E-2,0.95923261390887293,2.8776978417266189E-2,282,118,3,4,8,2]
["Q71","RRV","UNIVERSITY COLLEGE LONDON HOSPITALS NHS FOUNDATION TRUST","RRV03","University College Hospital - RRV03",2525,9254,0.27285498162956562,0.95128712871287124,2.297029702970297E-2,1904,498,46,29,29,19]
["Q72","RCF","AIREDALE NHS FOUNDATION TRUST","RCF22","Airedale General Hospital - RCF22",492,3469,0.14182761602767369,0.94512195121951215,2.8455284552845527E-2,354,111,9,9,5,4]
["Q72","RFF","BARNSLEY HOSPITAL NHS FOUNDATION TRUST","RFFAA","Barnsley Hospital NHS Foundation Trust HQ - RFFAA",720,4748,0.15164279696714406,0.9375,3.1944444444444442E-2,532,143,19,8,15,3]
["Q72","RAE","BRADFORD TEACHING HOSPITALS NHS FOUNDATION TRUST","RAE01","Bradford Royal Infirmary - RAE01",161,8583,1.8758010019806596E-2,0.72670807453416153,0.19254658385093168,67,50,13,10,21,0]
["Q72","RWY","CALDERDALE AND HUDDERSFIELD NHS FOUNDATION TRUST","RWY02","Calderdale Royal Hospital - RWY02",501,4790,0.1045929018789144,0.90019960079840322,6.7864271457085831E-2,363,88,12,12,22,4]
["Q72","RWY","CALDERDALE AND HUDDERSFIELD NHS FOUNDATION TRUST","RWY01","Huddersfield Royal Infirmary - RWY01",410,4778,8.5809962327333608E-2,0.81463414634146336,0.12439024390243902,260,74,20,14,37,5]
["Q72","RP5","DONCASTER AND BASSETLAW HOSPITALS NHS FOUNDATION TRUST","RP5BA","Bassetlaw Hospital - RP5BA",135,3290,4.1033434650455926E-2,0.87407407407407411,8.1481481481481488E-2,103,15,4,7,4,2]
["Q72","RP5","DONCASTER AND BASSETLAW HOSPITALS NHS FOUNDATION TRUST","RP5DR","Doncaster Royal Infirmary - RP5DR",368,6213,5.9230645420891681E-2,0.81793478260869568,7.3369565217391311E-2,201,100,19,13,14,21]
["Q72","RP5","DONCASTER AND BASSETLAW HOSPITALS NHS FOUNDATION TRUST","RP5XXX","WiC_MIU - RP5XXX",42,1905,2.2047244094488189E-2,0.97619047619047616,2.3809523809523808E-2,37,4,0,1,0,0]
["Q72","RCD","HARROGATE AND DISTRICT NHS FOUNDATION TRUST","RCD01","Harrogate District Hospital - RCD01",346,2329,0.14856161442679261,0.88728323699421963,6.9364161849710976E-2,229,78,12,11,13,3]
["Q72","RCD","HARROGATE AND DISTRICT NHS FOUNDATION TRUST","RCDXXX","WiC_MIU - RCDXXX",0,626,0,"NA","NA",0,0,0,0,0,0]
["Q72","RWA","HULL AND EAST YORKSHIRE HOSPITALS NHS TRUST","RWA01","Hull Royal Infirmary - RWA01",352,8328,4.226705091258405E-2,0.87784090909090906,7.1022727272727279E-2,228,81,7,6,19,11]
["Q72","RR8","LEEDS TEACHING HOSPITALS NHS TRUST","RR801","Leeds General Infirmary - RR801",1586,6470,0.24513137557959813,0.88839848675914246,5.0441361916771753E-2,1041,368,55,31,49,42]
["Q72","RR8","LEEDS TEACHING HOSPITALS NHS TRUST","RR813","St James's University Hospital - RR813",1338,3547,0.37722018607273755,0.84005979073243642,7.7727952167414044E-2,802,322,64,43,61,46]
["Q72","RXF","MID YORKSHIRE HOSPITALS NHS TRUST","RXF10","Dewsbury and District Hospital - RXF10",2159,6166,0.35014596172559198,0.94210282538212131,2.3158869847151459E-2,1522,512,51,27,23,24]
["Q72","RXF","MID YORKSHIRE HOSPITALS NHS TRUST","RXF05","Pinderfields General Hospital - RXF05",486,5263,9.23427702831085E-2,0.92181069958847739,4.5267489711934158E-2,350,98,12,12,10,4]
["Q72","RXF","MID YORKSHIRE HOSPITALS NHS TRUST","RXF03","Pontefract General Infirmary - RXF03",569,3285,0.17321156773211568,0.97891036906854134,5.272407732864675E-3,453,104,6,2,1,3]
["Q72","RJL","NORTHERN LINCOLNSHIRE AND GOOLE NHS FOUNDATION TRUST","RJL30","Diana, Princess Of Wales Hospital - RJL30",594,3728,0.15933476394849785,0.8737373737373737,4.3771043771043773E-2,362,157,36,10,16,13]
["Q72","RJL","NORTHERN LINCOLNSHIRE AND GOOLE NHS FOUNDATION TRUST","RJL32","Scunthorpe General Hospital - RJL32",399,3640,0.10961538461538461,0.8571428571428571,7.2681704260651625E-2,219,123,23,10,19,5]
["Q72","RJL","NORTHERN LINCOLNSHIRE AND GOOLE NHS FOUNDATION TRUST","RJLXXX","WiC_MIU - RJLXXX",160,1450,0.1103448275862069,0.90625,4.3749999999999997E-2,123,22,4,3,4,4]
["Q72","RCU","SHEFFIELD CHILDREN'S NHS FOUNDATION TRUST","RCUEF","Sheffield Children's Hospital - RCUEF",60,4387,1.3676772281741509E-2,0.91666666666666663,0.05,44,11,1,1,2,1]
["Q72","RHQ","SHEFFIELD TEACHING HOSPITALS NHS FOUNDATION TRUST","RHQNG","Northern General Hospital - RHQNG",1086,5658,0.19194061505832449,0.7965009208103131,0.11141804788213629,640,225,69,47,74,31]
["Q72","RHQ","SHEFFIELD TEACHING HOSPITALS NHS FOUNDATION TRUST","RHQHH","Royal Hallamshire Hospital - RHQHH",194,601,0.32279534109816971,0.95876288659793818,1.0309278350515464E-2,155,31,2,1,1,4]
["Q72","RHQ","SHEFFIELD TEACHING HOSPITALS NHS FOUNDATION TRUST","RHQXXX","WiC_MIU - RHQXXX",292,1341,0.21774794929157346,0.89383561643835618,4.1095890410958902E-2,209,52,12,8,4,7]
["Q72","RFR","THE ROTHERHAM NHS FOUNDATION TRUST","RFRPA","Rotherham District General Hospital - RFRPA",455,4625,9.8378378378378373E-2,0.85054945054945053,8.3516483516483511E-2,259,128,22,18,20,8]
["Q72","RCB","YORK TEACHING HOSPITAL NHS FOUNDATION TRUST","RCBCA","Scarborough General Hospital - RCBCA",116,2394,4.8454469507101083E-2,0.7931034482758621,0.13793103448275862,74,18,6,7,9,2]
["Q72","RCB","YORK TEACHING HOSPITAL NHS FOUNDATION TRUST","RCB55","York Hospital - RCB55",354,4812,7.3566084788029923E-2,0.82203389830508478,0.12429378531073447,239,52,18,15,29,1]
["Q73","RXL","BLACKPOOL TEACHING HOSPITALS NHS FOUNDATION TRUST","RXL01","Blackpool Victoria Hospital - RXL01",1137,5736,0.19822175732217573,0.92612137203166223,2.9023746701846966E-2,846,207,26,8,25,25]
["Q73","RMC","BOLTON NHS FOUNDATION TRUST","RMC01","Royal Bolton Hospital - RMC01",1125,5590,0.20125223613595708,0.84266666666666667,9.5111111111111105E-2,744,204,50,44,63,20]
["Q73","RW3","CENTRAL MANCHESTER UNIVERSITY HOSPITALS NHS FOUNDATION TRUST","RW3RE","Manchester Royal Eye Hospital - RW3RE",363,2011,0.18050721034311287,0.95041322314049592,2.4793388429752067E-2,289,56,8,1,8,1]
["Q73","RW3","CENTRAL MANCHESTER UNIVERSITY HOSPITALS NHS FOUNDATION TRUST","RW3MR","Manchester Royal Infirmary - RW3MR",1123,7502,0.14969341508930953,0.85396260017809444,9.1718610863757793E-2,765,194,55,41,62,6]
["Q73","RW3","CENTRAL MANCHESTER UNIVERSITY HOSPITALS NHS FOUNDATION TRUST","RW3RC","Royal Manchester Children's Hospital - RW3RC",169,3337,5.0644291279592447E-2,0.88165680473372776,1.1834319526627219E-2,104,45,13,0,2,5]
["Q73","RW3","CENTRAL MANCHESTER UNIVERSITY HOSPITALS NHS FOUNDATION TRUST","RW3SM","St Mary's Hospital - RW3SM",79,879,8.987485779294653E-2,0.96202531645569622,0,65,11,1,0,0,2]
["Q73","RW3","CENTRAL MANCHESTER UNIVERSITY HOSPITALS NHS FOUNDATION TRUST","RW3TR","Trafford General Hospital - RW3TR",234,2298,0.10182767624020887,0.94871794871794868,1.7094017094017096E-2,169,53,7,1,3,1]
["Q73","RW3","CENTRAL MANCHESTER UNIVERSITY HOSPITALS NHS FOUNDATION TRUST","RW3DH","University Dental Hospital - RW3DH",35,231,0.15151515151515152,0.97142857142857142,0,26,8,1,0,0,0]
["Q73","RXR","EAST LANCASHIRE HOSPITALS NHS TRUST","RXR20","Royal Blackburn Hospital - RXR20",2106,8410,0.25041617122473248,0.8466286799620133,9.4017094017094016E-2,1289,494,99,71,127,26]
["Q73","RXN","LANCASHIRE TEACHING HOSPITALS NHS FOUNDATION TRUST","RXN01","Chorley and South Ribble Hospital - RXN01",583,2879,0.20250086835706843,0.87307032590051459,6.0034305317324184E-2,396,113,31,17,18,8]
["Q73","RXN","LANCASHIRE TEACHING HOSPITALS NHS FOUNDATION TRUST","RXN02","Royal Preston Hospital - RXN02",659,3698,0.17820443482963763,0.8163884673748103,0.1062215477996965,412,126,36,27,43,15]
["Q73","RW6","PENNINE ACUTE HOSPITALS NHS TRUST","RW601","Fairfield General Hospital - RW601",949,4597,0.20643898194474658,0.83983140147523705,7.2708113804004215E-2,571,226,61,25,44,22]
["Q73","RW6","PENNINE ACUTE HOSPITALS NHS TRUST","RW602","North Manchester General Hospital - RW602",1145,6691,0.17112539231803917,0.81048034934497815,0.10393013100436681,649,279,82,45,74,16]
["Q73","RW6","PENNINE ACUTE HOSPITALS NHS TRUST","RW604","Rochdale Infirmary - RW604",751,4145,0.18118214716525935,0.82822902796271636,8.3888149134487347E-2,434,188,53,24,39,13]
["Q73","RW6","PENNINE ACUTE HOSPITALS NHS TRUST","RW603","Royal Oldham Hospital - RW603",1303,6751,0.19300844319360094,0.82732156561780501,9.8234842670759784E-2,789,289,77,48,80,20]
["Q73","RM3","SALFORD ROYAL NHS FOUNDATION TRUST","RM301","Salford Royal - RM301",983,4052,0.24259624876604147,0.91556459816887081,3.9674465920651068E-2,736,164,35,18,21,9]
["Q73","RWJ","STOCKPORT NHS FOUNDATION TRUST","RWJ09","Stepping Hill Hospital - RWJ09",1113,5300,0.21,0.8966756513926325,4.9415992812219228E-2,815,183,48,22,33,12]
["Q73","RMP","TAMESIDE HOSPITAL NHS FOUNDATION TRUST","RMP01","Tameside General Hospital - RMP01",1386,5437,0.25491999264300164,0.83333333333333337,9.3795093795093792E-2,747,408,78,40,90,23]
["Q73","RM2","UNIVERSITY HOSPITAL OF SOUTH MANCHESTER NHS FOUNDATION TRUST","RM202","Wythenshawe Hospital - RM202",1067,5208,0.20487711213517665,0.86129334582942829,8.0599812558575443E-2,710,209,44,39,47,18]
["Q73","RRF","WRIGHTINGTON, WIGAN AND LEIGH NHS FOUNDATION TRUST","RRF02","Royal Albert Edward Infirmary - RRF02",1125,6568,0.17128501827040196,0.9555555555555556,1.3333333333333334E-2,842,233,29,7,8,6]
["Q74","RLN","CITY HOSPITALS SUNDERLAND NHS FOUNDATION TRUST","RLNGM","Sunderland Eye Infirmary - RLNGM",575,2112,0.2722537878787879,0.97739130434782606,3.4782608695652175E-3,490,72,6,1,1,5]
["Q74","RLN","CITY HOSPITALS SUNDERLAND NHS FOUNDATION TRUST","RLNGL","Sunderland Royal Hospital - RLNGL",683,3950,0.17291139240506329,0.96632503660322111,1.0248901903367497E-2,528,132,11,5,2,5]
["Q74","RLN","CITY HOSPITALS SUNDERLAND NHS FOUNDATION TRUST","RLNXXX","WiC_MIU - RLNXXX",221,2046,0.10801564027370479,0.9773755656108597,1.3574660633484163E-2,176,40,2,1,2,0]
["Q74","RXP","COUNTY DURHAM AND DARLINGTON NHS FOUNDATION TRUST","RXPDA","Darlington Memorial Hospital - RXPDA",320,2875,0.11130434782608696,0.88437500000000002,2.8125000000000001E-2,208,75,12,4,5,16]
["Q74","RXP","COUNTY DURHAM AND DARLINGTON NHS FOUNDATION TRUST","RXPCP","University Hospital Of North Durham - RXPCP",589,2949,0.19972872160054256,0.86587436332767398,3.9049235993208829E-2,371,139,21,9,14,35]
["Q74","RXP","COUNTY DURHAM AND DARLINGTON NHS FOUNDATION TRUST","RXPXXX","WiC_MIU - RXPXXX",1926,12923,0.14903660140834171,0.93509865005192105,1.2461059190031152E-2,1379,422,22,16,8,79]
["Q74","RR7","GATESHEAD HEALTH NHS FOUNDATION TRUST","RR7ER","Dunston Hill Hospital - RR7ER",1750,4938,0.35439449169704335,0.94799999999999995,2.5142857142857144E-2,1235,424,43,13,31,4]
["Q74","RNL","NORTH CUMBRIA UNIVERSITY HOSPITALS NHS TRUST","RNLAY","Cumberland Infirmary - RNLAY",48,2741,1.7511856986501276E-2,0.79166666666666663,0.10416666666666667,19,19,4,3,2,1]
["Q74","RNL","NORTH CUMBRIA UNIVERSITY HOSPITALS NHS TRUST","RNLBX","West Cumberland Hospital - RNLBX",36,2116,1.7013232514177693E-2,0.83333333333333337,5.5555555555555552E-2,19,11,4,1,1,0]
["Q74","RVW","NORTH TEES AND HARTLEPOOL NHS FOUNDATION TRUST","RVWAE","University Hospital Of North Tees - RVWAE",103,2856,3.606442577030812E-2,0.89320388349514568,2.9126213592233011E-2,74,18,5,2,1,3]
["Q74","RVW","NORTH TEES AND HARTLEPOOL NHS FOUNDATION TRUST","RVWXXX","WiC_MIU - RVWXXX",175,955,0.18324607329842932,0.96571428571428575,1.7142857142857144E-2,138,31,2,1,2,1]
["Q74","RTF","NORTHUMBRIA HEALTHCARE NHS FOUNDATION TRUST","RTFDR","Hexham General Hospital - RTFDR",22,1027,2.1421616358325218E-2,0.95454545454545459,0,16,5,1,0,0,0]
["Q74","RTF","NORTHUMBRIA HEALTHCARE NHS FOUNDATION TRUST","RTFFS","North Tyneside General Hospital - RTFFS",17,2633,6.4565134827193312E-3,0.76470588235294112,5.8823529411764705E-2,9,4,2,1,0,1]
["Q74","RTF","NORTHUMBRIA HEALTHCARE NHS FOUNDATION TRUST","RTF86","The Northumbria - RTF86",23,3629,6.3378341140810143E-3,0.86956521739130432,4.3478260869565216E-2,14,6,2,1,0,0]
["Q74","RTF","NORTHUMBRIA HEALTHCARE NHS FOUNDATION TRUST","RTFED","Wansbeck Hospital - RTFED",19,2334,8.1405312767780635E-3,0.89473684210526316,5.2631578947368418E-2,11,6,1,0,1,0]
["Q74","RTF","NORTHUMBRIA HEALTHCARE NHS FOUNDATION TRUST","RTFXXX","WiC_MIU - RTFXXX",140,1970,7.1065989847715741E-2,0.98571428571428577,0,114,24,2,0,0,0]
["Q74","RTR","SOUTH TEES HOSPITALS NHS FOUNDATION TRUST","RTR45","Friarage Hospital Site - RTR45",299,1380,0.21666666666666667,0.93311036789297663,2.0066889632107024E-2,235,44,11,4,2,3]
["Q74","RTR","SOUTH TEES HOSPITALS NHS FOUNDATION TRUST","RTRAT","The James Cook University Hospital - RTRAT",1225,6840,0.179093567251462,0.88653061224489793,5.7142857142857141E-2,901,185,39,36,34,30]
["Q74","RTR","SOUTH TEES HOSPITALS NHS FOUNDATION TRUST","RTRXXX","WiC_MIU - RTRXXX",76,1865,4.0750670241286861E-2,0.88157894736842102,2.6315789473684209E-2,55,12,2,2,0,5]
["Q74","RE9","SOUTH TYNESIDE NHS FOUNDATION TRUST","RE9GA","South Tyneside District Hospital - RE9GA",282,2704,0.10428994082840237,0.92553191489361697,4.2553191489361701E-2,209,52,2,5,7,7]
["Q74","RTD","THE NEWCASTLE UPON TYNE HOSPITALS NHS FOUNDATION TRUST","RTD02","The Royal Victoria Infirmary - RTD02",105,12841,8.176933260649482E-3,0.88571428571428568,6.6666666666666666E-2,84,9,5,1,6,0]
["Q74","RTX","UNIVERSITY HOSPITALS OF MORECAMBE BAY NHS FOUNDATION TRUST","RTXBU","Furness General Hospital - RTXBU",570,1637,0.3481979230299328,0.88421052631578945,4.912280701754386E-2,380,124,19,18,10,19]
["Q74","RTX","UNIVERSITY HOSPITALS OF MORECAMBE BAY NHS FOUNDATION TRUST","RTX02","Royal Lancaster Infirmary - RTX02",568,2370,0.23966244725738398,0.87852112676056338,7.746478873239436E-2,411,88,13,19,25,12]
["Q75","REM","AINTREE UNIVERSITY HOSPITAL NHS FOUNDATION TRUST","REM21","University Hospital Aintree - REM21",845,3933,0.21484871599288075,0.86508875739644975,6.8639053254437865E-2,590,141,41,24,34,15]
["Q75","RBS","ALDER HEY CHILDREN'S NHS FOUNDATION TRUST","RBS25","Alder Hey Children's NHS - RBS25",8,4534,1.7644464049404499E-3,1,0,7,1,0,0,0,0]
["Q75","RJR","COUNTESS OF CHESTER HOSPITAL NHS FOUNDATION TRUST","RJR05","Countess Of Chester Hospital - RJR05",646,4239,0.15239443264920971,0.81888544891640869,0.1130030959752322,430,99,30,30,43,14]
["Q75","RJN","EAST CHESHIRE NHS TRUST","RJN63","Congleton War Memorial Hospital - RJN63",118,489,0.24130879345603273,0.93220338983050843,2.5423728813559324E-2,98,12,4,2,1,1]
["Q75","RJN","EAST CHESHIRE NHS TRUST","RJN71","Macclesfield District General Hospital - RJN71",712,2257,0.31546300398759414,0.8946629213483146,5.4775280898876406E-2,521,116,26,16,23,10]
["Q75","REP","LIVERPOOL WOMEN'S NHS FOUNDATION TRUST","REP01","Liverpool Womens Hospital - REP01",290,910,0.31868131868131866,0.98965517241379308,3.4482758620689655E-3,264,23,1,0,1,1]
["Q75","RBT","MID CHESHIRE HOSPITALS NHS FOUNDATION TRUST","RBT20","Leighton Hospital - RBT20",313,3680,8.5054347826086951E-2,0.91373801916932906,4.1533546325878593E-2,223,63,10,9,4,4]
["Q75","RBT","MID CHESHIRE HOSPITALS NHS FOUNDATION TRUST","RBTXXX","WiC_MIU - RBTXXX",398,1980,0.201010101010101,0.94974874371859297,2.2613065326633167E-2,327,51,10,7,2,1]
["Q75","RQ6","ROYAL LIVERPOOL AND BROADGREEN UNIVERSITY HOSPITALS NHS TRUST","RQ617","The Royal Liverpool University Hospital - RQ617",1183,6328,0.18694690265486727,0.83262890955198643,9.6365173288250214E-2,748,237,60,45,69,24]
["Q75","RVY","SOUTHPORT AND ORMSKIRK HOSPITAL NHS TRUST","RVY02","Ormskirk and District General Hospital - RVY02",27,1819,1.4843320505772403E-2,0.7407407407407407,0.1111111111111111,14,6,2,1,2,2]
["Q75","RVY","SOUTHPORT AND ORMSKIRK HOSPITAL NHS TRUST","RVY01","Southport and Formby District General Hospital - RVY01",114,2458,4.6379170056956874E-2,0.7807017543859649,0.17543859649122806,72,17,4,12,8,1]
["Q75","RVY","SOUTHPORT AND ORMSKIRK HOSPITAL NHS TRUST","RVYXXX","WiC_MIU - RVYXXX",5,2346,2.1312872975277068E-3,0.8,0.2,3,1,0,1,0,0]
["Q75","RBN","ST HELENS AND KNOWSLEY HOSPITALS NHS TRUST","RBN01","Whiston Hospital - RBN01",538,3999,0.13453363340835209,0.92193308550185871,5.3903345724907063E-2,406,90,12,10,19,1]
["Q75","RWW","WARRINGTON AND HALTON HOSPITALS NHS FOUNDATION TRUST","RWWHG","Halton Hospital - RWWHG",307,1728,0.17766203703703703,0.95765472312703581,0,251,43,3,0,0,10]
["Q75","RWW","WARRINGTON AND HALTON HOSPITALS NHS FOUNDATION TRUST","RWWWH","Warrington Hospital - RWWWH",889,4381,0.20292170737274595,0.8098987626546682,6.074240719910011E-2,492,228,65,40,14,50]
["Q75","RBL","WIRRAL UNIVERSITY TEACHING HOSPITAL NHS FOUNDATION TRUST","RBL14","Arrowe Park Hospital - RBL14",497,5085,9.7738446411012786E-2,0.99396378269617702,2.012072434607646E-3,446,48,0,0,1,2]
["Q76","RJF","BURTON HOSPITALS NHS FOUNDATION TRUST","RJF02","Queen's Hospital, Burton Upon Trent - RJF02",243,3575,6.7972027972027976E-2,0.81481481481481477,0.11522633744855967,143,55,13,9,19,4]
["Q76","RJF","BURTON HOSPITALS NHS FOUNDATION TRUST","RJFXXX","WiC_MIU - RJFXXX",20,5453,3.6677058499908306E-3,0.85,0,15,2,1,0,0,2]
["Q76","RFS","CHESTERFIELD ROYAL HOSPITAL NHS FOUNDATION TRUST","RFSDA","Chesterfield Royal Hospital - RFSDA",659,4211,0.15649489432438851,0.83459787556904397,9.4081942336874058E-2,438,112,30,27,35,17]
["Q76","RTG","DERBY TEACHING HOSPITALS NHS FOUNDATION TRUST","RTGFG","Royal Derby Hospital - RTGFG",1051,5759,0.18249696127799966,0.79828734538534729,0.11322549952426261,640,199,60,42,77,33]
["Q76","RX1","NOTTINGHAM UNIVERSITY HOSPITALS NHS TRUST","RX1RA","Nottingham University Hospitals NHS Trust - Queen's Medical Centre Campus - RX1RA",2283,9372,0.24359795134443021,0.92553657468243544,3.1099430573806396E-2,1750,363,48,26,45,51]
["Q76","RK5","SHERWOOD FOREST HOSPITALS NHS FOUNDATION TRUST","RK5BC","King's Mill Hospital - RK5BC",551,5490,0.10036429872495446,0.83484573502722326,7.6225045372050812E-2,220,240,29,10,32,20]
["Q76","RK5","SHERWOOD FOREST HOSPITALS NHS FOUNDATION TRUST","RK5XXX","WiC_MIU - RK5XXX",13,1662,7.8219013237063786E-3,0.84615384615384615,7.6923076923076927E-2,9,2,1,0,1,0]
["Q76","RXW","SHREWSBURY AND TELFORD HOSPITAL NHS TRUST","RXWAS","Royal Shrewsbury Hospital - RXWAS",602,3278,0.18364856619890177,0.96345514950166111,1.6611295681063123E-3,458,122,8,1,0,13]
["Q76","RXW","SHREWSBURY AND TELFORD HOSPITAL NHS TRUST","RXWAT","The Princess Royal Hospital - RXWAT",663,2935,0.22589437819420782,0.88235294117647056,6.1840120663650078E-2,360,225,25,11,30,12]
["Q76","RJE","UNIVERSITY HOSPITALS OF NORTH MIDLANDS NHS TRUST","RJE09","County Hospital - RJE09",429,1960,0.21887755102040815,0.81351981351981351,9.0909090909090912E-2,296,53,32,8,31,9]
["Q76","RJE","UNIVERSITY HOSPITALS OF NORTH MIDLANDS NHS TRUST","RJE01","Royal Stoke University Hospital - RJE01",1441,6194,0.23264449467226347,0.72657876474670369,0.15267175572519084,845,202,110,92,128,64]
["Q77","RQ3","BIRMINGHAM CHILDREN'S HOSPITAL NHS FOUNDATION TRUST","RQ301","Birmingham Children's Hospital - RQ301",464,4216,0.11005692599620494,0.93318965517241381,1.2931034482758621E-2,346,87,12,2,4,13]
["Q77","RLT","GEORGE ELIOT HOSPITAL NHS TRUST","RLT01","George Eliot Hospital - Acute Services - RLT01",802,3723,0.21541767391888261,0.87905236907730677,6.7331670822942641E-2,500,205,25,21,33,18]
["Q77","RR1","HEART OF ENGLAND NHS FOUNDATION TRUST","RR105","Good Hope Hospital - RR105",918,5090,0.18035363457760314,0.8061002178649237,0.11220043572984749,524,216,59,47,56,16]
["Q77","RR1","HEART OF ENGLAND NHS FOUNDATION TRUST","RR101","Heartlands Hospital - RR101",848,7048,0.12031782065834279,0.76886792452830188,0.125,448,204,65,34,72,25]
["Q77","RR1","HEART OF ENGLAND NHS FOUNDATION TRUST","RR1XXX","WiC_MIU - RR1XXX",595,3289,0.18090605047126787,0.82689075630252096,0.10084033613445378,369,123,31,20,40,12]
["Q77","RXK","SANDWELL AND WEST BIRMINGHAM HOSPITALS NHS TRUST","RXK03","Birmingham Midland Eye Centre (Bmec) - RXK03",152,2267,6.7048963387737096E-2,0.79605263157894735,0.13815789473684212,93,28,8,10,11,2]
["Q77","RXK","SANDWELL AND WEST BIRMINGHAM HOSPITALS NHS TRUST","RXK02","City Hospital - RXK02",323,4926,6.5570442549736097E-2,0.82662538699690402,9.5975232198142413E-2,195,72,23,10,21,2]
["Q77","RXK","SANDWELL AND WEST BIRMINGHAM HOSPITALS NHS TRUST","RXK01","Sandwell General Hospital - RXK01",387,4279,9.0441691984108438E-2,0.84496124031007747,0.10335917312661498,260,67,11,15,25,9]
["Q77","RXK","SANDWELL AND WEST BIRMINGHAM HOSPITALS NHS TRUST","RXKXXX","WiC_MIU - RXKXXX",24,2791,8.5990684342529562E-3,0.83333333333333337,0.125,17,3,0,2,1,1]
["Q77","RJC","SOUTH WARWICKSHIRE NHS FOUNDATION TRUST","RJC02","Warwick Hospital - RJC02",187,2831,6.6054397739314735E-2,0.89839572192513373,1.06951871657754E-2,138,30,2,1,1,15]
["Q77","RJC","SOUTH WARWICKSHIRE NHS FOUNDATION TRUST","RJCXXX","WiC_MIU - RJCXXX",81,574,0.14111498257839722,1,0,67,14,0,0,0,0]
["Q77","RNA","THE DUDLEY GROUP NHS FOUNDATION TRUST","RNA01","Russells Hall Hospital - RNA01",125,3837,3.2577534532186606E-2,0.89600000000000002,0.08,87,25,2,1,9,1]
["Q77","RL4","THE ROYAL WOLVERHAMPTON NHS TRUST","RL403","New Cross Hospital - RL403",1381,6327,0.2182709024814288,0.80448950036205646,0.11151339608979001,814,297,86,61,93,30]
["Q77","RL4","THE ROYAL WOLVERHAMPTON NHS TRUST","RL402","The Phoenix Health Centre - RL402",0,0,"NA","NA","NA",0,0,0,0,0,0]
["Q77","RL4","THE ROYAL WOLVERHAMPTON NHS TRUST","RL4XXX","WiC_MIU - RL4XXX",0,0,"NA","NA","NA",0,0,0,0,0,0]
["Q77","RRK","UNIVERSITY HOSPITALS BIRMINGHAM NHS FOUNDATION TRUST","RRK15","Queen Elizabeth Hospital Birmingham - RRK15",760,6227,0.12204914083828489,0.87631578947368416,7.6315789473684212E-2,542,124,32,23,35,4]
["Q77","RKB","UNIVERSITY HOSPITALS COVENTRY AND WARWICKSHIRE NHS TRUST","RKB01","University Hospital (Coventry) - RKB01",1078,8984,0.11999109528049866,0.81818181818181823,0.11410018552875696,680,202,58,44,79,15]
["Q77","RKB","UNIVERSITY HOSPITALS COVENTRY AND WARWICKSHIRE NHS TRUST","RKBXXX","WiC_MIU - RKBXXX",379,2174,0.17433302667893286,0.90765171503957787,6.0686015831134567E-2,272,72,10,8,15,2]
["Q77","RBK","WALSALL HEALTHCARE NHS TRUST","RBK02","Manor Hospital - RBK02",65,3614,1.7985611510791366E-2,0.89230769230769236,6.1538461538461542E-2,42,16,2,0,4,1]
["Q77","RWP","WORCESTERSHIRE ACUTE HOSPITALS NHS TRUST","RWP01","Alexandra Hospital - RWP01",279,3642,7.6606260296540357E-2,0.98207885304659504,3.5842293906810036E-3,233,41,3,0,1,1]
["Q77","RWP","WORCESTERSHIRE ACUTE HOSPITALS NHS TRUST","RWP31","Kidderminster Hospital - RWP31",7,1824,3.8377192982456138E-3,1,0,7,0,0,0,0,0]
["Q77","RWP","WORCESTERSHIRE ACUTE HOSPITALS NHS TRUST","RWP50","Worcestershire Royal Hospital - RWP50",933,4232,0.22046313799621928,0.90139335476956051,5.5734190782422297E-2,605,236,35,23,29,5]
["Q77","RLQ","WYE VALLEY NHS TRUST","RLQ01","Hereford County Hospital - RLQ01",508,2906,0.17481073640743289,0.83464566929133854,5.1181102362204724E-2,361,63,44,10,16,14]
["Q78","RC1","BEDFORD HOSPITAL NHS TRUST","RC110","Bedford Hospital South Wing - RC110",600,3380,0.17751479289940827,0.84666666666666668,8.666666666666667E-2,364,144,33,15,37,7]
["Q78","RWH","EAST AND NORTH HERTFORDSHIRE NHS TRUST","RWH01","Lister Hospital - RWH01",1182,7338,0.16107931316434995,0.76311336717428091,0.14720812182741116,603,299,79,73,101,27]
["Q78","RWH","EAST AND NORTH HERTFORDSHIRE NHS TRUST","RWH20","Queen Elizabeth I I Hospital - RWH20",536,3283,0.16326530612244897,0.8824626865671642,6.3432835820895525E-2,369,104,21,14,20,8]
["Q78","RNQ","KETTERING GENERAL HOSPITAL NHS FOUNDATION TRUST","RNQ51","Kettering General Hospital - RNQ51",56,3633,1.5414258188824663E-2,0.9821428571428571,0,43,12,1,0,0,0]
["Q78","RC9","LUTON AND DUNSTABLE UNIVERSITY HOSPITAL NHS FOUNDATION TRUST","RC971","Luton and Dunstable Hospital - RC971",291,5725,5.0829694323144103E-2,0.90034364261168387,3.7800687285223365E-2,204,58,8,2,9,10]
["Q78","RD8","MILTON KEYNES UNIVERSITY HOSPITAL NHS FOUNDATION TRUST","RD816","Milton Keynes Hospital - RD816",169,6589,2.5648808620427985E-2,0.95857988165680474,1.7751479289940829E-2,139,23,1,0,3,3]
["Q78","RNS","NORTHAMPTON GENERAL HOSPITAL NHS TRUST","RNS01","Northampton General Hospital (Acute) - RNS01",1414,9612,0.14710778193924262,0.83168316831683164,9.5473833097595467E-2,901,275,83,44,91,20]
["Q78","RWD","UNITED LINCOLNSHIRE HOSPITALS NHS TRUST","RWDLP","Grantham and District Hospital - RWDLP",512,1764,0.29024943310657597,0.8125,0.11328125,308,108,35,29,29,3]
["Q78","RWD","UNITED LINCOLNSHIRE HOSPITALS NHS TRUST","RWDDA","Lincoln County Hospital - RWDDA",961,4243,0.22649069054913976,0.82726326742976064,9.5733610822060347E-2,564,231,47,38,54,27]
["Q78","RWD","UNITED LINCOLNSHIRE HOSPITALS NHS TRUST","RWDLA","Pilgrim Hospital - RWDLA",624,2835,0.22010582010582011,0.82532051282051277,7.371794871794872E-2,374,141,45,21,25,18]
["Q78","RWE","UNIVERSITY HOSPITALS OF LEICESTER NHS TRUST","RWEAA","Leicester Royal Infirmary - RWEAA",1242,9449,0.13144248068578684,0.95088566827697263,1.7713365539452495E-2,943,238,29,10,12,10]
["Q78","RWG","WEST HERTFORDSHIRE HOSPITALS NHS TRUST","RWG02","Watford General Hospital - RWG02",832,4806,0.17311693716188098,0.96274038461538458,1.0817307692307692E-2,581,220,17,3,6,5]
["Q78","RWG","WEST HERTFORDSHIRE HOSPITALS NHS TRUST","RWGXXX","WiC_MIU - RWGXXX",738,4170,0.17697841726618704,0.96612466124661245,1.4905149051490514E-2,525,188,11,6,5,3]
["Q79","RDD","BASILDON AND THURROCK UNIVERSITY HOSPITALS NHS FOUNDATION TRUST","RDDH0","Basildon University Hospital - RDDH0",1513,7274,0.20800109980753367,0.71050892267019172,0.1797752808988764,662,413,125,100,172,41]
["Q79","RGT","CAMBRIDGE UNIVERSITY HOSPITALS NHS FOUNDATION TRUST","RGT01","Addenbrooke's Hospital - RGT01",1290,5443,0.23700165349990815,0.94263565891472867,3.4108527131782945E-2,957,259,27,20,24,3]
["Q79","RDE","COLCHESTER HOSPITAL UNIVERSITY NHS FOUNDATION TRUST","RDEE4","Colchester General Hospital - RDEE4",561,4032,0.13913690476190477,0.79500891265597151,0.12477718360071301,353,93,37,25,45,8]
["Q79","RQQ","HINCHINGBROOKE HEALTH CARE NHS TRUST","RQQ31","Hinchingbrooke Hospital - RQQ31",482,2305,0.20911062906724512,0.94605809128630702,6.2240663900414933E-3,349,107,21,1,2,2]
["Q79","RGQ","IPSWICH HOSPITAL NHS TRUST","RGQ02","The Ipswich Hospital NHS Trust - RGQ02",532,4775,0.11141361256544502,0.91541353383458646,5.4511278195488719E-2,405,82,11,15,14,5]
["Q79","RGP","JAMES PAGET UNIVERSITY HOSPITALS NHS FOUNDATION TRUST","RGP75","James Paget University Hospital - RGP75",584,4718,0.12378126324713862,0.89897260273972601,8.5616438356164379E-3,388,137,46,2,3,8]
["Q79","RQ8","MID ESSEX HOSPITAL SERVICES NHS TRUST","RQ8L0","Broomfield Hospital - RQ8L0",844,4980,0.16947791164658635,0.75118483412322279,0.13388625592417061,481,153,71,42,71,26]
["Q79","RM1","NORFOLK AND NORWICH UNIVERSITY HOSPITALS NHS FOUNDATION TRUST","RM102","Norfolk and Norwich University Hospital - RM102",494,7108,6.9499155880697799E-2,0.9251012145748988,4.2510121457489877E-2,397,60,12,8,13,4]
["Q79","RGN","PETERBOROUGH AND STAMFORD HOSPITALS NHS FOUNDATION TRUST","RGN80","Peterborough City Hospital - RGN80",181,4955,3.6528758829465185E-2,0.89502762430939231,3.8674033149171269E-2,135,27,8,4,3,4]
["Q79","RGN","PETERBOROUGH AND STAMFORD HOSPITALS NHS FOUNDATION TRUST","RGNXXX","WiC_MIU - RGNXXX",42,734,5.7220708446866483E-2,0.97619047619047616,0,38,3,0,0,0,1]
["Q79","RAJ","SOUTHEND UNIVERSITY HOSPITAL NHS FOUNDATION TRUST","RAJ01","Southend Hospital - RAJ01",804,4456,0.18043087971274685,0.84452736318407962,9.3283582089552244E-2,522,157,36,35,40,14]
["Q79","RQW","THE PRINCESS ALEXANDRA HOSPITAL NHS TRUST","RQWG0","Princess Alexandra Hospital - RQWG0",628,4881,0.1286621593935669,0.94108280254777066,1.9108280254777069E-2,479,112,23,9,3,2]
["Q79","RCX","THE QUEEN ELIZABETH HOSPITAL, KING'S LYNN, NHS FOUNDATION TRUST","RCX70","The Queen Elizabeth Hospital - RCX70",598,3027,0.19755533531549388,0.8511705685618729,6.8561872909698993E-2,356,153,27,13,28,21]
["Q79","RGR","WEST SUFFOLK NHS FOUNDATION TRUST","RGR50","West Suffolk Hospital - RGR50",930,2988,0.3112449799196787,0.92365591397849467,1.6129032258064516E-2,627,232,55,7,8,1]
["Q80","RVJ","NORTH BRISTOL NHS TRUST","RVJ01","Southmead Hospital - RVJ01",304,4594,6.6173269481932959E-2,0.96381578947368418,1.3157894736842105E-2,232,61,5,2,2,2]
["Q80","RBZ","NORTHERN DEVON HEALTHCARE NHS TRUST","RBZ12","North Devon District Hospital - RBZ12",30,2510,1.1952191235059761E-2,0.7,0.23333333333333334,17,4,2,3,4,0]
["Q80","RK9","PLYMOUTH HOSPITALS NHS TRUST","RK950","Derriford Hospital - RK950",972,4822,0.20157610949813357,0.96707818930041156,9.2592592592592587E-3,682,258,16,6,3,7]
["Q80","REF","ROYAL CORNWALL HOSPITALS NHS TRUST","REF12","Royal Cornwall Hospital (Treliske) - REF12",33,4089,8.0704328686720464E-3,0.87878787878787878,0.12121212121212122,26,3,0,1,3,0]
["Q80","RH8","ROYAL DEVON AND EXETER NHS FOUNDATION TRUST","RH801","Royal Devon and Exeter Hospital (Wonford) - RH801",424,5304,7.9939668174962286E-2,0.90330188679245282,4.716981132075472E-2,317,66,17,4,16,4]
["Q80","RBA","TAUNTON AND SOMERSET NHS FOUNDATION TRUST","RBA11","Musgrove Park Hospital - RBA11",471,3460,0.1361271676300578,0.9426751592356688,1.2738853503184714E-2,337,107,15,0,6,6]
["Q80","RA9","TORBAY AND SOUTH DEVON NHS FOUNDATION TRUST","RA901","Torbay Hospital - RA901",58,3915,1.4814814814814815E-2,0.98275862068965514,1.7241379310344827E-2,51,6,0,1,0,0]
["Q80","RA7","UNIVERSITY HOSPITALS BRISTOL NHS FOUNDATION TRUST","RA708","Bristol Eye Hospital - RA708",480,1754,0.27366020524515394,0.91874999999999996,2.0833333333333332E-2,338,103,13,5,5,16]
["Q80","RA7","UNIVERSITY HOSPITALS BRISTOL NHS FOUNDATION TRUST","RA723","Bristol Royal Hospital For Children - RA723",476,2365,0.20126849894291754,0.6785714285714286,0.1638655462184874,225,98,38,25,53,37]
["Q80","RA7","UNIVERSITY HOSPITALS BRISTOL NHS FOUNDATION TRUST","RA701","Bristol Royal Infirmary - RA701",416,3568,0.11659192825112108,0.68990384615384615,0.16586538461538461,220,67,40,20,49,20]
["Q80","RA3","WESTON AREA HEALTH NHS TRUST","RA301","Weston General Hospital - RA301",671,4044,0.16592482690405538,0.90760059612518629,1.0432190760059613E-2,566,43,17,2,5,38]
["Q80","RA4","YEOVIL DISTRICT HOSPITAL NHS FOUNDATION TRUST","RA430","Yeovil District Hospital - RA430",209,2512,8.3200636942675155E-2,0.94736842105263153,2.3923444976076555E-2,179,19,6,0,5,0]
["Q81","RTK","ASHFORD AND ST PETER'S HOSPITALS NHS FOUNDATION TRUST","RTK01","St Peter's Hospital - RTK01",1133,5786,0.19581749049429659,0.86407766990291257,7.8552515445719326E-2,721,258,53,40,49,12]
["Q81","RXH","BRIGHTON AND SUSSEX UNIVERSITY HOSPITALS NHS TRUST","RXH09","Princess Royal Hospital - RXH09",672,3067,0.21910661884577765,0.8973214285714286,4.9107142857142856E-2,483,120,34,11,22,2]
["Q81","RXH","BRIGHTON AND SUSSEX UNIVERSITY HOSPITALS NHS TRUST","RXH01","Royal Sussex County Hospital - RXH01",1200,5202,0.23068050749711649,0.84166666666666667,8.7499999999999994E-2,795,215,64,42,63,21]
["Q81","RXH","BRIGHTON AND SUSSEX UNIVERSITY HOSPITALS NHS TRUST","RXH07","Sussex Eye Hospital - RXH07",333,1240,0.2685483870967742,0.93393393393393398,3.6036036036036036E-2,261,50,5,6,6,5]
["Q81","RXH","BRIGHTON AND SUSSEX UNIVERSITY HOSPITALS NHS TRUST","RXH06","The Royal Alexandra Children's Hospital - RXH06",385,2009,0.19163763066202091,0.97662337662337662,1.2987012987012988E-2,360,16,3,2,3,1]
["Q81","RN7","DARTFORD AND GRAVESHAM NHS TRUST","RN707","Darent Valley Hospital - RN707",56,3838,1.4590932777488274E-2,0.8214285714285714,0.14285714285714285,31,15,2,3,5,0]
["Q81","RVV","EAST KENT HOSPITALS UNIVERSITY NHS FOUNDATION TRUST","RVV02","Buckland Hospital - RVV02",289,1118,0.25849731663685149,0.91003460207612452,5.536332179930796E-2,223,40,8,6,10,2]
["Q81","RVV","EAST KENT HOSPITALS UNIVERSITY NHS FOUNDATION TRUST","RVVKC","Kent and Canterbury Hospital - RVVKC",639,2616,0.24426605504587157,0.863849765258216,6.1032863849765258E-2,443,109,39,15,24,9]
["Q81","RVV","EAST KENT HOSPITALS UNIVERSITY NHS FOUNDATION TRUST","RVV09","Queen Elizabeth The Queen Mother Hospital - RVV09",1095,4370,0.25057208237986273,0.80456621004566209,0.12602739726027398,636,245,64,48,90,12]
["Q81","RVV","EAST KENT HOSPITALS UNIVERSITY NHS FOUNDATION TRUST","RVV01","William Harvey Hospital (Ashford) - RVV01",1094,4317,0.25341672457725273,0.74588665447897629,0.1453382084095064,548,268,98,72,87,21]
["Q81","RXC","EAST SUSSEX HEALTHCARE NHS TRUST","RXC01","Conquest Hospital - RXC01",356,3864,9.213250517598344E-2,0.9157303370786517,3.3707865168539325E-2,221,105,11,4,8,7]
["Q81","RXC","EAST SUSSEX HEALTHCARE NHS TRUST","RXC02","Eastbourne District General Hospital - RXC02",309,3583,8.6240580519118051E-2,0.88996763754045305,5.5016181229773461E-2,178,97,8,3,14,9]
["Q81","RDU","FRIMLEY HEALTH NHS FOUNDATION TRUST","RDU01","Frimley Park Hospital - RDU01",1860,6172,0.3013609850939728,0.91720430107526885,1.6129032258064516E-2,1231,475,104,18,12,20]
["Q81","RDU","FRIMLEY HEALTH NHS FOUNDATION TRUST","RDU50","Wexham Park Hospital - RDU50",1100,6405,0.17174082747853239,0.83909090909090911,0.10363636363636364,659,264,53,46,68,10]
["Q81","RWF","MAIDSTONE AND TUNBRIDGE WELLS NHS TRUST","RWF03","Maidstone District General Hospital - RWF03",869,4280,0.20303738317757009,0.86651323360184118,2.5316455696202531E-2,501,252,41,12,10,53]
["Q81","RWF","MAIDSTONE AND TUNBRIDGE WELLS NHS TRUST","RWFTW","The Tunbridge Wells Hospital - RWFTW",884,4499,0.19648810846854856,0.91289592760180993,2.4886877828054297E-2,573,234,22,13,9,33]
["Q81","RPA","MEDWAY NHS FOUNDATION TRUST","RPA02","Medway Maritime Hospital - RPA02",932,5225,0.17837320574162679,0.72210300429184548,0.17167381974248927,442,231,76,55,105,23]
["Q81","RA2","ROYAL SURREY COUNTY HOSPITAL NHS FOUNDATION TRUST","RA201","Royal Surrey County Hospital - RA201",793,3757,0.21107266435986158,0.8827238335435057,6.3051702395964693E-2,551,149,37,21,29,6]
["Q81","RTP","SURREY AND SUSSEX HEALTHCARE NHS TRUST","RTP04","East Surrey Hospital - RTP04",990,4966,0.19935561820378575,0.96868686868686871,1.2121212121212121E-2,795,164,16,3,9,3]
["Q81","RYR","WESTERN SUSSEX HOSPITALS NHS FOUNDATION TRUST","RYR16","St Richard's Hospital - RYR16",481,3934,0.12226741230299949,0.84823284823284828,0.11642411642411643,340,68,10,21,35,7]
["Q81","RYR","WESTERN SUSSEX HOSPITALS NHS FOUNDATION TRUST","RYR18","Worthing Hospital - RYR18",1170,4802,0.24364847980008331,0.92991452991452994,4.957264957264957E-2,913,175,17,21,37,7]
["Q82","RXQ","BUCKINGHAMSHIRE HEALTHCARE NHS TRUST","RXQ02","Stoke Mandeville Hospital - RXQ02",443,4807,9.2157270646973169E-2,0.963882618510158,1.8058690744920992E-2,336,91,8,3,5,0]
["Q82","RTE","GLOUCESTERSHIRE HOSPITALS NHS FOUNDATION TRUST","RTE01","Cheltenham General Hospital - RTE01",37,3205,1.1544461778471139E-2,0.59459459459459463,0.29729729729729731,16,6,1,4,7,3]
["Q82","RTE","GLOUCESTERSHIRE HOSPITALS NHS FOUNDATION TRUST","RTE03","Gloucestershire Royal Hospital - RTE03",44,2263,1.9443216968625717E-2,0.88636363636363635,9.0909090909090912E-2,32,7,1,0,4,0]
["Q82","RN3","GREAT WESTERN HOSPITALS NHS FOUNDATION TRUST","RN325","The Great Western Hospital - RN325",387,4667,8.2922648382258407E-2,0.87596899224806202,5.9431524547803614E-2,244,95,8,7,16,17]
["Q82","RN3","GREAT WESTERN HOSPITALS NHS FOUNDATION TRUST","RN3XXX","WiC_MIU - RN3XXX",386,3442,0.11214410226612434,0.94041450777202074,2.5906735751295335E-2,291,72,6,4,6,7]
["Q82","RTH","OXFORD UNIVERSITY HOSPITALS NHS FOUNDATION TRUST","RTH05","Horton General Hospital - RTH05",535,1709,0.31304856641310708,0.83925233644859809,9.3457943925233641E-2,340,109,28,25,25,8]
["Q82","RTH","OXFORD UNIVERSITY HOSPITALS NHS FOUNDATION TRUST","RTH08","John Radcliffe Hospital - RTH08",973,3167,0.30723081780865175,0.84686536485097641,8.5303186022610486E-2,618,206,53,36,47,13]
["Q82","RHW","ROYAL BERKSHIRE NHS FOUNDATION TRUST","RHW03","King Edward Vii Hospital - RHW03",56,594,9.4276094276094277E-2,0.9464285714285714,5.3571428571428568E-2,46,7,0,3,0,0]
["Q82","RHW","ROYAL BERKSHIRE NHS FOUNDATION TRUST","RHW01","Royal Berkshire Hospital - RHW01",275,5650,4.8672566371681415E-2,0.91272727272727272,5.4545454545454543E-2,208,43,9,6,9,0]
["Q82","RD1","ROYAL UNITED HOSPITALS BATH NHS FOUNDATION TRUST","RD130","Royal United Hospital - RD130",317,4312,7.3515769944341378E-2,0.96214511041009465,1.8927444794952682E-2,257,48,4,2,4,2]
["Q82","RNZ","SALISBURY NHS FOUNDATION TRUST","RNZ02","Salisbury District Hospital - RNZ02",292,3187,9.1622215249450897E-2,0.9726027397260274,3.4246575342465752E-3,245,39,4,0,1,3]

{"sheet":"BS","index":5,"n_rows":239,"n_cols":33,"rows_kept":239,"cut":false,"hidden":true,"merged":[]}
[null,"Sort","Region (Geo) Code","Region (Geo) name","Trust code","Trust name","Site Code","Site Name",null,"Sort Lists:","Sort range…","Sort range…","Sort range…","Reference Region List:","Code…","Name…","Linked Region List:","Code…","Name…","Reference Lists:","Code…","Code…","Name…","Code…","Name…","Trusts Linked Lists:","Code…","Name…","Sites Linked Lists:","Code…","Name…","Code…","Name…"]
["Region (Geo)",1,1,1,"-","-","-","-",null,null,"Region (Geo) Code","Region (Geo) Code","Region (Geo) Code",null,"Q72","NHS England Yorkshire & Humber",null,"Q70","NHS England Central Midlands",null,"Q70","RBD","DORSET COUNTY HOSPITAL NHS FOUNDATION TRUST","RBD01","Dorset County Hospital - RBD01",null,"R1F","AINTREE UNIVERSITY HOSPITAL NHS FOUNDATION TRUST",null,"R1F","AINTREE UNIVERSITY HOSPITAL NHS FOUNDATION TRUST","R1F01","Addenbrooke's Hospital - RGT01"]
["Trusts",1,1,1,1,1,"-","-",null,null,"Region (Geography)","Trust Code","Trust Code",null,"Q73","NHS England Lancashire & Greater Manchester",null,"Q71","NHS England Cheshire & Merseyside",null,"Q70","RN5","HAMPSHIRE HOSPITALS NHS FOUNDATION TRUST","RN542","Andover War Memorial Hospital - RN542",null,"R1H","AIREDALE NHS FOUNDATION TRUST",null,"R1H","AIREDALE NHS FOUNDATION TRUST","R1H12","Airedale General Hospital - RCF22"]
["Site",1,1,1,1,1,1,1,null,null,"Total Responses","Trust Name","Trust Name",null,"Q74","NHS England Cumbria & North East",null,"Q72","NHS England Cumbria & North East",null,"Q70","RN5","HAMPSHIRE HOSPITALS NHS FOUNDATION TRUST","RN506","Basingstoke and North Hampshire Hospital - RN506",null,"R1K","ALDER HEY CHILDREN'S NHS FOUNDATION TRUST",null,"R1K","ALDER HEY CHILDREN'S NHS FOUNDATION TRUST","R1HKH","Alder Hey Children's NHS - RBS25"]
[null,null,null,null,null,null,null,null,null,null,"Total Eligible","Total Responses","Site Code",null,"Q75","NHS England Cheshire & Merseyside",null,"Q73","NHS England East",null,"Q70","RN5","HAMPSHIRE HOSPITALS NHS FOUNDATION TRUST","RN541","Royal Hampshire County Hospital - RN541",null,"RA2","ASHFORD AND ST PETER'S HOSPITALS NHS FOUNDATION TRUST",null,"RA2","ASHFORD AND ST PETER'S HOSPITALS NHS FOUNDATION TRUST","R1HM0","Alexandra Hospital - RWP01"]
[null,null,null,null,null,null,null,null,null,null,"Response Rate","Total Eligible","Site Name",null,"Q76","NHS England North Midlands",null,"Q74","NHS England Lancashire & Greater Manchester",null,"Q70","R1F","ISLE OF WIGHT NHS TRUST","R1F01","St Mary's Hospital - R1F01",null,"RA3","BARKING, HAVERING AND REDBRIDGE UNIVERSITY HOSPITALS NHS TRUST",null,"RA3","BARKING, HAVERING AND REDBRIDGE UNIVERSITY HOSPITALS NHS TRUST","R1HNH","Andover War Memorial Hospital - RN542"]
[null,null,null,null,null,null,null,null,null,null,"Percentage Recommended","Response Rate","Total Responses",null,"Q77","NHS England West Midlands",null,"Q75","NHS England London",null,"Q70","RD3","POOLE HOSPITAL NHS FOUNDATION TRUST","RD304","Poole General Hospital NHS Trust HQ - RD304",null,"RA4","BARNSLEY HOSPITAL NHS FOUNDATION TRUST",null,"RA4","BARNSLEY HOSPITAL NHS FOUNDATION TRUST","R1K01","Arrowe Park Hospital - RBL14"]
[null,null,null,null,null,null,null,null,null,null,"Percentage Not Recommended","Percentage Recommended","Total Eligible",null,"Q78","NHS England Central Midlands",null,"Q76","NHS England North Midlands",null,"Q70","RHU","PORTSMOUTH HOSPITALS NHS TRUST","RHU03","Queen Alexandra Hospital - RHU03",null,"RA7","BARTS HEALTH NHS TRUST",null,"RA7","BARTS HEALTH NHS TRUST","R1K04","Barnet Hospital - RAL26"]
[null,null,null,null,null,null,null,null,null,null,"Extremely Likely","Percentage Not Recommended","Response Rate",null,"Q79","NHS England East",null,"Q77","NHS England South Central",null,"Q70","RHU","PORTSMOUTH HOSPITALS NHS TRUST","RHUXXX","WiC_MIU - RHUXXX",null,"RA9","BASILDON AND THURROCK UNIVERSITY HOSPITALS NHS FOUNDATION TRUST",null,"RA9","BASILDON AND THURROCK UNIVERSITY HOSPITALS NHS FOUNDATION TRUST","R1K11","Barnsley Hospital NHS Foundation Trust HQ - RFFAA"]
[null,null,null,null,null,null,null,null,null,null,"Likely","Extremely Likely","Percentage Recommended",null,"Q80","NHS England South West",null,"Q78","NHS England South East",null,"Q70","RDZ","THE ROYAL BOURNEMOUTH AND CHRISTCHURCH HOSPITALS NHS FOUNDATION TRUST","RDZ20","Royal Bournemouth General Hospital - RDZ20",null,"RAE","BEDFORD HOSPITAL NHS TRUST",null,"RAE","BEDFORD HOSPITAL NHS TRUST","RA201","Basildon University Hospital - RDDH0"]
[null,null,null,null,null,null,null,null,null,null,"Neither","Likely","Percentage Not Recommended",null,"Q81","NHS England South East",null,"Q79","NHS England South West",null,"Q70","RHM","UNIVERSITY HOSPITAL SOUTHAMPTON NHS FOUNDATION TRUST","RHM01","Southampton General Hospital - RHM01",null,"RAJ","BIRMINGHAM CHILDREN'S HOSPITAL NHS FOUNDATION TRUST",null,"RAJ","BIRMINGHAM CHILDREN'S HOSPITAL NHS FOUNDATION TRUST","RA301","Basingstoke and North Hampshire Hospital - RN506"]
[null,null,null,null,null,null,null,null,null,null,"Unlikely","Neither","Extremely Likely",null,"Q82","NHS England South Central",null,"Q80","NHS England Wessex",null,"Q71","RF4","BARKING, HAVERING AND REDBRIDGE UNIVERSITY HOSPITALS NHS TRUST","RF4DG","King George Hospital - RF4DG",null,"RAL","BLACKPOOL TEACHING HOSPITALS NHS FOUNDATION TRUST",null,"RAL","BLACKPOOL TEACHING HOSPITALS NHS FOUNDATION TRUST","RA430","Bassetlaw Hospital - RP5BA"]
[null,null,null,null,null,null,null,null,null,null,"Extremely Unlikely","Unlikely","Likely",null,"Q70","NHS England Wessex",null,"Q81","NHS England West Midlands",null,"Q71","RF4","BARKING, HAVERING AND REDBRIDGE UNIVERSITY HOSPITALS NHS TRUST","RF4QH","Queen's Hospital - RF4QH",null,"RAP","BOLTON NHS FOUNDATION TRUST",null,"RAP","BOLTON NHS FOUNDATION TRUST","RA701","Bedford Hospital South Wing - RC110"]
[null,null,null,null,null,null,null,null,null,null,"Don't Know","Extremely Unlikely","Neither",null,"Q71","NHS England London",null,"Q82","NHS England Yorkshire & Humber",null,"Q71","R1H","BARTS HEALTH NHS TRUST","R1HNH","Newham General Hospital - R1HNH",null,"RAS","BRADFORD TEACHING HOSPITALS NHS FOUNDATION TRUST",null,"RAS","BRADFORD TEACHING HOSPITALS NHS FOUNDATION TRUST","RA708","Birmingham Children's Hospital - RQ301"]
[null,null,null,null,null,null,null,null,null,null,null,"Don't Know","Unlikely",null,null,null,null,null,null,null,"Q71","R1H","BARTS HEALTH NHS TRUST","R1HM0","St Bartholomew's Hospital - R1HM0",null,"RAX","BRIGHTON AND SUSSEX UNIVERSITY HOSPITALS NHS TRUST",null,"RAX","BRIGHTON AND SUSSEX UNIVERSITY HOSPITALS NHS TRUST","RA723","Birmingham Midland Eye Centre (Bmec) - RXK03"]
[null,null,null,null,null,null,null,null,null,null,null,"SMS/Text / Smartphone App","Extremely Unlikely",null,null,null,null,null,null,null,"Q71","R1H","BARTS HEALTH NHS TRUST","R1H12","The Royal London Hospital - R1H12",null,"RBA","BUCKINGHAMSHIRE HEALTHCARE NHS TRUST",null,"RBA","BUCKINGHAMSHIRE HEALTHCARE NHS TRUST","RA901","Blackpool Victoria Hospital - RXL01"]
[null,null,null,null,null,null,null,null,null,null,null,"Electronic tablet/kiosk at point of discharge","Don't Know",null,null,null,null,null,null,null,"Q71","R1H","BARTS HEALTH NHS TRUST","R1HKH","Whipps Cross University Hospital - R1HKH",null,"RBD","BURTON HOSPITALS NHS FOUNDATION TRUST",null,"RBD","BURTON HOSPITALS NHS FOUNDATION TRUST","RAE01","Bradford Royal Infirmary - RAE01"]
[null,null,null,null,null,null,null,null,null,null,null,"Paper / postcard at point of discharge",null,null,null,null,null,null,null,null,"Q71","RQM","CHELSEA AND WESTMINSTER HOSPITAL NHS FOUNDATION TRUST","RQM01","Chelsea and Westminster Hospital - RQM01",null,"RBK","CALDERDALE AND HUDDERSFIELD NHS FOUNDATION TRUST",null,"RBK","CALDERDALE AND HUDDERSFIELD NHS FOUNDATION TRUST","RAJ01","Bristol Eye Hospital - RA708"]
[null,null,null,null,null,null,null,null,null,null,null,"Paper survey sent to the patients home",null,null,null,null,null,null,null,null,"Q71","RQM","CHELSEA AND WESTMINSTER HOSPITAL NHS FOUNDATION TRUST","RQM91","West Middlesex University Hospital - RQM91",null,"RBL","CAMBRIDGE UNIVERSITY HOSPITALS NHS FOUNDATION TRUST",null,"RBL","CAMBRIDGE UNIVERSITY HOSPITALS NHS FOUNDATION TRUST","RAL01","Bristol Royal Hospital For Children - RA723"]
[null,null,null,null,null,null,null,null,null,null,null,"Telephone survey once patient is home",null,null,null,null,null,null,null,null,"Q71","RQM","CHELSEA AND WESTMINSTER HOSPITAL NHS FOUNDATION TRUST","RQMXXX","WiC_MIU - RQMXXX",null,"RBN","CENTRAL MANCHESTER UNIVERSITY HOSPITALS NHS FOUNDATION TRUST",null,"RBN","CENTRAL MANCHESTER UNIVERSITY HOSPITALS NHS FOUNDATION TRUST","RAL26","Bristol Royal Infirmary - RA701"]
[null,null,null,null,null,null,null,null,null,null,null,"Online survey once patient is home",null,null,null,null,null,null,null,null,"Q71","RJ6","CROYDON HEALTH SERVICES NHS TRUST","RJ611","Mayday University Hospital - RJ611",null,"RBS","CHELSEA AND WESTMINSTER HOSPITAL NHS FOUNDATION TRUST",null,"RBS","CHELSEA AND WESTMINSTER HOSPITAL NHS FOUNDATION TRUST","RAPNM","Broomfield Hospital - RQ8L0"]
[null,null,null,null,null,null,null,null,null,null,null,"Other",null,null,null,null,null,null,null,null,"Q71","RVR","EPSOM AND ST HELIER UNIVERSITY HOSPITALS NHS TRUST","RVR50","Epsom Hospital - RVR50",null,"RBT","CHESTERFIELD ROYAL HOSPITAL NHS FOUNDATION TRUST",null,"RBT","CHESTERFIELD ROYAL HOSPITAL NHS FOUNDATION TRUST","RAS01","Buckland Hospital - RVV02"]
[null,null,null,null,null,null,null,null,null,null,null,null,null,null,null,null,null,null,null,null,"Q71","RVR","EPSOM AND ST HELIER UNIVERSITY HOSPITALS NHS TRUST","RVR05","St Helier Hospital - RVR05",null,"RBZ","CITY HOSPITALS SUNDERLAND NHS FOUNDATION TRUST",null,"RBZ","CITY HOSPITALS SUNDERLAND NHS FOUNDATION TRUST","RAS02","Calderdale Royal Hospital - RWY02"]
[null,null,null,null,null,null,null,null,null,null,null,null,null,null,null,null,null,null,null,null,"Q71","RJ1","GUY'S AND ST THOMAS' NHS FOUNDATION TRUST","RJ122","St Thomas' Hospital - RJ122",null,"RC1","COLCHESTER HOSPITAL UNIVERSITY NHS FOUNDATION TRUST",null,"RC1","COLCHESTER HOSPITAL UNIVERSITY NHS FOUNDATION TRUST","RAX01","Charing Cross Hospital - RYJ02"]
[null,null,null,null,null,null,null,null,null,null,null,null,null,null,null,null,null,null,null,null,"Q71","RJ1","GUY'S AND ST THOMAS' NHS FOUNDATION TRUST","RJ1XXX","WiC_MIU - RJ1XXX",null,"RC9","COUNTESS OF CHESTER HOSPITAL NHS FOUNDATION TRUST",null,"RC9","COUNTESS OF CHESTER HOSPITAL NHS FOUNDATION TRUST","RBA11","Chelsea and Westminster Hospital - RQM01"]
[null,null,null,null,null,null,null,null,null,null,null,null,null,null,null,null,null,null,null,null,"Q71","RQX","HOMERTON UNIVERSITY HOSPITAL NHS FOUNDATION TRUST","RQXM1","Homerton University Hospital - RQXM1",null,"RCB","COUNTY DURHAM AND DARLINGTON NHS FOUNDATION TRUST",null,"RCB","COUNTY DURHAM AND DARLINGTON NHS FOUNDATION TRUST","RBD01","Cheltenham General Hospital - RTE01"]
[null,null,null,null,null,null,null,null,null,null,null,null,null,null,null,null,null,null,null,null,"Q71","RYJ","IMPERIAL COLLEGE HEALTHCARE NHS TRUST","RYJ02","Charing Cross Hospital - RYJ02",null,"RCD","CROYDON HEALTH SERVICES NHS TRUST",null,"RCD","CROYDON HEALTH SERVICES NHS TRUST","RBK02","Chesterfield Royal Hospital - RFSDA"]
[null,null,null,null,null,null,null,null,null,null,null,null,null,null,null,null,null,null,null,null,"Q71","RYJ","IMPERIAL COLLEGE HEALTHCARE NHS TRUST","RYJ01","St Mary's Hospital (HQ) - RYJ01",null,"RCF","DARTFORD AND GRAVESHAM NHS TRUST",null,"RCF","DARTFORD AND GRAVESHAM NHS TRUST","RBL14","Chorley and South Ribble Hospital - RXN01"]
[null,null,null,null,null,null,null,null,null,null,null,null,null,null,null,null,null,null,null,null,"Q71","RYJ","IMPERIAL COLLEGE HEALTHCARE NHS TRUST","RYJ07","Western Eye Hospital - RYJ07",null,"RCU","DERBY TEACHING HOSPITALS NHS FOUNDATION TRUST",null,"RCU","DERBY TEACHING HOSPITALS NHS FOUNDATION TRUST","RBN01","City Hospital - RXK02"]
[null,null,null,null,null,null,null,null,null,null,null,null,null,null,null,null,null,null,null,null,"Q71","RYJ","IMPERIAL COLLEGE HEALTHCARE NHS TRUST","RYJXXX","WiC_MIU - RYJXXX",null,"RCX","DONCASTER AND BASSETLAW HOSPITALS NHS FOUNDATION TRUST",null,"RCX","DONCASTER AND BASSETLAW HOSPITALS NHS FOUNDATION TRUST","RBS25","Colchester General Hospital - RDEE4"]
[null,null,null,null,null,null,null,null,null,null,null,null,null,null,null,null,null,null,null,null,"Q71","RJZ","KING'S COLLEGE HOSPITAL NHS FOUNDATION TRUST","RJZ33","Kings College Dental Hospital - RJZ33",null,"RD1","DORSET COUNTY HOSPITAL NHS FOUNDATION TRUST",null,"RD1","DORSET COUNTY HOSPITAL NHS FOUNDATION TRUST","RBT20","Congleton War Memorial Hospital - RJN63"]
[null,null,null,null,null,null,null,null,null,null,null,null,null,null,null,null,null,null,null,null,"Q71","RJZ","KING'S COLLEGE HOSPITAL NHS FOUNDATION TRUST","RJZ01","King's College Hospital (Denmark Hill) - RJZ01",null,"RD3","EAST AND NORTH HERTFORDSHIRE NHS TRUST",null,"RD3","EAST AND NORTH HERTFORDSHIRE NHS TRUST","RBTXXX","Conquest Hospital - RXC01"]
[null,null,null,null,null,null,null,null,null,null,null,null,null,null,null,null,null,null,null,null,"Q71","RJZ","KING'S COLLEGE HOSPITAL NHS FOUNDATION TRUST","RJZ30","Princess Royal University Hospital - RJZ30",null,"RD8","EAST CHESHIRE NHS TRUST",null,"RD8","EAST CHESHIRE NHS TRUST","RBZ12","Countess Of Chester Hospital - RJR05"]
[null,null,null,null,null,null,null,null,null,null,null,null,null,null,null,null,null,null,null,null,"Q71","RAX","KINGSTON HOSPITAL NHS FOUNDATION TRUST","RAX01","Kingston Hospital - RAX01",null,"RDD","EAST KENT HOSPITALS UNIVERSITY NHS FOUNDATION TRUST",null,"RDD","EAST KENT HOSPITALS UNIVERSITY NHS FOUNDATION TRUST","RC110","County Hospital - RJE09"]
[null,null,null,null,null,null,null,null,null,null,null,null,null,null,null,null,null,null,null,null,"Q71","RJ2","LEWISHAM AND GREENWICH NHS TRUST","RJ231","Queen Elizabeth Hospital - RJ231",null,"RDE","EAST LANCASHIRE HOSPITALS NHS TRUST",null,"RDE","EAST LANCASHIRE HOSPITALS NHS TRUST","RC971","Cumberland Infirmary - RNLAY"]
[null,null,null,null,null,null,null,null,null,null,null,null,null,null,null,null,null,null,null,null,"Q71","RJ2","LEWISHAM AND GREENWICH NHS TRUST","RJ224","University Hospital Lewisham - RJ224",null,"RDU","EAST SUSSEX HEALTHCARE NHS TRUST",null,"RDU","EAST SUSSEX HEALTHCARE NHS TRUST","RCB55","Darent Valley Hospital - RN707"]
[null,null,null,null,null,null,null,null,null,null,null,null,null,null,null,null,null,null,null,null,"Q71","R1K","LONDON NORTH WEST HEALTHCARE NHS TRUST","R1K04","Ealing Hospital - R1K04",null,"RDZ","EPSOM AND ST HELIER UNIVERSITY HOSPITALS NHS TRUST",null,"RDZ","EPSOM AND ST HELIER UNIVERSITY HOSPITALS NHS TRUST","RCBCA","Darlington Memorial Hospital - RXPDA"]
[null,null,null,null,null,null,null,null,null,null,null,null,null,null,null,null,null,null,null,null,"Q71","R1K","LONDON NORTH WEST HEALTHCARE NHS TRUST","R1K01","Northwick Park Hospital - R1K01",null,"RE9","FRIMLEY HEALTH NHS FOUNDATION TRUST",null,"RE9","FRIMLEY HEALTH NHS FOUNDATION TRUST","RCD01","Derriford Hospital - RK950"]
[null,null,null,null,null,null,null,null,null,null,null,null,null,null,null,null,null,null,null,null,"Q71","R1K","LONDON NORTH WEST HEALTHCARE NHS TRUST","R1K11","Urgent Care Centre Northwick Park Hospital - R1K11",null,"REF","GATESHEAD HEALTH NHS FOUNDATION TRUST",null,"REF","GATESHEAD HEALTH NHS FOUNDATION TRUST","RCDXXX","Dewsbury and District Hospital - RXF10"]
[null,null,null,null,null,null,null,null,null,null,null,null,null,null,null,null,null,null,null,null,"Q71","RP6","MOORFIELDS EYE HOSPITAL NHS FOUNDATION TRUST","RP601","Moorfields Eye Hospital (City Road) - RP601",null,"REM","GEORGE ELIOT HOSPITAL NHS TRUST",null,"REM","GEORGE ELIOT HOSPITAL NHS TRUST","RCF22","Diana, Princess Of Wales Hospital - RJL30"]
[null,null,null,null,null,null,null,null,null,null,null,null,null,null,null,null,null,null,null,null,"Q71","RAP","NORTH MIDDLESEX UNIVERSITY HOSPITAL NHS TRUST","RAPNM","North Middlesex Hospital - RAPNM",null,"REP","GLOUCESTERSHIRE HOSPITALS NHS FOUNDATION TRUST",null,"REP","GLOUCESTERSHIRE HOSPITALS NHS FOUNDATION TRUST","RCUEF","Doncaster Royal Infirmary - RP5DR"]
[null,null,null,null,null,null,null,null,null,null,null,null,null,null,null,null,null,null,null,null,"Q71","RAL","ROYAL FREE LONDON NHS FOUNDATION TRUST","RAL26","Barnet Hospital - RAL26",null,"RF4","GREAT WESTERN HOSPITALS NHS FOUNDATION TRUST",null,"RF4","GREAT WESTERN HOSPITALS NHS FOUNDATION TRUST","RCX70","Dorset County Hospital - RBD01"]
[null,null,null,null,null,null,null,null,null,null,null,null,null,null,null,null,null,null,null,null,"Q71","RAL","ROYAL FREE LONDON NHS FOUNDATION TRUST","RAL01","Royal Free Hospital - RAL01",null,"RFF","GUY'S AND ST THOMAS' NHS FOUNDATION TRUST",null,"RFF","GUY'S AND ST THOMAS' NHS FOUNDATION TRUST","RD130","Dunston Hill Hospital - RR7ER"]
[null,null,null,null,null,null,null,null,null,null,null,null,null,null,null,null,null,null,null,null,"Q71","RJ7","ST GEORGE'S UNIVERSITY HOSPITALS NHS FOUNDATION TRUST","RJ701","St George's Hospital (Tooting) - RJ701",null,"RFR","HAMPSHIRE HOSPITALS NHS FOUNDATION TRUST",null,"RFR","HAMPSHIRE HOSPITALS NHS FOUNDATION TRUST","RD304","Ealing Hospital - R1K04"]
[null,null,null,null,null,null,null,null,null,null,null,null,null,null,null,null,null,null,null,null,"Q71","RJ7","ST GEORGE'S UNIVERSITY HOSPITALS NHS FOUNDATION TRUST","RJ7XXX","WiC_MIU - RJ7XXX",null,"RFS","HARROGATE AND DISTRICT NHS FOUNDATION TRUST",null,"RFS","HARROGATE AND DISTRICT NHS FOUNDATION TRUST","RD816","East Surrey Hospital - RTP04"]
[null,null,null,null,null,null,null,null,null,null,null,null,null,null,null,null,null,null,null,null,"Q71","RAS","THE HILLINGDON HOSPITALS NHS FOUNDATION TRUST","RAS01","Hillingdon Hospital - RAS01",null,"RGN","HEART OF ENGLAND NHS FOUNDATION TRUST",null,"RGN","HEART OF ENGLAND NHS FOUNDATION TRUST","RDDH0","Eastbourne District General Hospital - RXC02"]
[null,null,null,null,null,null,null,null,null,null,null,null,null,null,null,null,null,null,null,null,"Q71","RAS","THE HILLINGDON HOSPITALS NHS FOUNDATION TRUST","RAS02","Mount Vernon Hospital Site - RAS02",null,"RGP","HINCHINGBROOKE HEALTH CARE NHS TRUST",null,"RGP","HINCHINGBROOKE HEALTH CARE NHS TRUST","RDEE4","Epsom Hospital - RVR50"]
[null,null,null,null,null,null,null,null,null,null,null,null,null,null,null,null,null,null,null,null,"Q71","RKE","THE WHITTINGTON HOSPITAL NHS TRUST","RKEQ4","The Whittington Hospital - RKEQ4",null,"RGQ","HOMERTON UNIVERSITY HOSPITAL NHS FOUNDATION TRUST",null,"RGQ","HOMERTON UNIVERSITY HOSPITAL NHS FOUNDATION TRUST","RDU01","Fairfield General Hospital - RW601"]
[null,null,null,null,null,null,null,null,null,null,null,null,null,null,null,null,null,null,null,null,"Q71","RRV","UNIVERSITY COLLEGE LONDON HOSPITALS NHS FOUNDATION TRUST","RRV03","University College Hospital - RRV03",null,"RGR","HULL AND EAST YORKSHIRE HOSPITALS NHS TRUST",null,"RGR","HULL AND EAST YORKSHIRE HOSPITALS NHS TRUST","RDU50","Friarage Hospital Site - RTR45"]
[null,null,null,null,null,null,null,null,null,null,null,null,null,null,null,null,null,null,null,null,"Q72","RCF","AIREDALE NHS FOUNDATION TRUST","RCF22","Airedale General Hospital - RCF22",null,"RGT","IMPERIAL COLLEGE HEALTHCARE NHS TRUST",null,"RGT","IMPERIAL COLLEGE HEALTHCARE NHS TRUST","RDZ20","Frimley Park Hospital - RDU01"]
[null,null,null,null,null,null,null,null,null,null,null,null,null,null,null,null,null,null,null,null,"Q72","RFF","BARNSLEY HOSPITAL NHS FOUNDATION TRUST","RFFAA","Barnsley Hospital NHS Foundation Trust HQ - RFFAA",null,"RH8","IPSWICH HOSPITAL NHS TRUST",null,"RH8","IPSWICH HOSPITAL NHS TRUST","RE9GA","Furness General Hospital - RTXBU"]
[null,null,null,null,null,null,null,null,null,null,null,null,null,null,null,null,null,null,null,null,"Q72","RAE","BRADFORD TEACHING HOSPITALS NHS FOUNDATION TRUST","RAE01","Bradford Royal Infirmary - RAE01",null,"RHM","ISLE OF WIGHT NHS TRUST",null,"RHM","ISLE OF WIGHT NHS TRUST","REF12","George Eliot Hospital - Acute Services - RLT01"]
[null,null,null,null,null,null,null,null,null,null,null,null,null,null,null,null,null,null,null,null,"Q72","RWY","CALDERDALE AND HUDDERSFIELD NHS FOUNDATION TRUST","RWY02","Calderdale Royal Hospital - RWY02",null,"RHQ","JAMES PAGET UNIVERSITY HOSPITALS NHS FOUNDATION TRUST",null,"RHQ","JAMES PAGET UNIVERSITY HOSPITALS NHS FOUNDATION TRUST","REM21","Gloucestershire Royal Hospital - RTE03"]
[null,null,null,null,null,null,null,null,null,null,null,null,null,null,null,null,null,null,null,null,"Q72","RWY","CALDERDALE AND HUDDERSFIELD NHS FOUNDATION TRUST","RWY01","Huddersfield Royal Infirmary - RWY01",null,"RHU","KETTERING GENERAL HOSPITAL NHS FOUNDATION TRUST",null,"RHU","KETTERING GENERAL HOSPITAL NHS FOUNDATION TRUST","REP01","Good Hope Hospital - RR105"]
[null,null,null,null,null,null,null,null,null,null,null,null,null,null,null,null,null,null,null,null,"Q72","RP5","DONCASTER AND BASSETLAW HOSPITALS NHS FOUNDATION TRUST","RP5BA","Bassetlaw Hospital - RP5BA",null,"RHW","KING'S COLLEGE HOSPITAL NHS FOUNDATION TRUST",null,"RHW","KING'S COLLEGE HOSPITAL NHS FOUNDATION TRUST","RF4DG","Grantham and District Hospital - RWDLP"]
[null,null,null,null,null,null,null,null,null,null,null,null,null,null,null,null,null,null,null,null,"Q72","RP5","DONCASTER AND BASSETLAW HOSPITALS NHS FOUNDATION TRUST","RP5DR","Doncaster Royal Infirmary - RP5DR",null,"RJ1","KINGSTON HOSPITAL NHS FOUNDATION TRUST",null,"RJ1","KINGSTON HOSPITAL NHS FOUNDATION TRUST","RF4QH","Halton Hospital - RWWHG"]
[null,null,null,null,null,null,null,null,null,null,null,null,null,null,null,null,null,null,null,null,"Q72","RP5","DONCASTER AND BASSETLAW HOSPITALS NHS FOUNDATION TRUST","RP5XXX","WiC_MIU - RP5XXX",null,"RJ2","LANCASHIRE TEACHING HOSPITALS NHS FOUNDATION TRUST",null,"RJ2","LANCASHIRE TEACHING HOSPITALS NHS FOUNDATION TRUST","RFFAA","Harrogate District Hospital - RCD01"]
[null,null,null,null,null,null,null,null,null,null,null,null,null,null,null,null,null,null,null,null,"Q72","RCD","HARROGATE AND DISTRICT NHS FOUNDATION TRUST","RCD01","Harrogate District Hospital - RCD01",null,"RJ6","LEEDS TEACHING HOSPITALS NHS TRUST",null,"RJ6","LEEDS TEACHING HOSPITALS NHS TRUST","RFRPA","Heartlands Hospital - RR101"]
[null,null,null,null,null,null,null,null,null,null,null,null,null,null,null,null,null,null,null,null,"Q72","RCD","HARROGATE AND DISTRICT NHS FOUNDATION TRUST","RCDXXX","WiC_MIU - RCDXXX",null,"RJ7","LEWISHAM AND GREENWICH NHS TRUST",null,"RJ7","LEWISHAM AND GREENWICH NHS TRUST","RFSDA","Hereford County Hospital - RLQ01"]
[null,null,null,null,null,null,null,null,null,null,null,null,null,null,null,null,null,null,null,null,"Q72","RWA","HULL AND EAST YORKSHIRE HOSPITALS NHS TRUST","RWA01","Hull Royal Infirmary - RWA01",null,"RJC","LIVERPOOL WOMEN'S NHS FOUNDATION TRUST",null,"RJC","LIVERPOOL WOMEN'S NHS FOUNDATION TRUST","RGN80","Hexham General Hospital - RTFDR"]
[null,null,null,null,null,null,null,null,null,null,null,null,null,null,null,null,null,null,null,null,"Q72","RR8","LEEDS TEACHING HOSPITALS NHS TRUST","RR801","Leeds General Infirmary - RR801",null,"RJE","LONDON NORTH WEST HEALTHCARE NHS TRUST",null,"RJE","LONDON NORTH WEST HEALTHCARE NHS TRUST","RGNXXX","Hillingdon Hospital - RAS01"]
[null,null,null,null,null,null,null,null,null,null,null,null,null,null,null,null,null,null,null,null,"Q72","RR8","LEEDS TEACHING HOSPITALS NHS TRUST","RR813","St James's University Hospital - RR813",null,"RJF","LUTON AND DUNSTABLE UNIVERSITY HOSPITAL NHS FOUNDATION TRUST",null,"RJF","LUTON AND DUNSTABLE UNIVERSITY HOSPITAL NHS FOUNDATION TRUST","RGP75","Hinchingbrooke Hospital - RQQ31"]
[null,null,null,null,null,null,null,null,null,null,null,null,null,null,null,null,null,null,null,null,"Q72","RXF","MID YORKSHIRE HOSPITALS NHS TRUST","RXF10","Dewsbury and District Hospital - RXF10",null,"RJL","MAIDSTONE AND TUNBRIDGE WELLS NHS TRUST",null,"RJL","MAIDSTONE AND TUNBRIDGE WELLS NHS TRUST","RGQ02","Homerton University Hospital - RQXM1"]
[null,null,null,null,null,null,null,null,null,null,null,null,null,null,null,null,null,null,null,null,"Q72","RXF","MID YORKSHIRE HOSPITALS NHS TRUST","RXF05","Pinderfields General Hospital - RXF05",null,"RJN","MEDWAY NHS FOUNDATION TRUST",null,"RJN","MEDWAY NHS FOUNDATION TRUST","RGR50","Horton General Hospital - RTH05"]
[null,null,null,null,null,null,null,null,null,null,null,null,null,null,null,null,null,null,null,null,"Q72","RXF","MID YORKSHIRE HOSPITALS NHS TRUST","RXF03","Pontefract General Infirmary - RXF03",null,"RJR","MID CHESHIRE HOSPITALS NHS FOUNDATION TRUST",null,"RJR","MID CHESHIRE HOSPITALS NHS FOUNDATION TRUST","RGT01","Huddersfield Royal Infirmary - RWY01"]
[null,null,null,null,null,null,null,null,null,null,null,null,null,null,null,null,null,null,null,null,"Q72","RJL","NORTHERN LINCOLNSHIRE AND GOOLE NHS FOUNDATION TRUST","RJL30","Diana, Princess Of Wales Hospital - RJL30",null,"RJZ","MID ESSEX HOSPITAL SERVICES NHS TRUST",null,"RJZ","MID ESSEX HOSPITAL SERVICES NHS TRUST","RH801","Hull Royal Infirmary - RWA01"]
[null,null,null,null,null,null,null,null,null,null,null,null,null,null,null,null,null,null,null,null,"Q72","RJL","NORTHERN LINCOLNSHIRE AND GOOLE NHS FOUNDATION TRUST","RJL32","Scunthorpe General Hospital - RJL32",null,"RK5","MID YORKSHIRE HOSPITALS NHS TRUST",null,"RK5","MID YORKSHIRE HOSPITALS NHS TRUST","RHM01","James Paget University Hospital - RGP75"]
[null,null,null,null,null,null,null,null,null,null,null,null,null,null,null,null,null,null,null,null,"Q72","RJL","NORTHERN LINCOLNSHIRE AND GOOLE NHS FOUNDATION TRUST","RJLXXX","WiC_MIU - RJLXXX",null,"RK9","MILTON KEYNES UNIVERSITY HOSPITAL NHS FOUNDATION TRUST",null,"RK9","MILTON KEYNES UNIVERSITY HOSPITAL NHS FOUNDATION TRUST","RHQHH","John Radcliffe Hospital - RTH08"]
[null,null,null,null,null,null,null,null,null,null,null,null,null,null,null,null,null,null,null,null,"Q72","RCU","SHEFFIELD CHILDREN'S NHS FOUNDATION TRUST","RCUEF","Sheffield Children's Hospital - RCUEF",null,"RKB","MOORFIELDS EYE HOSPITAL NHS FOUNDATION TRUST",null,"RKB","MOORFIELDS EYE HOSPITAL NHS FOUNDATION TRUST","RHQNG","Kent and Canterbury Hospital - RVVKC"]
[null,null,null,null,null,null,null,null,null,null,null,null,null,null,null,null,null,null,null,null,"Q72","RHQ","SHEFFIELD TEACHING HOSPITALS NHS FOUNDATION TRUST","RHQNG","Northern General Hospital - RHQNG",null,"RKE","NORFOLK AND NORWICH UNIVERSITY HOSPITALS NHS FOUNDATION TRUST",null,"RKE","NORFOLK AND NORWICH UNIVERSITY HOSPITALS NHS FOUNDATION TRUST","RHQXXX","Kettering General Hospital - RNQ51"]
[null,null,null,null,null,null,null,null,null,null,null,null,null,null,null,null,null,null,null,null,"Q72","RHQ","SHEFFIELD TEACHING HOSPITALS NHS FOUNDATION TRUST","RHQHH","Royal Hallamshire Hospital - RHQHH",null,"RL4","NORTH BRISTOL NHS TRUST",null,"RL4","NORTH BRISTOL NHS TRUST","RHU03","Kidderminster Hospital - RWP31"]
[null,null,null,null,null,null,null,null,null,null,null,null,null,null,null,null,null,null,null,null,"Q72","RHQ","SHEFFIELD TEACHING HOSPITALS NHS FOUNDATION TRUST","RHQXXX","WiC_MIU - RHQXXX",null,"RLN","NORTH CUMBRIA UNIVERSITY HOSPITALS NHS TRUST",null,"RLN","NORTH CUMBRIA UNIVERSITY HOSPITALS NHS TRUST","RHUXXX","King Edward Vii Hospital - RHW03"]
[null,null,null,null,null,null,null,null,null,null,null,null,null,null,null,null,null,null,null,null,"Q72","RFR","THE ROTHERHAM NHS FOUNDATION TRUST","RFRPA","Rotherham District General Hospital - RFRPA",null,"RLQ","NORTH MIDDLESEX UNIVERSITY HOSPITAL NHS TRUST",null,"RLQ","NORTH MIDDLESEX UNIVERSITY HOSPITAL NHS TRUST","RHW01","King George Hospital - RF4DG"]
[null,null,null,null,null,null,null,null,null,null,null,null,null,null,null,null,null,null,null,null,"Q72","RCB","YORK TEACHING HOSPITAL NHS FOUNDATION TRUST","RCBCA","Scarborough General Hospital - RCBCA",null,"RLT","NORTH TEES AND HARTLEPOOL NHS FOUNDATION TRUST",null,"RLT","NORTH TEES AND HARTLEPOOL NHS FOUNDATION TRUST","RHW03","Kings College Dental Hospital - RJZ33"]
[null,null,null,null,null,null,null,null,null,null,null,null,null,null,null,null,null,null,null,null,"Q72","RCB","YORK TEACHING HOSPITAL NHS FOUNDATION TRUST","RCB55","York Hospital - RCB55",null,"RM1","NORTHAMPTON GENERAL HOSPITAL NHS TRUST",null,"RM1","NORTHAMPTON GENERAL HOSPITAL NHS TRUST","RJ122","King's College Hospital (Denmark Hill) - RJZ01"]
[null,null,null,null,null,null,null,null,null,null,null,null,null,null,null,null,null,null,null,null,"Q73","RXL","BLACKPOOL TEACHING HOSPITALS NHS FOUNDATION TRUST","RXL01","Blackpool Victoria Hospital - RXL01",null,"RM2","NORTHERN DEVON HEALTHCARE NHS TRUST",null,"RM2","NORTHERN DEVON HEALTHCARE NHS TRUST","RJ1XXX","King's Mill Hospital - RK5BC"]
[null,null,null,null,null,null,null,null,null,null,null,null,null,null,null,null,null,null,null,null,"Q73","RMC","BOLTON NHS FOUNDATION TRUST","RMC01","Royal Bolton Hospital - RMC01",null,"RM3","NORTHERN LINCOLNSHIRE AND GOOLE NHS FOUNDATION TRUST",null,"RM3","NORTHERN LINCOLNSHIRE AND GOOLE NHS FOUNDATION TRUST","RJ224","Kingston Hospital - RAX01"]
[null,null,null,null,null,null,null,null,null,null,null,null,null,null,null,null,null,null,null,null,"Q73","RW3","CENTRAL MANCHESTER UNIVERSITY HOSPITALS NHS FOUNDATION TRUST","RW3RE","Manchester Royal Eye Hospital - RW3RE",null,"RMC","NORTHUMBRIA HEALTHCARE NHS FOUNDATION TRUST",null,"RMC","NORTHUMBRIA HEALTHCARE NHS FOUNDATION TRUST","RJ231","Leeds General Infirmary - RR801"]
[null,null,null,null,null,null,null,null,null,null,null,null,null,null,null,null,null,null,null,null,"Q73","RW3","CENTRAL MANCHESTER UNIVERSITY HOSPITALS NHS FOUNDATION TRUST","RW3MR","Manchester Royal Infirmary - RW3MR",null,"RMP","NOTTINGHAM UNIVERSITY HOSPITALS NHS TRUST",null,"RMP","NOTTINGHAM UNIVERSITY HOSPITALS NHS TRUST","RJ611","Leicester Royal Infirmary - RWEAA"]
[null,null,null,null,null,null,null,null,null,null,null,null,null,null,null,null,null,null,null,null,"Q73","RW3","CENTRAL MANCHESTER UNIVERSITY HOSPITALS NHS FOUNDATION TRUST","RW3RC","Royal Manchester Children's Hospital - RW3RC",null,"RN3","OXFORD UNIVERSITY HOSPITALS NHS FOUNDATION TRUST",null,"RN3","OXFORD UNIVERSITY HOSPITALS NHS FOUNDATION TRUST","RJ701","Leighton Hospital - RBT20"]
[null,null,null,null,null,null,null,null,null,null,null,null,null,null,null,null,null,null,null,null,"Q73","RW3","CENTRAL MANCHESTER UNIVERSITY HOSPITALS NHS FOUNDATION TRUST","RW3SM","St Mary's Hospital - RW3SM",null,"RN5","PENNINE ACUTE HOSPITALS NHS TRUST",null,"RN5","PENNINE ACUTE HOSPITALS NHS TRUST","RJ7XXX","Lincoln County Hospital - RWDDA"]
[null,null,null,null,null,null,null,null,null,null,null,null,null,null,null,null,null,null,null,null,"Q73","RW3","CENTRAL MANCHESTER UNIVERSITY HOSPITALS NHS FOUNDATION TRUST","RW3TR","Trafford General Hospital - RW3TR",null,"RN7","PETERBOROUGH AND STAMFORD HOSPITALS NHS FOUNDATION TRUST",null,"RN7","PETERBOROUGH AND STAMFORD HOSPITALS NHS FOUNDATION TRUST","RJC02","Lister Hospital - RWH01"]
[null,null,null,null,null,null,null,null,null,null,null,null,null,null,null,null,null,null,null,null,"Q73","RW3","CENTRAL MANCHESTER UNIVERSITY HOSPITALS NHS FOUNDATION TRUST","RW3DH","University Dental Hospital - RW3DH",null,"RNA","PLYMOUTH HOSPITALS NHS TRUST",null,"RNA","PLYMOUTH HOSPITALS NHS TRUST","RJCXXX","Liverpool Womens Hospital - REP01"]
[null,null,null,null,null,null,null,null,null,null,null,null,null,null,null,null,null,null,null,null,"Q73","RXR","EAST LANCASHIRE HOSPITALS NHS TRUST","RXR20","Royal Blackburn Hospital - RXR20",null,"RNL","POOLE HOSPITAL NHS FOUNDATION TRUST",null,"RNL","POOLE HOSPITAL NHS FOUNDATION TRUST","RJE01","Luton and Dunstable Hospital - RC971"]
[null,null,null,null,null,null,null,null,null,null,null,null,null,null,null,null,null,null,null,null,"Q73","RXN","LANCASHIRE TEACHING HOSPITALS NHS FOUNDATION TRUST","RXN01","Chorley and South Ribble Hospital - RXN01",null,"RNQ","PORTSMOUTH HOSPITALS NHS TRUST",null,"RNQ","PORTSMOUTH HOSPITALS NHS TRUST","RJE09","Macclesfield District General Hospital - RJN71"]
[null,null,null,null,null,null,null,null,null,null,null,null,null,null,null,null,null,null,null,null,"Q73","RXN","LANCASHIRE TEACHING HOSPITALS NHS FOUNDATION TRUST","RXN02","Royal Preston Hospital - RXN02",null,"RNS","ROYAL BERKSHIRE NHS FOUNDATION TRUST",null,"RNS","ROYAL BERKSHIRE NHS FOUNDATION TRUST","RJF02","Maidstone District General Hospital - RWF03"]
[null,null,null,null,null,null,null,null,null,null,null,null,null,null,null,null,null,null,null,null,"Q73","RW6","PENNINE ACUTE HOSPITALS NHS TRUST","RW601","Fairfield General Hospital - RW601",null,"RNZ","ROYAL CORNWALL HOSPITALS NHS TRUST",null,"RNZ","ROYAL CORNWALL HOSPITALS NHS TRUST","RJFXXX","Manchester Royal Eye Hospital - RW3RE"]
[null,null,null,null,null,null,null,null,null,null,null,null,null,null,null,null,null,null,null,null,"Q73","RW6","PENNINE ACUTE HOSPITALS NHS TRUST","RW602","North Manchester General Hospital - RW602",null,"RP5","ROYAL DEVON AND EXETER NHS FOUNDATION TRUST",null,"RP5","ROYAL DEVON AND EXETER NHS FOUNDATION TRUST","RJL30","Manchester Royal Infirmary - RW3MR"]
[null,null,null,null,null,null,null,null,null,null,null,null,null,null,null,null,null,null,null,null,"Q73","RW6","PENNINE ACUTE HOSPITALS NHS TRUST","RW604","Rochdale Infirmary - RW604",null,"RP6","ROYAL FREE LONDON NHS FOUNDATION TRUST",null,"RP6","ROYAL FREE LONDON NHS FOUNDATION TRUST","RJL32","Manor Hospital - RBK02"]
[null,null,null,null,null,null,null,null,null,null,null,null,null,null,null,null,null,null,null,null,"Q73","RW6","PENNINE ACUTE HOSPITALS NHS TRUST","RW603","Royal Oldham Hospital - RW603",null,"RPA","ROYAL LIVERPOOL AND BROADGREEN UNIVERSITY HOSPITALS NHS TRUST",null,"RPA","ROYAL LIVERPOOL AND BROADGREEN UNIVERSITY HOSPITALS NHS TRUST","RJLXXX","Mayday University Hospital - RJ611"]
[null,null,null,null,null,null,null,null,null,null,null,null,null,null,null,null,null,null,null,null,"Q73","RM3","SALFORD ROYAL NHS FOUNDATION TRUST","RM301","Salford Royal - RM301",null,"RQ3","ROYAL SURREY COUNTY HOSPITAL NHS FOUNDATION TRUST",null,"RQ3","ROYAL SURREY COUNTY HOSPITAL NHS FOUNDATION TRUST","RJN63","Medway Maritime Hospital - RPA02"]
[null,null,null,null,null,null,null,null,null,null,null,null,null,null,null,null,null,null,null,null,"Q73","RWJ","STOCKPORT NHS FOUNDATION TRUST","RWJ09","Stepping Hill Hospital - RWJ09",null,"RQ6","ROYAL UNITED HOSPITALS BATH NHS FOUNDATION TRUST",null,"RQ6","ROYAL UNITED HOSPITALS BATH NHS FOUNDATION TRUST","RJN71","Milton Keynes Hospital - RD816"]
[null,null,null,null,null,null,null,null,null,null,null,null,null,null,null,null,null,null,null,null,"Q73","RMP","TAMESIDE HOSPITAL NHS FOUNDATION TRUST","RMP01","Tameside General Hospital - RMP01",null,"RQ8","SALFORD ROYAL NHS FOUNDATION TRUST",null,"RQ8","SALFORD ROYAL NHS FOUNDATION TRUST","RJR05","Moorfields Eye Hospital (City Road) - RP601"]
[null,null,null,null,null,null,null,null,null,null,null,null,null,null,null,null,null,null,null,null,"Q73","RM2","UNIVERSITY HOSPITAL OF SOUTH MANCHESTER NHS FOUNDATION TRUST","RM202","Wythenshawe Hospital - RM202",null,"RQM","SALISBURY NHS FOUNDATION TRUST",null,"RQM","SALISBURY NHS FOUNDATION TRUST","RJZ01","Mount Vernon Hospital Site - RAS02"]
[null,null,null,null,null,null,null,null,null,null,null,null,null,null,null,null,null,null,null,null,"Q73","RRF","WRIGHTINGTON, WIGAN AND LEIGH NHS FOUNDATION TRUST","RRF02","Royal Albert Edward Infirmary - RRF02",null,"RQQ","SANDWELL AND WEST BIRMINGHAM HOSPITALS NHS TRUST",null,"RQQ","SANDWELL AND WEST BIRMINGHAM HOSPITALS NHS TRUST","RJZ30","Musgrove Park Hospital - RBA11"]
[null,null,null,null,null,null,null,null,null,null,null,null,null,null,null,null,null,null,null,null,"Q74","RLN","CITY HOSPITALS SUNDERLAND NHS FOUNDATION TRUST","RLNGM","Sunderland Eye Infirmary - RLNGM",null,"RQW","SHEFFIELD CHILDREN'S NHS FOUNDATION TRUST",null,"RQW","SHEFFIELD CHILDREN'S NHS FOUNDATION TRUST","RJZ33","New Cross Hospital - RL403"]
[null,null,null,null,null,null,null,null,null,null,null,null,null,null,null,null,null,null,null,null,"Q74","RLN","CITY HOSPITALS SUNDERLAND NHS FOUNDATION TRUST","RLNGL","Sunderland Royal Hospital - RLNGL",null,"RQX","SHEFFIELD TEACHING HOSPITALS NHS FOUNDATION TRUST",null,"RQX","SHEFFIELD TEACHING HOSPITALS NHS FOUNDATION TRUST","RK5BC","Newham General Hospital - R1HNH"]
[null,null,null,null,null,null,null,null,null,null,null,null,null,null,null,null,null,null,null,null,"Q74","RLN","CITY HOSPITALS SUNDERLAND NHS FOUNDATION TRUST","RLNXXX","WiC_MIU - RLNXXX",null,"RR1","SHERWOOD FOREST HOSPITALS NHS FOUNDATION TRUST",null,"RR1","SHERWOOD FOREST HOSPITALS NHS FOUNDATION TRUST","RK5XXX","Norfolk and Norwich University Hospital - RM102"]
[null,null,null,null,null,null,null,null,null,null,null,null,null,null,null,null,null,null,null,null,"Q74","RXP","COUNTY DURHAM AND DARLINGTON NHS FOUNDATION TRUST","RXPDA","Darlington Memorial Hospital - RXPDA",null,"RR7","SHREWSBURY AND TELFORD HOSPITAL NHS TRUST",null,"RR7","SHREWSBURY AND TELFORD HOSPITAL NHS TRUST","RK950","North Devon District Hospital - RBZ12"]
[null,null,null,null,null,null,null,null,null,null,null,null,null,null,null,null,null,null,null,null,"Q74","RXP","COUNTY DURHAM AND DARLINGTON NHS FOUNDATION TRUST","RXPCP","University Hospital Of North Durham - RXPCP",null,"RR8","SOUTH TEES HOSPITALS NHS FOUNDATION TRUST",null,"RR8","SOUTH TEES HOSPITALS NHS FOUNDATION TRUST","RKB01","North Manchester General Hospital - RW602"]
[null,null,null,null,null,null,null,null,null,null,null,null,null,null,null,null,null,null,null,null,"Q74","RXP","COUNTY DURHAM AND DARLINGTON NHS FOUNDATION TRUST","RXPXXX","WiC_MIU - RXPXXX",null,"RRF","SOUTH TYNESIDE NHS FOUNDATION TRUST",null,"RRF","SOUTH TYNESIDE NHS FOUNDATION TRUST","RKBXXX","North Middlesex Hospital - RAPNM"]
[null,null,null,null,null,null,null,null,null,null,null,null,null,null,null,null,null,null,null,null,"Q74","RR7","GATESHEAD HEALTH NHS FOUNDATION TRUST","RR7ER","Dunston Hill Hospital - RR7ER",null,"RRK","SOUTH WARWICKSHIRE NHS FOUNDATION TRUST",null,"RRK","SOUTH WARWICKSHIRE NHS FOUNDATION TRUST","RKEQ4","North Tyneside General Hospital - RTFFS"]
[null,null,null,null,null,null,null,null,null,null,null,null,null,null,null,null,null,null,null,null,"Q74","RNL","NORTH CUMBRIA UNIVERSITY HOSPITALS NHS TRUST","RNLAY","Cumberland Infirmary - RNLAY",null,"RRV","SOUTHEND UNIVERSITY HOSPITAL NHS FOUNDATION TRUST",null,"RRV","SOUTHEND UNIVERSITY HOSPITAL NHS FOUNDATION TRUST","RL402","Northampton General Hospital (Acute) - RNS01"]
[null,null,null,null,null,null,null,null,null,null,null,null,null,null,null,null,null,null,null,null,"Q74","RNL","NORTH CUMBRIA UNIVERSITY HOSPITALS NHS TRUST","RNLBX","West Cumberland Hospital - RNLBX",null,"RTD","SOUTHPORT AND ORMSKIRK HOSPITAL NHS TRUST",null,"RTD","SOUTHPORT AND ORMSKIRK HOSPITAL NHS TRUST","RL403","Northern General Hospital - RHQNG"]
[null,null,null,null,null,null,null,null,null,null,null,null,null,null,null,null,null,null,null,null,"Q74","RVW","NORTH TEES AND HARTLEPOOL NHS FOUNDATION TRUST","RVWAE","University Hospital Of North Tees - RVWAE",null,"RTE","ST GEORGE'S UNIVERSITY HOSPITALS NHS FOUNDATION TRUST",null,"RTE","ST GEORGE'S UNIVERSITY HOSPITALS NHS FOUNDATION TRUST","RL4XXX","Northwick Park Hospital - R1K01"]
[null,null,null,null,null,null,null,null,null,null,null,null,null,null,null,null,null,null,null,null,"Q74","RVW","NORTH TEES AND HARTLEPOOL NHS FOUNDATION TRUST","RVWXXX","WiC_MIU - RVWXXX",null,"RTF","ST HELENS AND KNOWSLEY HOSPITALS NHS TRUST",null,"RTF","ST HELENS AND KNOWSLEY HOSPITALS NHS TRUST","RLNGL","Nottingham University Hospitals NHS Trust - Queen's Medical Centre Campus - RX1RA"]
[null,null,null,null,null,null,null,null,null,null,null,null,null,null,null,null,null,null,null,null,"Q74","RTF","NORTHUMBRIA HEALTHCARE NHS FOUNDATION TRUST","RTFDR","Hexham General Hospital - RTFDR",null,"RTG","STOCKPORT NHS FOUNDATION TRUST",null,"RTG","STOCKPORT NHS FOUNDATION TRUST","RLNGM","Ormskirk and District General Hospital - RVY02"]
[null,null,null,null,null,null,null,null,null,null,null,null,null,null,null,null,null,null,null,null,"Q74","RTF","NORTHUMBRIA HEALTHCARE NHS FOUNDATION TRUST","RTFFS","North Tyneside General Hospital - RTFFS",null,"RTH","SURREY AND SUSSEX HEALTHCARE NHS TRUST",null,"RTH","SURREY AND SUSSEX HEALTHCARE NHS TRUST","RLNXXX","Peterborough City Hospital - RGN80"]
[null,null,null,null,null,null,null,null,null,null,null,null,null,null,null,null,null,null,null,null,"Q74","RTF","NORTHUMBRIA HEALTHCARE NHS FOUNDATION TRUST","RTF86","The Northumbria - RTF86",null,"RTK","TAMESIDE HOSPITAL NHS FOUNDATION TRUST",null,"RTK","TAMESIDE HOSPITAL NHS FOUNDATION TRUST","RLQ01","Pilgrim Hospital - RWDLA"]
[null,null,null,null,null,null,null,null,null,null,null,null,null,null,null,null,null,null,null,null,"Q74","RTF","NORTHUMBRIA HEALTHCARE NHS FOUNDATION TRUST","RTFED","Wansbeck Hospital - RTFED",null,"RTP","TAUNTON AND SOMERSET NHS FOUNDATION TRUST",null,"RTP","TAUNTON AND SOMERSET NHS FOUNDATION TRUST","RLT01","Pinderfields General Hospital - RXF05"]
[null,null,null,null,null,null,null,null,null,null,null,null,null,null,null,null,null,null,null,null,"Q74","RTF","NORTHUMBRIA HEALTHCARE NHS FOUNDATION TRUST","RTFXXX","WiC_MIU - RTFXXX",null,"RTR","THE DUDLEY GROUP NHS FOUNDATION TRUST",null,"RTR","THE DUDLEY GROUP NHS FOUNDATION TRUST","RM102","Pontefract General Infirmary - RXF03"]
[null,null,null,null,null,null,null,null,null,null,null,null,null,null,null,null,null,null,null,null,"Q74","RTR","SOUTH TEES HOSPITALS NHS FOUNDATION TRUST","RTR45","Friarage Hospital Site - RTR45",null,"RTX","THE HILLINGDON HOSPITALS NHS FOUNDATION TRUST",null,"RTX","THE HILLINGDON HOSPITALS NHS FOUNDATION TRUST","RM202","Poole General Hospital NHS Trust HQ - RD304"]
[null,null,null,null,null,null,null,null,null,null,null,null,null,null,null,null,null,null,null,null,"Q74","RTR","SOUTH TEES HOSPITALS NHS FOUNDATION TRUST","RTRAT","The James Cook University Hospital - RTRAT",null,"RVJ","THE NEWCASTLE UPON TYNE HOSPITALS NHS FOUNDATION TRUST",null,"RVJ","THE NEWCASTLE UPON TYNE HOSPITALS NHS FOUNDATION TRUST","RM301","Princess Alexandra Hospital - RQWG0"]
[null,null,null,null,null,null,null,null,null,null,null,null,null,null,null,null,null,null,null,null,"Q74","RTR","SOUTH TEES HOSPITALS NHS FOUNDATION TRUST","RTRXXX","WiC_MIU - RTRXXX",null,"RVR","THE PRINCESS ALEXANDRA HOSPITAL NHS TRUST",null,"RVR","THE PRINCESS ALEXANDRA HOSPITAL NHS TRUST","RMC01","Princess Royal Hospital - RXH09"]
[null,null,null,null,null,null,null,null,null,null,null,null,null,null,null,null,null,null,null,null,"Q74","RE9","SOUTH TYNESIDE NHS FOUNDATION TRUST","RE9GA","South Tyneside District Hospital - RE9GA",null,"RVV","THE QUEEN ELIZABETH HOSPITAL, KING'S LYNN, NHS FOUNDATION TRUST",null,"RVV","THE QUEEN ELIZABETH HOSPITAL, KING'S LYNN, NHS FOUNDATION TRUST","RMP01","Princess Royal University Hospital - RJZ30"]
[null,null,null,null,null,null,null,null,null,null,null,null,null,null,null,null,null,null,null,null,"Q74","RTD","THE NEWCASTLE UPON TYNE HOSPITALS NHS FOUNDATION TRUST","RTD02","The Royal Victoria Infirmary - RTD02",null,"RVW","THE ROTHERHAM NHS FOUNDATION TRUST",null,"RVW","THE ROTHERHAM NHS FOUNDATION TRUST","RN325","Queen Alexandra Hospital - RHU03"]
[null,null,null,null,null,null,null,null,null,null,null,null,null,null,null,null,null,null,null,null,"Q74","RTX","UNIVERSITY HOSPITALS OF MORECAMBE BAY NHS FOUNDATION TRUST","RTXBU","Furness General Hospital - RTXBU",null,"RVY","THE ROYAL BOURNEMOUTH AND CHRISTCHURCH HOSPITALS NHS FOUNDATION TRUST",null,"RVY","THE ROYAL BOURNEMOUTH AND CHRISTCHURCH HOSPITALS NHS FOUNDATION TRUST","RN3XXX","Queen Elizabeth Hospital - RJ231"]
[null,null,null,null,null,null,null,null,null,null,null,null,null,null,null,null,null,null,null,null,"Q74","RTX","UNIVERSITY HOSPITALS OF MORECAMBE BAY NHS FOUNDATION TRUST","RTX02","Royal Lancaster Infirmary - RTX02",null,"RW3","THE ROYAL WOLVERHAMPTON NHS TRUST",null,"RW3","THE ROYAL WOLVERHAMPTON NHS TRUST","RN506","Queen Elizabeth Hospital Birmingham - RRK15"]
[null,null,null,null,null,null,null,null,null,null,null,null,null,null,null,null,null,null,null,null,"Q75","REM","AINTREE UNIVERSITY HOSPITAL NHS FOUNDATION TRUST","REM21","University Hospital Aintree - REM21",null,"RW6","THE WHITTINGTON HOSPITAL NHS TRUST",null,"RW6","THE WHITTINGTON HOSPITAL NHS TRUST","RN541","Queen Elizabeth I I Hospital - RWH20"]
[null,null,null,null,null,null,null,null,null,null,null,null,null,null,null,null,null,null,null,null,"Q75","RBS","ALDER HEY CHILDREN'S NHS FOUNDATION TRUST","RBS25","Alder Hey Children's NHS - RBS25",null,"RWA","TORBAY AND SOUTH DEVON NHS FOUNDATION TRUST",null,"RWA","TORBAY AND SOUTH DEVON NHS FOUNDATION TRUST","RN542","Queen Elizabeth The Queen Mother Hospital - RVV09"]
[null,null,null,null,null,null,null,null,null,null,null,null,null,null,null,null,null,null,null,null,"Q75","RJR","COUNTESS OF CHESTER HOSPITAL NHS FOUNDATION TRUST","RJR05","Countess Of Chester Hospital - RJR05",null,"RWD","UNITED LINCOLNSHIRE HOSPITALS NHS TRUST",null,"RWD","UNITED LINCOLNSHIRE HOSPITALS NHS TRUST","RN707","Queen's Hospital - RF4QH"]
[null,null,null,null,null,null,null,null,null,null,null,null,null,null,null,null,null,null,null,null,"Q75","RJN","EAST CHESHIRE NHS TRUST","RJN63","Congleton War Memorial Hospital - RJN63",null,"RWE","UNIVERSITY COLLEGE LONDON HOSPITALS NHS FOUNDATION TRUST",null,"RWE","UNIVERSITY COLLEGE LONDON HOSPITALS NHS FOUNDATION TRUST","RNA01","Queen's Hospital, Burton Upon Trent - RJF02"]
[null,null,null,null,null,null,null,null,null,null,null,null,null,null,null,null,null,null,null,null,"Q75","RJN","EAST CHESHIRE NHS TRUST","RJN71","Macclesfield District General Hospital - RJN71",null,"RWF","UNIVERSITY HOSPITAL OF SOUTH MANCHESTER NHS FOUNDATION TRUST",null,"RWF","UNIVERSITY HOSPITAL OF SOUTH MANCHESTER NHS FOUNDATION TRUST","RNLAY","Rochdale Infirmary - RW604"]
[null,null,null,null,null,null,null,null,null,null,null,null,null,null,null,null,null,null,null,null,"Q75","REP","LIVERPOOL WOMEN'S NHS FOUNDATION TRUST","REP01","Liverpool Womens Hospital - REP01",null,"RWG","UNIVERSITY HOSPITAL SOUTHAMPTON NHS FOUNDATION TRUST",null,"RWG","UNIVERSITY HOSPITAL SOUTHAMPTON NHS FOUNDATION TRUST","RNLBX","Rotherham District General Hospital - RFRPA"]
[null,null,null,null,null,null,null,null,null,null,null,null,null,null,null,null,null,null,null,null,"Q75","RBT","MID CHESHIRE HOSPITALS NHS FOUNDATION TRUST","RBT20","Leighton Hospital - RBT20",null,"RWH","UNIVERSITY HOSPITALS BIRMINGHAM NHS FOUNDATION TRUST",null,"RWH","UNIVERSITY HOSPITALS BIRMINGHAM NHS FOUNDATION TRUST","RNQ51","Royal Albert Edward Infirmary - RRF02"]
[null,null,null,null,null,null,null,null,null,null,null,null,null,null,null,null,null,null,null,null,"Q75","RBT","MID CHESHIRE HOSPITALS NHS FOUNDATION TRUST","RBTXXX","WiC_MIU - RBTXXX",null,"RWJ","UNIVERSITY HOSPITALS BRISTOL NHS FOUNDATION TRUST",null,"RWJ","UNIVERSITY HOSPITALS BRISTOL NHS FOUNDATION TRUST","RNS01","Royal Berkshire Hospital - RHW01"]
[null,null,null,null,null,null,null,null,null,null,null,null,null,null,null,null,null,null,null,null,"Q75","RQ6","ROYAL LIVERPOOL AND BROADGREEN UNIVERSITY HOSPITALS NHS TRUST","RQ617","The Royal Liverpool University Hospital - RQ617",null,"RWP","UNIVERSITY HOSPITALS COVENTRY AND WARWICKSHIRE NHS TRUST",null,"RWP","UNIVERSITY HOSPITALS COVENTRY AND WARWICKSHIRE NHS TRUST","RNZ02","Royal Blackburn Hospital - RXR20"]
[null,null,null,null,null,null,null,null,null,null,null,null,null,null,null,null,null,null,null,null,"Q75","RVY","SOUTHPORT AND ORMSKIRK HOSPITAL NHS TRUST","RVY02","Ormskirk and District General Hospital - RVY02",null,"RWW","UNIVERSITY HOSPITALS OF LEICESTER NHS TRUST",null,"RWW","UNIVERSITY HOSPITALS OF LEICESTER NHS TRUST","RP5BA","Royal Bolton Hospital - RMC01"]
[null,null,null,null,null,null,null,null,null,null,null,null,null,null,null,null,null,null,null,null,"Q75","RVY","SOUTHPORT AND ORMSKIRK HOSPITAL NHS TRUST","RVY01","Southport and Formby District General Hospital - RVY01",null,"RWY","UNIVERSITY HOSPITALS OF MORECAMBE BAY NHS FOUNDATION TRUST",null,"RWY","UNIVERSITY HOSPITALS OF MORECAMBE BAY NHS FOUNDATION TRUST","RP5DR","Royal Bournemouth General Hospital - RDZ20"]
[null,null,null,null,null,null,null,null,null,null,null,null,null,null,null,null,null,null,null,null,"Q75","RVY","SOUTHPORT AND ORMSKIRK HOSPITAL NHS TRUST","RVYXXX","WiC_MIU - RVYXXX",null,"RX1","UNIVERSITY HOSPITALS OF NORTH MIDLANDS NHS TRUST",null,"RX1","UNIVERSITY HOSPITALS OF NORTH MIDLANDS NHS TRUST","RP5XXX","Royal Cornwall Hospital (Treliske) - REF12"]
[null,null,null,null,null,null,null,null,null,null,null,null,null,null,null,null,null,null,null,null,"Q75","RBN","ST HELENS AND KNOWSLEY HOSPITALS NHS TRUST","RBN01","Whiston Hospital - RBN01",null,"RXC","WALSALL HEALTHCARE NHS TRUST",null,"RXC","WALSALL HEALTHCARE NHS TRUST","RP601","Royal Derby Hospital - RTGFG"]
[null,null,null,null,null,null,null,null,null,null,null,null,null,null,null,null,null,null,null,null,"Q75","RWW","WARRINGTON AND HALTON HOSPITALS NHS FOUNDATION TRUST","RWWHG","Halton Hospital - RWWHG",null,"RXF","WARRINGTON AND HALTON HOSPITALS NHS FOUNDATION TRUST",null,"RXF","WARRINGTON AND HALTON HOSPITALS NHS FOUNDATION TRUST","RPA02","Royal Devon and Exeter Hospital (Wonford) - RH801"]
[null,null,null,null,null,null,null,null,null,null,null,null,null,null,null,null,null,null,null,null,"Q75","RWW","WARRINGTON AND HALTON HOSPITALS NHS FOUNDATION TRUST","RWWWH","Warrington Hospital - RWWWH",null,"RXH","WEST HERTFORDSHIRE HOSPITALS NHS TRUST",null,"RXH","WEST HERTFORDSHIRE HOSPITALS NHS TRUST","RQ301","Royal Free Hospital - RAL01"]
[null,null,null,null,null,null,null,null,null,null,null,null,null,null,null,null,null,null,null,null,"Q75","RBL","WIRRAL UNIVERSITY TEACHING HOSPITAL NHS FOUNDATION TRUST","RBL14","Arrowe Park Hospital - RBL14",null,"RXK","WEST SUFFOLK NHS FOUNDATION TRUST",null,"RXK","WEST SUFFOLK NHS FOUNDATION TRUST","RQ617","Royal Hallamshire Hospital - RHQHH"]
[null,null,null,null,null,null,null,null,null,null,null,null,null,null,null,null,null,null,null,null,"Q76","RJF","BURTON HOSPITALS NHS FOUNDATION TRUST","RJF02","Queen's Hospital, Burton Upon Trent - RJF02",null,"RXL","WESTERN SUSSEX HOSPITALS NHS FOUNDATION TRUST",null,"RXL","WESTERN SUSSEX HOSPITALS NHS FOUNDATION TRUST","RQ8L0","Royal Hampshire County Hospital - RN541"]
[null,null,null,null,null,null,null,null,null,null,null,null,null,null,null,null,null,null,null,null,"Q76","RJF","BURTON HOSPITALS NHS FOUNDATION TRUST","RJFXXX","WiC_MIU - RJFXXX",null,"RXN","WESTON AREA HEALTH NHS TRUST",null,"RXN","WESTON AREA HEALTH NHS TRUST","RQM01","Royal Lancaster Infirmary - RTX02"]
[null,null,null,null,null,null,null,null,null,null,null,null,null,null,null,null,null,null,null,null,"Q76","RFS","CHESTERFIELD ROYAL HOSPITAL NHS FOUNDATION TRUST","RFSDA","Chesterfield Royal Hospital - RFSDA",null,"RXP","WIRRAL UNIVERSITY TEACHING HOSPITAL NHS FOUNDATION TRUST",null,"RXP","WIRRAL UNIVERSITY TEACHING HOSPITAL NHS FOUNDATION TRUST","RQM91","Royal Manchester Children's Hospital - RW3RC"]
[null,null,null,null,null,null,null,null,null,null,null,null,null,null,null,null,null,null,null,null,"Q76","RTG","DERBY TEACHING HOSPITALS NHS FOUNDATION TRUST","RTGFG","Royal Derby Hospital - RTGFG",null,"RXQ","WORCESTERSHIRE ACUTE HOSPITALS NHS TRUST",null,"RXQ","WORCESTERSHIRE ACUTE HOSPITALS NHS TRUST","RQMXXX","Royal Oldham Hospital - RW603"]
[null,null,null,null,null,null,null,null,null,null,null,null,null,null,null,null,null,null,null,null,"Q76","RX1","NOTTINGHAM UNIVERSITY HOSPITALS NHS TRUST","RX1RA","Nottingham University Hospitals NHS Trust - Queen's Medical Centre Campus - RX1RA",null,"RXR","WRIGHTINGTON, WIGAN AND LEIGH NHS FOUNDATION TRUST",null,"RXR","WRIGHTINGTON, WIGAN AND LEIGH NHS FOUNDATION TRUST","RQQ31","Royal Preston Hospital - RXN02"]
[null,null,null,null,null,null,null,null,null,null,null,null,null,null,null,null,null,null,null,null,"Q76","RK5","SHERWOOD FOREST HOSPITALS NHS FOUNDATION TRUST","RK5BC","King's Mill Hospital - RK5BC",null,"RXW","WYE VALLEY NHS TRUST",null,"RXW","WYE VALLEY NHS TRUST","RQWG0","Royal Shrewsbury Hospital - RXWAS"]
[null,null,null,null,null,null,null,null,null,null,null,null,null,null,null,null,null,null,null,null,"Q76","RK5","SHERWOOD FOREST HOSPITALS NHS FOUNDATION TRUST","RK5XXX","WiC_MIU - RK5XXX",null,"RYJ","YEOVIL DISTRICT HOSPITAL NHS FOUNDATION TRUST",null,"RYJ","YEOVIL DISTRICT HOSPITAL NHS FOUNDATION TRUST","RQXM1","Royal Stoke University Hospital - RJE01"]
[null,null,null,null,null,null,null,null,null,null,null,null,null,null,null,null,null,null,null,null,"Q76","RXW","SHREWSBURY AND TELFORD HOSPITAL NHS TRUST","RXWAS","Royal Shrewsbury Hospital - RXWAS",null,"RYR","YORK TEACHING HOSPITAL NHS FOUNDATION TRUST",null,"RYR","YORK TEACHING HOSPITAL NHS FOUNDATION TRUST","RR101","Royal Surrey County Hospital - RA201"]
[null,null,null,null,null,null,null,null,null,null,null,null,null,null,null,null,null,null,null,null,"Q76","RXW","SHREWSBURY AND TELFORD HOSPITAL NHS TRUST","RXWAT","The Princess Royal Hospital - RXWAT",null,null,null,null,null,null,"RR105","Royal Sussex County Hospital - RXH01"]
[null,null,null,null,null,null,null,null,null,null,null,null,null,null,null,null,null,null,null,null,"Q76","RJE","UNIVERSITY HOSPITALS OF NORTH MIDLANDS NHS TRUST","RJE09","County Hospital - RJE09",null,null,null,null,null,null,"RR1XXX","Royal United Hospital - RD130"]
[null,null,null,null,null,null,null,null,null,null,null,null,null,null,null,null,null,null,null,null,"Q76","RJE","UNIVERSITY HOSPITALS OF NORTH MIDLANDS NHS TRUST","RJE01","Royal Stoke University Hospital - RJE01",null,null,null,null,null,null,"RR7ER","Russells Hall Hospital - RNA01"]
[null,null,null,null,null,null,null,null,null,null,null,null,null,null,null,null,null,null,null,null,"Q77","RQ3","BIRMINGHAM CHILDREN'S HOSPITAL NHS FOUNDATION TRUST","RQ301","Birmingham Children's Hospital - RQ301",null,null,null,null,null,null,"RR801","Salford Royal - RM301"]
[null,null,null,null,null,null,null,null,null,null,null,null,null,null,null,null,null,null,null,null,"Q77","RLT","GEORGE ELIOT HOSPITAL NHS TRUST","RLT01","George Eliot Hospital - Acute Services - RLT01",null,null,null,null,null,null,"RR813","Salisbury District Hospital - RNZ02"]
[null,null,null,null,null,null,null,null,null,null,null,null,null,null,null,null,null,null,null,null,"Q77","RR1","HEART OF ENGLAND NHS FOUNDATION TRUST","RR105","Good Hope Hospital - RR105",null,null,null,null,null,null,"RRF02","Sandwell General Hospital - RXK01"]
[null,null,null,null,null,null,null,null,null,null,null,null,null,null,null,null,null,null,null,null,"Q77","RR1","HEART OF ENGLAND NHS FOUNDATION TRUST","RR101","Heartlands Hospital - RR101",null,null,null,null,null,null,"RRK15","Scarborough General Hospital - RCBCA"]
[null,null,null,null,null,null,null,null,null,null,null,null,null,null,null,null,null,null,null,null,"Q77","RR1","HEART OF ENGLAND NHS FOUNDATION TRUST","RR1XXX","WiC_MIU - RR1XXX",null,null,null,null,null,null,"RRV03","Scunthorpe General Hospital - RJL32"]
[null,null,null,null,null,null,null,null,null,null,null,null,null,null,null,null,null,null,null,null,"Q77","RXK","SANDWELL AND WEST BIRMINGHAM HOSPITALS NHS TRUST","RXK03","Birmingham Midland Eye Centre (Bmec) - RXK03",null,null,null,null,null,null,"RTD02","Sheffield Children's Hospital - RCUEF"]
[null,null,null,null,null,null,null,null,null,null,null,null,null,null,null,null,null,null,null,null,"Q77","RXK","SANDWELL AND WEST BIRMINGHAM HOSPITALS NHS TRUST","RXK02","City Hospital - RXK02",null,null,null,null,null,null,"RTE01","South Tyneside District Hospital - RE9GA"]
[null,null,null,null,null,null,null,null,null,null,null,null,null,null,null,null,null,null,null,null,"Q77","RXK","SANDWELL AND WEST BIRMINGHAM HOSPITALS NHS TRUST","RXK01","Sandwell General Hospital - RXK01",null,null,null,null,null,null,"RTE03","Southampton General Hospital - RHM01"]
[null,null,null,null,null,null,null,null,null,null,null,null,null,null,null,null,null,null,null,null,"Q77","RXK","SANDWELL AND WEST BIRMINGHAM HOSPITALS NHS TRUST","RXKXXX","WiC_MIU - RXKXXX",null,null,null,null,null,null,"RTF86","Southend Hospital - RAJ01"]
[null,null,null,null,null,null,null,null,null,null,null,null,null,null,null,null,null,null,null,null,"Q77","RJC","SOUTH WARWICKSHIRE NHS FOUNDATION TRUST","RJC02","Warwick Hospital - RJC02",null,null,null,null,null,null,"RTFDR","Southmead Hospital - RVJ01"]
[null,null,null,null,null,null,null,null,null,null,null,null,null,null,null,null,null,null,null,null,"Q77","RJC","SOUTH WARWICKSHIRE NHS FOUNDATION TRUST","RJCXXX","WiC_MIU - RJCXXX",null,null,null,null,null,null,"RTFED","Southport and Formby District General Hospital - RVY01"]
[null,null,null,null,null,null,null,null,null,null,null,null,null,null,null,null,null,null,null,null,"Q77","RNA","THE DUDLEY GROUP NHS FOUNDATION TRUST","RNA01","Russells Hall Hospital - RNA01",null,null,null,null,null,null,"RTFFS","St Bartholomew's Hospital - R1HM0"]
[null,null,null,null,null,null,null,null,null,null,null,null,null,null,null,null,null,null,null,null,"Q77","RL4","THE ROYAL WOLVERHAMPTON NHS TRUST","RL403","New Cross Hospital - RL403",null,null,null,null,null,null,"RTFXXX","St George's Hospital (Tooting) - RJ701"]
[null,null,null,null,null,null,null,null,null,null,null,null,null,null,null,null,null,null,null,null,"Q77","RL4","THE ROYAL WOLVERHAMPTON NHS TRUST","RL402","The Phoenix Health Centre - RL402",null,null,null,null,null,null,"RTGFG","St Helier Hospital - RVR05"]
[null,null,null,null,null,null,null,null,null,null,null,null,null,null,null,null,null,null,null,null,"Q77","RL4","THE ROYAL WOLVERHAMPTON NHS TRUST","RL4XXX","WiC_MIU - RL4XXX",null,null,null,null,null,null,"RTH05","St James's University Hospital - RR813"]
[null,null,null,null,null,null,null,null,null,null,null,null,null,null,null,null,null,null,null,null,"Q77","RRK","UNIVERSITY HOSPITALS BIRMINGHAM NHS FOUNDATION TRUST","RRK15","Queen Elizabeth Hospital Birmingham - RRK15",null,null,null,null,null,null,"RTH08","St Mary's Hospital - R1F01"]
[null,null,null,null,null,null,null,null,null,null,null,null,null,null,null,null,null,null,null,null,"Q77","RKB","UNIVERSITY HOSPITALS COVENTRY AND WARWICKSHIRE NHS TRUST","RKB01","University Hospital (Coventry) - RKB01",null,null,null,null,null,null,"RTK01","St Mary's Hospital - RW3SM"]
[null,null,null,null,null,null,null,null,null,null,null,null,null,null,null,null,null,null,null,null,"Q77","RKB","UNIVERSITY HOSPITALS COVENTRY AND WARWICKSHIRE NHS TRUST","RKBXXX","WiC_MIU - RKBXXX",null,null,null,null,null,null,"RTP04","St Mary's Hospital (HQ) - RYJ01"]
[null,null,null,null,null,null,null,null,null,null,null,null,null,null,null,null,null,null,null,null,"Q77","RBK","WALSALL HEALTHCARE NHS TRUST","RBK02","Manor Hospital - RBK02",null,null,null,null,null,null,"RTR45","St Peter's Hospital - RTK01"]
[null,null,null,null,null,null,null,null,null,null,null,null,null,null,null,null,null,null,null,null,"Q77","RWP","WORCESTERSHIRE ACUTE HOSPITALS NHS TRUST","RWP01","Alexandra Hospital - RWP01",null,null,null,null,null,null,"RTRAT","St Richard's Hospital - RYR16"]
[null,null,null,null,null,null,null,null,null,null,null,null,null,null,null,null,null,null,null,null,"Q77","RWP","WORCESTERSHIRE ACUTE HOSPITALS NHS TRUST","RWP31","Kidderminster Hospital - RWP31",null,null,null,null,null,null,"RTRXXX","St Thomas' Hospital - RJ122"]
[null,null,null,null,null,null,null,null,null,null,null,null,null,null,null,null,null,null,null,null,"Q77","RWP","WORCESTERSHIRE ACUTE HOSPITALS NHS TRUST","RWP50","Worcestershire Royal Hospital - RWP50",null,null,null,null,null,null,"RTX02","Stepping Hill Hospital - RWJ09"]
[null,null,null,null,null,null,null,null,null,null,null,null,null,null,null,null,null,null,null,null,"Q77","RLQ","WYE VALLEY NHS TRUST","RLQ01","Hereford County Hospital - RLQ01",null,null,null,null,null,null,"RTXBU","Stoke Mandeville Hospital - RXQ02"]
[null,null,null,null,null,null,null,null,null,null,null,null,null,null,null,null,null,null,null,null,"Q78","RC1","BEDFORD HOSPITAL NHS TRUST","RC110","Bedford Hospital South Wing - RC110",null,null,null,null,null,null,"RVJ01","Sunderland Eye Infirmary - RLNGM"]
[null,null,null,null,null,null,null,null,null,null,null,null,null,null,null,null,null,null,null,null,"Q78","RWH","EAST AND NORTH HERTFORDSHIRE NHS TRUST","RWH01","Lister Hospital - RWH01",null,null,null,null,null,null,"RVR05","Sunderland Royal Hospital - RLNGL"]
[null,null,null,null,null,null,null,null,null,null,null,null,null,null,null,null,null,null,null,null,"Q78","RWH","EAST AND NORTH HERTFORDSHIRE NHS TRUST","RWH20","Queen Elizabeth I I Hospital - RWH20",null,null,null,null,null,null,"RVR50","Sussex Eye Hospital - RXH07"]
[null,null,null,null,null,null,null,null,null,null,null,null,null,null,null,null,null,null,null,null,"Q78","RNQ","KETTERING GENERAL HOSPITAL NHS FOUNDATION TRUST","RNQ51","Kettering General Hospital - RNQ51",null,null,null,null,null,null,"RVV01","Tameside General Hospital - RMP01"]
[null,null,null,null,null,null,null,null,null,null,null,null,null,null,null,null,null,null,null,null,"Q78","RC9","LUTON AND DUNSTABLE UNIVERSITY HOSPITAL NHS FOUNDATION TRUST","RC971","Luton and Dunstable Hospital - RC971",null,null,null,null,null,null,"RVV02","The Great Western Hospital - RN325"]
[null,null,null,null,null,null,null,null,null,null,null,null,null,null,null,null,null,null,null,null,"Q78","RD8","MILTON KEYNES UNIVERSITY HOSPITAL NHS FOUNDATION TRUST","RD816","Milton Keynes Hospital - RD816",null,null,null,null,null,null,"RVV09","The Ipswich Hospital NHS Trust - RGQ02"]
[null,null,null,null,null,null,null,null,null,null,null,null,null,null,null,null,null,null,null,null,"Q78","RNS","NORTHAMPTON GENERAL HOSPITAL NHS TRUST","RNS01","Northampton General Hospital (Acute) - RNS01",null,null,null,null,null,null,"RVVKC","The James Cook University Hospital - RTRAT"]
[null,null,null,null,null,null,null,null,null,null,null,null,null,null,null,null,null,null,null,null,"Q78","RWD","UNITED LINCOLNSHIRE HOSPITALS NHS TRUST","RWDLP","Grantham and District Hospital - RWDLP",null,null,null,null,null,null,"RVWAE","The Northumbria - RTF86"]
[null,null,null,null,null,null,null,null,null,null,null,null,null,null,null,null,null,null,null,null,"Q78","RWD","UNITED LINCOLNSHIRE HOSPITALS NHS TRUST","RWDDA","Lincoln County Hospital - RWDDA",null,null,null,null,null,null,"RVWXXX","The Phoenix Health Centre - RL402"]
[null,null,null,null,null,null,null,null,null,null,null,null,null,null,null,null,null,null,null,null,"Q78","RWD","UNITED LINCOLNSHIRE HOSPITALS NHS TRUST","RWDLA","Pilgrim Hospital - RWDLA",null,null,null,null,null,null,"RVY01","The Princess Royal Hospital - RXWAT"]
[null,null,null,null,null,null,null,null,null,null,null,null,null,null,null,null,null,null,null,null,"Q78","RWE","UNIVERSITY HOSPITALS OF LEICESTER NHS TRUST","RWEAA","Leicester Royal Infirmary - RWEAA",null,null,null,null,null,null,"RVY02","The Queen Elizabeth Hospital - RCX70"]
[null,null,null,null,null,null,null,null,null,null,null,null,null,null,null,null,null,null,null,null,"Q78","RWG","WEST HERTFORDSHIRE HOSPITALS NHS TRUST","RWG02","Watford General Hospital - RWG02",null,null,null,null,null,null,"RVYXXX","The Royal Alexandra Children's Hospital - RXH06"]
[null,null,null,null,null,null,null,null,null,null,null,null,null,null,null,null,null,null,null,null,"Q78","RWG","WEST HERTFORDSHIRE HOSPITALS NHS TRUST","RWGXXX","WiC_MIU - RWGXXX",null,null,null,null,null,null,"RW3DH","The Royal Liverpool University Hospital - RQ617"]
[null,null,null,null,null,null,null,null,null,null,null,null,null,null,null,null,null,null,null,null,"Q79","RDD","BASILDON AND THURROCK UNIVERSITY HOSPITALS NHS FOUNDATION TRUST","RDDH0","Basildon University Hospital - RDDH0",null,null,null,null,null,null,"RW3MR","The Royal London Hospital - R1H12"]
[null,null,null,null,null,null,null,null,null,null,null,null,null,null,null,null,null,null,null,null,"Q79","RGT","CAMBRIDGE UNIVERSITY HOSPITALS NHS FOUNDATION TRUST","RGT01","Addenbrooke's Hospital - RGT01",null,null,null,null,null,null,"RW3RC","The Royal Victoria Infirmary - RTD02"]
[null,null,null,null,null,null,null,null,null,null,null,null,null,null,null,null,null,null,null,null,"Q79","RDE","COLCHESTER HOSPITAL UNIVERSITY NHS FOUNDATION TRUST","RDEE4","Colchester General Hospital - RDEE4",null,null,null,null,null,null,"RW3RE","The Tunbridge Wells Hospital - RWFTW"]
[null,null,null,null,null,null,null,null,null,null,null,null,null,null,null,null,null,null,null,null,"Q79","RQQ","HINCHINGBROOKE HEALTH CARE NHS TRUST","RQQ31","Hinchingbrooke Hospital - RQQ31",null,null,null,null,null,null,"RW3SM","The Whittington Hospital - RKEQ4"]
[null,null,null,null,null,null,null,null,null,null,null,null,null,null,null,null,null,null,null,null,"Q79","RGQ","IPSWICH HOSPITAL NHS TRUST","RGQ02","The Ipswich Hospital NHS Trust - RGQ02",null,null,null,null,null,null,"RW3TR","Torbay Hospital - RA901"]
[null,null,null,null,null,null,null,null,null,null,null,null,null,null,null,null,null,null,null,null,"Q79","RGP","JAMES PAGET UNIVERSITY HOSPITALS NHS FOUNDATION TRUST","RGP75","James Paget University Hospital - RGP75",null,null,null,null,null,null,"RW601","Trafford General Hospital - RW3TR"]
[null,null,null,null,null,null,null,null,null,null,null,null,null,null,null,null,null,null,null,null,"Q79","RQ8","MID ESSEX HOSPITAL SERVICES NHS TRUST","RQ8L0","Broomfield Hospital - RQ8L0",null,null,null,null,null,null,"RW602","University College Hospital - RRV03"]
[null,null,null,null,null,null,null,null,null,null,null,null,null,null,null,null,null,null,null,null,"Q79","RM1","NORFOLK AND NORWICH UNIVERSITY HOSPITALS NHS FOUNDATION TRUST","RM102","Norfolk and Norwich University Hospital - RM102",null,null,null,null,null,null,"RW603","University Dental Hospital - RW3DH"]
[null,null,null,null,null,null,null,null,null,null,null,null,null,null,null,null,null,null,null,null,"Q79","RGN","PETERBOROUGH AND STAMFORD HOSPITALS NHS FOUNDATION TRUST","RGN80","Peterborough City Hospital - RGN80",null,null,null,null,null,null,"RW604","University Hospital (Coventry) - RKB01"]
[null,null,null,null,null,null,null,null,null,null,null,null,null,null,null,null,null,null,null,null,"Q79","RGN","PETERBOROUGH AND STAMFORD HOSPITALS NHS FOUNDATION TRUST","RGNXXX","WiC_MIU - RGNXXX",null,null,null,null,null,null,"RWA01","University Hospital Aintree - REM21"]
[null,null,null,null,null,null,null,null,null,null,null,null,null,null,null,null,null,null,null,null,"Q79","RAJ","SOUTHEND UNIVERSITY HOSPITAL NHS FOUNDATION TRUST","RAJ01","Southend Hospital - RAJ01",null,null,null,null,null,null,"RWDDA","University Hospital Lewisham - RJ224"]
[null,null,null,null,null,null,null,null,null,null,null,null,null,null,null,null,null,null,null,null,"Q79","RQW","THE PRINCESS ALEXANDRA HOSPITAL NHS TRUST","RQWG0","Princess Alexandra Hospital - RQWG0",null,null,null,null,null,null,"RWDLA","University Hospital Of North Durham - RXPCP"]
[null,null,null,null,null,null,null,null,null,null,null,null,null,null,null,null,null,null,null,null,"Q79","RCX","THE QUEEN ELIZABETH HOSPITAL, KING'S LYNN, NHS FOUNDATION TRUST","RCX70","The Queen Elizabeth Hospital - RCX70",null,null,null,null,null,null,"RWDLP","University Hospital Of North Tees - RVWAE"]
[null,null,null,null,null,null,null,null,null,null,null,null,null,null,null,null,null,null,null,null,"Q79","RGR","WEST SUFFOLK NHS FOUNDATION TRUST","RGR50","West Suffolk Hospital - RGR50",null,null,null,null,null,null,"RWEAA","Urgent Care Centre Northwick Park Hospital - R1K11"]
[null,null,null,null,null,null,null,null,null,null,null,null,null,null,null,null,null,null,null,null,"Q80","RVJ","NORTH BRISTOL NHS TRUST","RVJ01","Southmead Hospital - RVJ01",null,null,null,null,null,null,"RWF03","Wansbeck Hospital - RTFED"]
[null,null,null,null,null,null,null,null,null,null,null,null,null,null,null,null,null,null,null,null,"Q80","RBZ","NORTHERN DEVON HEALTHCARE NHS TRUST","RBZ12","North Devon District Hospital - RBZ12",null,null,null,null,null,null,"RWFTW","Warrington Hospital - RWWWH"]
[null,null,null,null,null,null,null,null,null,null,null,null,null,null,null,null,null,null,null,null,"Q80","RK9","PLYMOUTH HOSPITALS NHS TRUST","RK950","Derriford Hospital - RK950",null,null,null,null,null,null,"RWG02","Warwick Hospital - RJC02"]
[null,null,null,null,null,null,null,null,null,null,null,null,null,null,null,null,null,null,null,null,"Q80","REF","ROYAL CORNWALL HOSPITALS NHS TRUST","REF12","Royal Cornwall Hospital (Treliske) - REF12",null,null,null,null,null,null,"RWGXXX","Watford General Hospital - RWG02"]
[null,null,null,null,null,null,null,null,null,null,null,null,null,null,null,null,null,null,null,null,"Q80","RH8","ROYAL DEVON AND EXETER NHS FOUNDATION TRUST","RH801","Royal Devon and Exeter Hospital (Wonford) - RH801",null,null,null,null,null,null,"RWH01","West Cumberland Hospital - RNLBX"]
[null,null,null,null,null,null,null,null,null,null,null,null,null,null,null,null,null,null,null,null,"Q80","RBA","TAUNTON AND SOMERSET NHS FOUNDATION TRUST","RBA11","Musgrove Park Hospital - RBA11",null,null,null,null,null,null,"RWH20","West Middlesex University Hospital - RQM91"]
[null,null,null,null,null,null,null,null,null,null,null,null,null,null,null,null,null,null,null,null,"Q80","RA9","TORBAY AND SOUTH DEVON NHS FOUNDATION TRUST","RA901","Torbay Hospital - RA901",null,null,null,null,null,null,"RWJ09","West Suffolk Hospital - RGR50"]
[null,null,null,null,null,null,null,null,null,null,null,null,null,null,null,null,null,null,null,null,"Q80","RA7","UNIVERSITY HOSPITALS BRISTOL NHS FOUNDATION TRUST","RA708","Bristol Eye Hospital - RA708",null,null,null,null,null,null,"RWP01","Western Eye Hospital - RYJ07"]
[null,null,null,null,null,null,null,null,null,null,null,null,null,null,null,null,null,null,null,null,"Q80","RA7","UNIVERSITY HOSPITALS BRISTOL NHS FOUNDATION TRUST","RA723","Bristol Royal Hospital For Children - RA723",null,null,null,null,null,null,"RWP31","Weston General Hospital - RA301"]
[null,null,null,null,null,null,null,null,null,null,null,null,null,null,null,null,null,null,null,null,"Q80","RA7","UNIVERSITY HOSPITALS BRISTOL NHS FOUNDATION TRUST","RA701","Bristol Royal Infirmary - RA701",null,null,null,null,null,null,"RWP50","Wexham Park Hospital - RDU50"]
[null,null,null,null,null,null,null,null,null,null,null,null,null,null,null,null,null,null,null,null,"Q80","RA3","WESTON AREA HEALTH NHS TRUST","RA301","Weston General Hospital - RA301",null,null,null,null,null,null,"RWWHG","Whipps Cross University Hospital - R1HKH"]
[null,null,null,null,null,null,null,null,null,null,null,null,null,null,null,null,null,null,null,null,"Q80","RA4","YEOVIL DISTRICT HOSPITAL NHS FOUNDATION TRUST","RA430","Yeovil District Hospital - RA430",null,null,null,null,null,null,"RWWWH","Whiston Hospital - RBN01"]
[null,null,null,null,null,null,null,null,null,null,null,null,null,null,null,null,null,null,null,null,"Q81","RTK","ASHFORD AND ST PETER'S HOSPITALS NHS FOUNDATION TRUST","RTK01","St Peter's Hospital - RTK01",null,null,null,null,null,null,"RWY01","WiC_MIU - RBTXXX"]
[null,null,null,null,null,null,null,null,null,null,null,null,null,null,null,null,null,null,null,null,"Q81","RXH","BRIGHTON AND SUSSEX UNIVERSITY HOSPITALS NHS TRUST","RXH09","Princess Royal Hospital - RXH09",null,null,null,null,null,null,"RWY02","WiC_MIU - RCDXXX"]
[null,null,null,null,null,null,null,null,null,null,null,null,null,null,null,null,null,null,null,null,"Q81","RXH","BRIGHTON AND SUSSEX UNIVERSITY HOSPITALS NHS TRUST","RXH01","Royal Sussex County Hospital - RXH01",null,null,null,null,null,null,"RX1RA","WiC_MIU - RGNXXX"]
[null,null,null,null,null,null,null,null,null,null,null,null,null,null,null,null,null,null,null,null,"Q81","RXH","BRIGHTON AND SUSSEX UNIVERSITY HOSPITALS NHS TRUST","RXH07","Sussex Eye Hospital - RXH07",null,null,null,null,null,null,"RXC01","WiC_MIU - RHQXXX"]
[null,null,null,null,null,null,null,null,null,null,null,null,null,null,null,null,null,null,null,null,"Q81","RXH","BRIGHTON AND SUSSEX UNIVERSITY HOSPITALS NHS TRUST","RXH06","The Royal Alexandra Children's Hospital - RXH06",null,null,null,null,null,null,"RXC02","WiC_MIU - RHUXXX"]
[null,null,null,null,null,null,null,null,null,null,null,null,null,null,null,null,null,null,null,null,"Q81","RN7","DARTFORD AND GRAVESHAM NHS TRUST","RN707","Darent Valley Hospital - RN707",null,null,null,null,null,null,"RXF03","WiC_MIU - RJ1XXX"]
[null,null,null,null,null,null,null,null,null,null,null,null,null,null,null,null,null,null,null,null,"Q81","RVV","EAST KENT HOSPITALS UNIVERSITY NHS FOUNDATION TRUST","RVV02","Buckland Hospital - RVV02",null,null,null,null,null,null,"RXF05","WiC_MIU - RJ7XXX"]
[null,null,null,null,null,null,null,null,null,null,null,null,null,null,null,null,null,null,null,null,"Q81","RVV","EAST KENT HOSPITALS UNIVERSITY NHS FOUNDATION TRUST","RVVKC","Kent and Canterbury Hospital - RVVKC",null,null,null,null,null,null,"RXF10","WiC_MIU - RJCXXX"]
[null,null,null,null,null,null,null,null,null,null,null,null,null,null,null,null,null,null,null,null,"Q81","RVV","EAST KENT HOSPITALS UNIVERSITY NHS FOUNDATION TRUST","RVV09","Queen Elizabeth The Queen Mother Hospital - RVV09",null,null,null,null,null,null,"RXH01","WiC_MIU - RJFXXX"]
[null,null,null,null,null,null,null,null,null,null,null,null,null,null,null,null,null,null,null,null,"Q81","RVV","EAST KENT HOSPITALS UNIVERSITY NHS FOUNDATION TRUST","RVV01","William Harvey Hospital (Ashford) - RVV01",null,null,null,null,null,null,"RXH06","WiC_MIU - RJLXXX"]
[null,null,null,null,null,null,null,null,null,null,null,null,null,null,null,null,null,null,null,null,"Q81","RXC","EAST SUSSEX HEALTHCARE NHS TRUST","RXC01","Conquest Hospital - RXC01",null,null,null,null,null,null,"RXH07","WiC_MIU - RK5XXX"]
[null,null,null,null,null,null,null,null,null,null,null,null,null,null,null,null,null,null,null,null,"Q81","RXC","EAST SUSSEX HEALTHCARE NHS TRUST","RXC02","Eastbourne District General Hospital - RXC02",null,null,null,null,null,null,"RXH09","WiC_MIU - RKBXXX"]
[null,null,null,null,null,null,null,null,null,null,null,null,null,null,null,null,null,null,null,null,"Q81","RDU","FRIMLEY HEALTH NHS FOUNDATION TRUST","RDU01","Frimley Park Hospital - RDU01",null,null,null,null,null,null,"RXK01","WiC_MIU - RL4XXX"]
[null,null,null,null,null,null,null,null,null,null,null,null,null,null,null,null,null,null,null,null,"Q81","RDU","FRIMLEY HEALTH NHS FOUNDATION TRUST","RDU50","Wexham Park Hospital - RDU50",null,null,null,null,null,null,"RXK02","WiC_MIU - RLNXXX"]
[null,null,null,null,null,null,null,null,null,null,null,null,null,null,null,null,null,null,null,null,"Q81","RWF","MAIDSTONE AND TUNBRIDGE WELLS NHS TRUST","RWF03","Maidstone District General Hospital - RWF03",null,null,null,null,null,null,"RXK03","WiC_MIU - RN3XXX"]
[null,null,null,null,null,null,null,null,null,null,null,null,null,null,null,null,null,null,null,null,"Q81","RWF","MAIDSTONE AND TUNBRIDGE WELLS NHS TRUST","RWFTW","The Tunbridge Wells Hospital - RWFTW",null,null,null,null,null,null,"RXKXXX","WiC_MIU - RP5XXX"]
[null,null,null,null,null,null,null,null,null,null,null,null,null,null,null,null,null,null,null,null,"Q81","RPA","MEDWAY NHS FOUNDATION TRUST","RPA02","Medway Maritime Hospital - RPA02",null,null,null,null,null,null,"RXL01","WiC_MIU - RQMXXX"]
[null,null,null,null,null,null,null,null,null,null,null,null,null,null,null,null,null,null,null,null,"Q81","RA2","ROYAL SURREY COUNTY HOSPITAL NHS FOUNDATION TRUST","RA201","Royal Surrey County Hospital - RA201",null,null,null,null,null,null,"RXN01","WiC_MIU - RR1XXX"]
[null,null,null,null,null,null,null,null,null,null,null,null,null,null,null,null,null,null,null,null,"Q81","RTP","SURREY AND SUSSEX HEALTHCARE NHS TRUST","RTP04","East Surrey Hospital - RTP04",null,null,null,null,null,null,"RXN02","WiC_MIU - RTFXXX"]
[null,null,null,null,null,null,null,null,null,null,null,null,null,null,null,null,null,null,null,null,"Q81","RYR","WESTERN SUSSEX HOSPITALS NHS FOUNDATION TRUST","RYR16","St Richard's Hospital - RYR16",null,null,null,null,null,null,"RXPCP","WiC_MIU - RTRXXX"]
[null,null,null,null,null,null,null,null,null,null,null,null,null,null,null,null,null,null,null,null,"Q81","RYR","WESTERN SUSSEX HOSPITALS NHS FOUNDATION TRUST","RYR18","Worthing Hospital - RYR18",null,null,null,null,null,null,"RXPDA","WiC_MIU - RVWXXX"]
[null,null,null,null,null,null,null,null,null,null,null,null,null,null,null,null,null,null,null,null,"Q82","RXQ","BUCKINGHAMSHIRE HEALTHCARE NHS TRUST","RXQ02","Stoke Mandeville Hospital - RXQ02",null,null,null,null,null,null,"RXPXXX","WiC_MIU - RVYXXX"]
[null,null,null,null,null,null,null,null,null,null,null,null,null,null,null,null,null,null,null,null,"Q82","RTE","GLOUCESTERSHIRE HOSPITALS NHS FOUNDATION TRUST","RTE01","Cheltenham General Hospital - RTE01",null,null,null,null,null,null,"RXQ02","WiC_MIU - RWGXXX"]
[null,null,null,null,null,null,null,null,null,null,null,null,null,null,null,null,null,null,null,null,"Q82","RTE","GLOUCESTERSHIRE HOSPITALS NHS FOUNDATION TRUST","RTE03","Gloucestershire Royal Hospital - RTE03",null,null,null,null,null,null,"RXR20","WiC_MIU - RXKXXX"]
[null,null,null,null,null,null,null,null,null,null,null,null,null,null,null,null,null,null,null,null,"Q82","RN3","GREAT WESTERN HOSPITALS NHS FOUNDATION TRUST","RN325","The Great Western Hospital - RN325",null,null,null,null,null,null,"RXWAS","WiC_MIU - RXPXXX"]
[null,null,null,null,null,null,null,null,null,null,null,null,null,null,null,null,null,null,null,null,"Q82","RN3","GREAT WESTERN HOSPITALS NHS FOUNDATION TRUST","RN3XXX","WiC_MIU - RN3XXX",null,null,null,null,null,null,"RXWAT","WiC_MIU - RYJXXX"]
[null,null,null,null,null,null,null,null,null,null,null,null,null,null,null,null,null,null,null,null,"Q82","RTH","OXFORD UNIVERSITY HOSPITALS NHS FOUNDATION TRUST","RTH05","Horton General Hospital - RTH05",null,null,null,null,null,null,"RYJ01","William Harvey Hospital (Ashford) - RVV01"]
[null,null,null,null,null,null,null,null,null,null,null,null,null,null,null,null,null,null,null,null,"Q82","RTH","OXFORD UNIVERSITY HOSPITALS NHS FOUNDATION TRUST","RTH08","John Radcliffe Hospital - RTH08",null,null,null,null,null,null,"RYJ02","Worcestershire Royal Hospital - RWP50"]
[null,null,null,null,null,null,null,null,null,null,null,null,null,null,null,null,null,null,null,null,"Q82","RHW","ROYAL BERKSHIRE NHS FOUNDATION TRUST","RHW03","King Edward Vii Hospital - RHW03",null,null,null,null,null,null,"RYJ07","Worthing Hospital - RYR18"]
[null,null,null,null,null,null,null,null,null,null,null,null,null,null,null,null,null,null,null,null,"Q82","RHW","ROYAL BERKSHIRE NHS FOUNDATION TRUST","RHW01","Royal Berkshire Hospital - RHW01",null,null,null,null,null,null,"RYJXXX","Wythenshawe Hospital - RM202"]
[null,null,null,null,null,null,null,null,null,null,null,null,null,null,null,null,null,null,null,null,"Q82","RD1","ROYAL UNITED HOSPITALS BATH NHS FOUNDATION TRUST","RD130","Royal United Hospital - RD130",null,null,null,null,null,null,"RYR16","Yeovil District Hospital - RA430"]
[null,null,null,null,null,null,null,null,null,null,null,null,null,null,null,null,null,null,null,null,"Q82","RNZ","SALISBURY NHS FOUNDATION TRUST","RNZ02","Salisbury District Hospital - RNZ02",null,null,null,null,null,null,"RYR18","York Hospital - RCB55"]